Workbook

Sheet نتائج البحث
A1: التاريخ | B1: أذن أضافة | C1: الكود | D1: اللون | E1: الكمية بالكيلو | F1: وزن المتر بالكيلو | G1: الكمية بالامتار | H1: الكمية بالقطع | I1: العميل | J1: اسم الصفحة

Sheet التكويد
A1: الكود | B1: اللون | C1: الوصف | D1: المقاس | E1: اللون | F1: رصيد اول كيلو | G1: رصيد اول متر | H1: رصيد اول قطع | I1: وارد كيلو | J1: وارد متر | K1: وارد قطع | L1: منصرف كيلو | M1: منصرف متر | N1: منصرف قطع | O1: مرتجع كيلو | P1: مرتجع متر | Q1: مرتجع قطع | R1: رصيد اخر كيلو | S1: رصيد اخر متر | T1: رصيد اخر قطع | X1: 100 | AJ1: الكود
A2: 1 | B2: ابيض | C2: كروشيه | D2: 5سم | E2: =B2&" "&C2&" "&D2 -> ابيض كروشيه 5سم | F2: 289.72 | I2: =SUMIF(الوارد!$D$2:$D$6000,E2,الوارد!$E$2:$E$6000) -> 156.18 | J2: =SUMIF(الوارد!$D$2:$D$6000,E2,الوارد!$G$2:$G$6000) -> 0 | K2: =SUMIF(الوارد!$D$2:$D$6000,E2,الوارد!$H$2:$H$6000) -> 0 | L2: =SUMIF(المنصرف!$D$2:$D$6000,E2,المنصرف!$E$2:$E$6000) -> 0 | M2: =SUMIF(المنصرف!$D$2:$D$6000,E2,المنصرف!$G$2:$G$6000) -> 0 | N2: =SUMIF(المنصرف!$D$2:$D$6000,E2,المنصرف!$H$2:$H$6000) -> 0 | O2: =SUMIF(المرتجع!$D$2:$D$6000,E2,المرتجع!$E$2:$E$6000) -> 0 | P2: =SUMIF(المرتجع!$D$2:$D$6000,E2,المرتجع!$G$2:$G$6000) -> 0 | Q2: =SUMIF(المرتجع!$D$2:$D$6000,E2,المرتجع!$H$2:$H$6000) -> 0 | R2: =F2+I2+O2-L2 -> 445.9 | S2: =G2+J2+P2-M2 -> 0 | T2: =H2+K2+Q2-N2 -> 0 | AA2: 5 | AG2: =IFERROR(VLOOKUP(ROWS($AG$1:AG3),$AI$2:$AJ$932,2,0),"") -> 15 | AH2: =OFFSET($AG$2,,COUNTIF($AG$2:AG932,"?*")) -> 15 | AI2: =IF(ISNUMBER(SEARCH($AL$2,AJ2)),MAX($AI$1:AI1)+1,0) -> 1 | AJ2: 5
A3: 2 | B3: ابيض | C3: كروشيه | D3: 1سم | E3: ابيض كروشيه 1سم | F3: 360.71 | I3: =SUMIF(الوارد!$D$2:$D$6000,E3,الوارد!$E$2:$E$6000) -> 0 | J3: =SUMIF(الوارد!$D$2:$D$6000,E3,الوارد!$G$2:$G$6000) -> 0 | K3: =SUMIF(الوارد!$D$2:$D$6000,E3,الوارد!$H$2:$H$6000) -> 0 | L3: =SUMIF(المنصرف!$D$2:$D$6000,E3,المنصرف!$E$2:$E$6000) -> 0 | M3: =SUMIF(المنصرف!$D$2:$D$6000,E3,المنصرف!$G$2:$G$6000) -> 0 | N3: =SUMIF(المنصرف!$D$2:$D$6000,E3,المنصرف!$H$2:$H$6000) -> 0 | O3: =SUMIF(المرتجع!$D$2:$D$6000,E3,المرتجع!$E$2:$E$6000) -> 0 | P3: =SUMIF(المرتجع!$D$2:$D$6000,E3,المرتجع!$G$2:$G$6000) -> 0 | Q3: =SUMIF(المرتجع!$D$2:$D$6000,E3,المرتجع!$H$2:$H$6000) -> 0 | R3: 360.71 | S3: 0 | T3: 0 | AA3: 10 | AG3: =IFERROR(VLOOKUP(ROWS($AG$2:AG3),$AI$2:$AJ$932,2,0),"") -> 10 | AI3: =IF(ISNUMBER(SEARCH($AL$2,AJ3)),MAX($AI$1:AI2)+1,0) -> 2 | AJ3: 10
A4: 3 | B4: ابيض | C4: كروشيه | D4: 5 مم | E4: ابيض كروشيه 5 مم | F4: 84 | I4: =SUMIF(الوارد!$D$2:$D$6000,E4,الوارد!$E$2:$E$6000) -> 0 | J4: =SUMIF(الوارد!$D$2:$D$6000,E4,الوارد!$G$2:$G$6000) -> 0 | K4: =SUMIF(الوارد!$D$2:$D$6000,E4,الوارد!$H$2:$H$6000) -> 0 | L4: =SUMIF(المنصرف!$D$2:$D$6000,E4,المنصرف!$E$2:$E$6000) -> 0 | M4: =SUMIF(المنصرف!$D$2:$D$6000,E4,المنصرف!$G$2:$G$6000) -> 0 | N4: =SUMIF(المنصرف!$D$2:$D$6000,E4,المنصرف!$H$2:$H$6000) -> 0 | O4: =SUMIF(المرتجع!$D$2:$D$6000,E4,المرتجع!$E$2:$E$6000) -> 0 | P4: =SUMIF(المرتجع!$D$2:$D$6000,E4,المرتجع!$G$2:$G$6000) -> 0 | Q4: =SUMIF(المرتجع!$D$2:$D$6000,E4,المرتجع!$H$2:$H$6000) -> 0 | R4: 84 | S4: 0 | T4: 0 | AA4: 15 | AG4: =IFERROR(VLOOKUP(ROWS($AG$2:AG4),$AI$2:$AJ$932,2,0),"") -> 15 | AI4: =IF(ISNUMBER(SEARCH($AL$2,AJ4)),MAX($AI$1:AI3)+1,0) -> 3 | AJ4: 15
A5: 4 | B5: ابيض | C5: كروشيه | D5: 5.7سم | E5: ابيض كروشيه 5.7سم | F5: 88 | I5: =SUMIF(الوارد!$D$2:$D$6000,E5,الوارد!$E$2:$E$6000) -> 0 | J5: =SUMIF(الوارد!$D$2:$D$6000,E5,الوارد!$G$2:$G$6000) -> 0 | K5: =SUMIF(الوارد!$D$2:$D$6000,E5,الوارد!$H$2:$H$6000) -> 0 | L5: =SUMIF(المنصرف!$D$2:$D$6000,E5,المنصرف!$E$2:$E$6000) -> 0 | M5: =SUMIF(المنصرف!$D$2:$D$6000,E5,المنصرف!$G$2:$G$6000) -> 0 | N5: =SUMIF(المنصرف!$D$2:$D$6000,E5,المنصرف!$H$2:$H$6000) -> 0 | O5: =SUMIF(المرتجع!$D$2:$D$6000,E5,المرتجع!$E$2:$E$6000) -> 0 | P5: =SUMIF(المرتجع!$D$2:$D$6000,E5,المرتجع!$G$2:$G$6000) -> 0 | Q5: =SUMIF(المرتجع!$D$2:$D$6000,E5,المرتجع!$H$2:$H$6000) -> 0 | R5: 88 | S5: 0 | T5: 0 | AA5: 20 | AG5: =IFERROR(VLOOKUP(ROWS($AG$2:AG5),$AI$2:$AJ$932,2,0),"") -> 20 | AI5: =IF(ISNUMBER(SEARCH($AL$2,AJ5)),MAX($AI$1:AI4)+1,0) -> 4 | AJ5: 20
A6: 5 | B6: ابيض | C6: كروشيه | D6: 1.5 سم | E6: ابيض كروشيه 1.5 سم | F6: 219.3 | I6: =SUMIF(الوارد!$D$2:$D$6000,E6,الوارد!$E$2:$E$6000) -> 3 | J6: =SUMIF(الوارد!$D$2:$D$6000,E6,الوارد!$G$2:$G$6000) -> 0 | K6: =SUMIF(الوارد!$D$2:$D$6000,E6,الوارد!$H$2:$H$6000) -> 0 | L6: =SUMIF(المنصرف!$D$2:$D$6000,E6,المنصرف!$E$2:$E$6000) -> 0 | M6: =SUMIF(المنصرف!$D$2:$D$6000,E6,المنصرف!$G$2:$G$6000) -> 0 | N6: =SUMIF(المنصرف!$D$2:$D$6000,E6,المنصرف!$H$2:$H$6000) -> 0 | O6: =SUMIF(المرتجع!$D$2:$D$6000,E6,المرتجع!$E$2:$E$6000) -> 0 | P6: =SUMIF(المرتجع!$D$2:$D$6000,E6,المرتجع!$G$2:$G$6000) -> 0 | Q6: =SUMIF(المرتجع!$D$2:$D$6000,E6,المرتجع!$H$2:$H$6000) -> 0 | R6: 222.3 | S6: 0 | T6: 0 | AA6: 25 | AG6: =IFERROR(VLOOKUP(ROWS($AG$2:AG6),$AI$2:$AJ$932,2,0),"") -> 25 | AI6: =IF(ISNUMBER(SEARCH($AL$2,AJ6)),MAX($AI$1:AI5)+1,0) -> 5 | AJ6: 25
A7: 6 | B7: ابيض | C7: كروشيه | D7: 2.5 سم | E7: ابيض كروشيه 2.5 سم | F7: 209.04 | I7: =SUMIF(الوارد!$D$2:$D$6000,E7,الوارد!$E$2:$E$6000) -> 83.08 | J7: =SUMIF(الوارد!$D$2:$D$6000,E7,الوارد!$G$2:$G$6000) -> 0 | K7: =SUMIF(الوارد!$D$2:$D$6000,E7,الوارد!$H$2:$H$6000) -> 0 | L7: =SUMIF(المنصرف!$D$2:$D$6000,E7,المنصرف!$E$2:$E$6000) -> 0 | M7: =SUMIF(المنصرف!$D$2:$D$6000,E7,المنصرف!$G$2:$G$6000) -> 0 | N7: =SUMIF(المنصرف!$D$2:$D$6000,E7,المنصرف!$H$2:$H$6000) -> 0 | O7: =SUMIF(المرتجع!$D$2:$D$6000,E7,المرتجع!$E$2:$E$6000) -> 0 | P7: =SUMIF(المرتجع!$D$2:$D$6000,E7,المرتجع!$G$2:$G$6000) -> 0 | Q7: =SUMIF(المرتجع!$D$2:$D$6000,E7,المرتجع!$H$2:$H$6000) -> 0 | R7: 292.12 | S7: 0 | T7: 0 | AA7: 30 | AG7: =IFERROR(VLOOKUP(ROWS($AG$2:AG7),$AI$2:$AJ$932,2,0),"") -> 30 | AI7: =IF(ISNUMBER(SEARCH($AL$2,AJ7)),MAX($AI$1:AI6)+1,0) -> 6 | AJ7: 30
A8: 7 | B8: ابيض | C8: كروشيه | D8: 4سم | E8: ابيض كروشيه 4سم | F8: 278.12 | I8: =SUMIF(الوارد!$D$2:$D$6000,E8,الوارد!$E$2:$E$6000) -> 2755.53 | J8: =SUMIF(الوارد!$D$2:$D$6000,E8,الوارد!$G$2:$G$6000) -> 0 | K8: =SUMIF(الوارد!$D$2:$D$6000,E8,الوارد!$H$2:$H$6000) -> 0 | L8: =SUMIF(المنصرف!$D$2:$D$6000,E8,المنصرف!$E$2:$E$6000) -> 0 | M8: =SUMIF(المنصرف!$D$2:$D$6000,E8,المنصرف!$G$2:$G$6000) -> 0 | N8: =SUMIF(المنصرف!$D$2:$D$6000,E8,المنصرف!$H$2:$H$6000) -> 0 | O8: =SUMIF(المرتجع!$D$2:$D$6000,E8,المرتجع!$E$2:$E$6000) -> 0 | P8: =SUMIF(المرتجع!$D$2:$D$6000,E8,المرتجع!$G$2:$G$6000) -> 0 | Q8: =SUMIF(المرتجع!$D$2:$D$6000,E8,المرتجع!$H$2:$H$6000) -> 0 | R8: 3033.65 | S8: 0 | T8: 0 | AA8: 35 | AG8: =IFERROR(VLOOKUP(ROWS($AG$2:AG8),$AI$2:$AJ$932,2,0),"") -> 35 | AI8: =IF(ISNUMBER(SEARCH($AL$2,AJ8)),MAX($AI$1:AI7)+1,0) -> 7 | AJ8: 35
A9: 8 | B9: ابيض | C9: كروشيه | D9: 3.5 سم | E9: ابيض كروشيه 3.5 سم | F9: 42 | I9: =SUMIF(الوارد!$D$2:$D$6000,E9,الوارد!$E$2:$E$6000) -> 1977.71 | J9: =SUMIF(الوارد!$D$2:$D$6000,E9,الوارد!$G$2:$G$6000) -> 0 | K9: =SUMIF(الوارد!$D$2:$D$6000,E9,الوارد!$H$2:$H$6000) -> 0 | L9: =SUMIF(المنصرف!$D$2:$D$6000,E9,المنصرف!$E$2:$E$6000) -> 0 | M9: =SUMIF(المنصرف!$D$2:$D$6000,E9,المنصرف!$G$2:$G$6000) -> 0 | N9: =SUMIF(المنصرف!$D$2:$D$6000,E9,المنصرف!$H$2:$H$6000) -> 0 | O9: =SUMIF(المرتجع!$D$2:$D$6000,E9,المرتجع!$E$2:$E$6000) -> 0 | P9: =SUMIF(المرتجع!$D$2:$D$6000,E9,المرتجع!$G$2:$G$6000) -> 0 | Q9: =SUMIF(المرتجع!$D$2:$D$6000,E9,المرتجع!$H$2:$H$6000) -> 0 | R9: 2019.71 | S9: 0 | T9: 0 | AA9: 40 | AG9: =IFERROR(VLOOKUP(ROWS($AG$2:AG9),$AI$2:$AJ$932,2,0),"") -> 40 | AI9: =IF(ISNUMBER(SEARCH($AL$2,AJ9)),MAX($AI$1:AI8)+1,0) -> 8 | AJ9: 40
A10: 9 | B10: ابيض | C10: كروشيه | D10: 3 سم | E10: ابيض كروشيه 3 سم | F10: 310 | I10: =SUMIF(الوارد!$D$2:$D$6000,E10,الوارد!$E$2:$E$6000) -> 517.52 | J10: =SUMIF(الوارد!$D$2:$D$6000,E10,الوارد!$G$2:$G$6000) -> 0 | K10: =SUMIF(الوارد!$D$2:$D$6000,E10,الوارد!$H$2:$H$6000) -> 0 | L10: =SUMIF(المنصرف!$D$2:$D$6000,E10,المنصرف!$E$2:$E$6000) -> 0 | M10: =SUMIF(المنصرف!$D$2:$D$6000,E10,المنصرف!$G$2:$G$6000) -> 0 | N10: =SUMIF(المنصرف!$D$2:$D$6000,E10,المنصرف!$H$2:$H$6000) -> 0 | O10: =SUMIF(المرتجع!$D$2:$D$6000,E10,المرتجع!$E$2:$E$6000) -> 0 | P10: =SUMIF(المرتجع!$D$2:$D$6000,E10,المرتجع!$G$2:$G$6000) -> 0 | Q10: =SUMIF(المرتجع!$D$2:$D$6000,E10,المرتجع!$H$2:$H$6000) -> 0 | R10: 827.52 | S10: 0 | T10: 0 | AA10: 45 | AG10: =IFERROR(VLOOKUP(ROWS($AG$2:AG10),$AI$2:$AJ$932,2,0),"") -> 45 | AI10: =IF(ISNUMBER(SEARCH($AL$2,AJ10)),MAX($AI$1:AI9)+1,0) -> 9 | AJ10: 45
A11: 10 | B11: ابيض | C11: كروشيه | D11: 4.5 سم | E11: ابيض كروشيه 4.5 سم | F11: 401.74 | I11: =SUMIF(الوارد!$D$2:$D$6000,E11,الوارد!$E$2:$E$6000) -> 781.49 | J11: =SUMIF(الوارد!$D$2:$D$6000,E11,الوارد!$G$2:$G$6000) -> 0 | K11: =SUMIF(الوارد!$D$2:$D$6000,E11,الوارد!$H$2:$H$6000) -> 0 | L11: =SUMIF(المنصرف!$D$2:$D$6000,E11,المنصرف!$E$2:$E$6000) -> 0 | M11: =SUMIF(المنصرف!$D$2:$D$6000,E11,المنصرف!$G$2:$G$6000) -> 0 | N11: =SUMIF(المنصرف!$D$2:$D$6000,E11,المنصرف!$H$2:$H$6000) -> 0 | O11: =SUMIF(المرتجع!$D$2:$D$6000,E11,المرتجع!$E$2:$E$6000) -> 0 | P11: =SUMIF(المرتجع!$D$2:$D$6000,E11,المرتجع!$G$2:$G$6000) -> 0 | Q11: =SUMIF(المرتجع!$D$2:$D$6000,E11,المرتجع!$H$2:$H$6000) -> 0 | R11: 1183.23 | S11: 0 | T11: 0 | AA11: 50 | AG11: =IFERROR(VLOOKUP(ROWS($AG$2:AG11),$AI$2:$AJ$932,2,0),"") -> 50 | AI11: =IF(ISNUMBER(SEARCH($AL$2,AJ11)),MAX($AI$1:AI10)+1,0) -> 10 | AJ11: 50
A12: 11 | B12: ابيض | C12: كروشيه | D12: 2سم | E12: ابيض كروشيه 2سم | F12: 172.36 | I12: =SUMIF(الوارد!$D$2:$D$6000,E12,الوارد!$E$2:$E$6000) -> 156.36 | J12: =SUMIF(الوارد!$D$2:$D$6000,E12,الوارد!$G$2:$G$6000) -> 0 | K12: =SUMIF(الوارد!$D$2:$D$6000,E12,الوارد!$H$2:$H$6000) -> 0 | L12: =SUMIF(المنصرف!$D$2:$D$6000,E12,المنصرف!$E$2:$E$6000) -> 0 | M12: =SUMIF(المنصرف!$D$2:$D$6000,E12,المنصرف!$G$2:$G$6000) -> 0 | N12: =SUMIF(المنصرف!$D$2:$D$6000,E12,المنصرف!$H$2:$H$6000) -> 0 | O12: =SUMIF(المرتجع!$D$2:$D$6000,E12,المرتجع!$E$2:$E$6000) -> 0 | P12: =SUMIF(المرتجع!$D$2:$D$6000,E12,المرتجع!$G$2:$G$6000) -> 0 | Q12: =SUMIF(المرتجع!$D$2:$D$6000,E12,المرتجع!$H$2:$H$6000) -> 0 | R12: 328.72 | S12: 0 | T12: 0 | AA12: 55 | AG12: =IFERROR(VLOOKUP(ROWS($AG$2:AG12),$AI$2:$AJ$932,2,0),"") -> 55 | AI12: =IF(ISNUMBER(SEARCH($AL$2,AJ12)),MAX($AI$1:AI11)+1,0) -> 11 | AJ12: 55
A13: 12 | B13: ابيض | C13: كروشيه | D13: 7 مم | E13: ابيض كروشيه 7 مم | F13: 175.3 | I13: =SUMIF(الوارد!$D$2:$D$6000,E13,الوارد!$E$2:$E$6000) -> 0 | J13: =SUMIF(الوارد!$D$2:$D$6000,E13,الوارد!$G$2:$G$6000) -> 0 | K13: =SUMIF(الوارد!$D$2:$D$6000,E13,الوارد!$H$2:$H$6000) -> 0 | L13: =SUMIF(المنصرف!$D$2:$D$6000,E13,المنصرف!$E$2:$E$6000) -> 0 | M13: =SUMIF(المنصرف!$D$2:$D$6000,E13,المنصرف!$G$2:$G$6000) -> 0 | N13: =SUMIF(المنصرف!$D$2:$D$6000,E13,المنصرف!$H$2:$H$6000) -> 0 | O13: =SUMIF(المرتجع!$D$2:$D$6000,E13,المرتجع!$E$2:$E$6000) -> 0 | P13: =SUMIF(المرتجع!$D$2:$D$6000,E13,المرتجع!$G$2:$G$6000) -> 0 | Q13: =SUMIF(المرتجع!$D$2:$D$6000,E13,المرتجع!$H$2:$H$6000) -> 0 | R13: 175.3 | S13: 0 | T13: 0 | AA13: 60 | AG13: =IFERROR(VLOOKUP(ROWS($AG$2:AG13),$AI$2:$AJ$932,2,0),"") -> 60 | AI13: =IF(ISNUMBER(SEARCH($AL$2,AJ13)),MAX($AI$1:AI12)+1,0) -> 12 | AJ13: 60
A14: 13 | B14: ابيض | C14: كروشيه | D14: 6 سم | E14: ابيض كروشيه 6 سم | F14: 156 | I14: =SUMIF(الوارد!$D$2:$D$6000,E14,الوارد!$E$2:$E$6000) -> 0 | J14: =SUMIF(الوارد!$D$2:$D$6000,E14,الوارد!$G$2:$G$6000) -> 0 | K14: =SUMIF(الوارد!$D$2:$D$6000,E14,الوارد!$H$2:$H$6000) -> 0 | L14: =SUMIF(المنصرف!$D$2:$D$6000,E14,المنصرف!$E$2:$E$6000) -> 0 | M14: =SUMIF(المنصرف!$D$2:$D$6000,E14,المنصرف!$G$2:$G$6000) -> 0 | N14: =SUMIF(المنصرف!$D$2:$D$6000,E14,المنصرف!$H$2:$H$6000) -> 0 | O14: =SUMIF(المرتجع!$D$2:$D$6000,E14,المرتجع!$E$2:$E$6000) -> 0 | P14: =SUMIF(المرتجع!$D$2:$D$6000,E14,المرتجع!$G$2:$G$6000) -> 0 | Q14: =SUMIF(المرتجع!$D$2:$D$6000,E14,المرتجع!$H$2:$H$6000) -> 0 | R14: 156 | S14: 0 | T14: 0 | AA14: 65 | AG14: =IFERROR(VLOOKUP(ROWS($AG$2:AG14),$AI$2:$AJ$932,2,0),"") -> 65 | AI14: =IF(ISNUMBER(SEARCH($AL$2,AJ14)),MAX($AI$1:AI13)+1,0) -> 13 | AJ14: 65
A15: 14 | B15: ابيض | C15: كروشيه | D15: 6.5 سم | E15: ابيض كروشيه 6.5 سم | F15: 577.03 | I15: =SUMIF(الوارد!$D$2:$D$6000,E15,الوارد!$E$2:$E$6000) -> 0 | J15: =SUMIF(الوارد!$D$2:$D$6000,E15,الوارد!$G$2:$G$6000) -> 0 | K15: =SUMIF(الوارد!$D$2:$D$6000,E15,الوارد!$H$2:$H$6000) -> 0 | L15: =SUMIF(المنصرف!$D$2:$D$6000,E15,المنصرف!$E$2:$E$6000) -> 0 | M15: =SUMIF(المنصرف!$D$2:$D$6000,E15,المنصرف!$G$2:$G$6000) -> 0 | N15: =SUMIF(المنصرف!$D$2:$D$6000,E15,المنصرف!$H$2:$H$6000) -> 0 | O15: =SUMIF(المرتجع!$D$2:$D$6000,E15,المرتجع!$E$2:$E$6000) -> 0 | P15: =SUMIF(المرتجع!$D$2:$D$6000,E15,المرتجع!$G$2:$G$6000) -> 0 | Q15: =SUMIF(المرتجع!$D$2:$D$6000,E15,المرتجع!$H$2:$H$6000) -> 0 | R15: 577.03 | S15: 0 | T15: 0 | AA15: 70 | AG15: =IFERROR(VLOOKUP(ROWS($AG$2:AG15),$AI$2:$AJ$932,2,0),"") -> 70 | AI15: =IF(ISNUMBER(SEARCH($AL$2,AJ15)),MAX($AI$1:AI14)+1,0) -> 14 | AJ15: 70
A16: 15 | B16: اسود | C16: كروشيه | D16: 1.2سم | E16: اسود كروشيه 1.2سم | F16: 500.84 | I16: =SUMIF(الوارد!$D$2:$D$6000,E16,الوارد!$E$2:$E$6000) -> 0 | J16: =SUMIF(الوارد!$D$2:$D$6000,E16,الوارد!$G$2:$G$6000) -> 0 | K16: =SUMIF(الوارد!$D$2:$D$6000,E16,الوارد!$H$2:$H$6000) -> 0 | L16: =SUMIF(المنصرف!$D$2:$D$6000,E16,المنصرف!$E$2:$E$6000) -> 0 | M16: =SUMIF(المنصرف!$D$2:$D$6000,E16,المنصرف!$G$2:$G$6000) -> 0 | N16: =SUMIF(المنصرف!$D$2:$D$6000,E16,المنصرف!$H$2:$H$6000) -> 0 | O16: =SUMIF(المرتجع!$D$2:$D$6000,E16,المرتجع!$E$2:$E$6000) -> 0 | P16: =SUMIF(المرتجع!$D$2:$D$6000,E16,المرتجع!$G$2:$G$6000) -> 0 | Q16: =SUMIF(المرتجع!$D$2:$D$6000,E16,المرتجع!$H$2:$H$6000) -> 0 | R16: 500.84 | S16: 0 | T16: 0 | AA16: 75 | AG16: =IFERROR(VLOOKUP(ROWS($AG$2:AG16),$AI$2:$AJ$932,2,0),"") -> 75 | AI16: =IF(ISNUMBER(SEARCH($AL$2,AJ16)),MAX($AI$1:AI15)+1,0) -> 15 | AJ16: 75
A17: 16 | B17: اسود | C17: كروشيه | D17: 4 مم | E17: اسود كروشيه 4 مم | F17: 173 | I17: =SUMIF(الوارد!$D$2:$D$6000,E17,الوارد!$E$2:$E$6000) -> 0 | J17: =SUMIF(الوارد!$D$2:$D$6000,E17,الوارد!$G$2:$G$6000) -> 0 | K17: =SUMIF(الوارد!$D$2:$D$6000,E17,الوارد!$H$2:$H$6000) -> 0 | L17: =SUMIF(المنصرف!$D$2:$D$6000,E17,المنصرف!$E$2:$E$6000) -> 0 | M17: =SUMIF(المنصرف!$D$2:$D$6000,E17,المنصرف!$G$2:$G$6000) -> 0 | N17: =SUMIF(المنصرف!$D$2:$D$6000,E17,المنصرف!$H$2:$H$6000) -> 0 | O17: =SUMIF(المرتجع!$D$2:$D$6000,E17,المرتجع!$E$2:$E$6000) -> 0 | P17: =SUMIF(المرتجع!$D$2:$D$6000,E17,المرتجع!$G$2:$G$6000) -> 0 | Q17: =SUMIF(المرتجع!$D$2:$D$6000,E17,المرتجع!$H$2:$H$6000) -> 0 | R17: 173 | S17: 0 | T17: 0 | AA17: 80 | AG17: =IFERROR(VLOOKUP(ROWS($AG$2:AG17),$AI$2:$AJ$932,2,0),"") -> 80 | AI17: =IF(ISNUMBER(SEARCH($AL$2,AJ17)),MAX($AI$1:AI16)+1,0) -> 16 | AJ17: 80
A18: 17 | B18: اسود | C18: كروشيه | D18: 1.5 سم | E18: اسود كروشيه 1.5 سم | F18: 265.51 | I18: =SUMIF(الوارد!$D$2:$D$6000,E18,الوارد!$E$2:$E$6000) -> 13.26 | J18: =SUMIF(الوارد!$D$2:$D$6000,E18,الوارد!$G$2:$G$6000) -> 0 | K18: =SUMIF(الوارد!$D$2:$D$6000,E18,الوارد!$H$2:$H$6000) -> 0 | L18: =SUMIF(المنصرف!$D$2:$D$6000,E18,المنصرف!$E$2:$E$6000) -> 0 | M18: =SUMIF(المنصرف!$D$2:$D$6000,E18,المنصرف!$G$2:$G$6000) -> 0 | N18: =SUMIF(المنصرف!$D$2:$D$6000,E18,المنصرف!$H$2:$H$6000) -> 0 | O18: =SUMIF(المرتجع!$D$2:$D$6000,E18,المرتجع!$E$2:$E$6000) -> 0 | P18: =SUMIF(المرتجع!$D$2:$D$6000,E18,المرتجع!$G$2:$G$6000) -> 0 | Q18: =SUMIF(المرتجع!$D$2:$D$6000,E18,المرتجع!$H$2:$H$6000) -> 0 | R18: 278.77 | S18: 0 | T18: 0 | AA18: 85 | AG18: =IFERROR(VLOOKUP(ROWS($AG$2:AG18),$AI$2:$AJ$932,2,0),"") -> 85 | AI18: =IF(ISNUMBER(SEARCH($AL$2,AJ18)),MAX($AI$1:AI17)+1,0) -> 17 | AJ18: 85
A19: 18 | B19: اسود | C19: كروشيه | D19: 3.5 سم | E19: اسود كروشيه 3.5 سم | F19: 294.11 | I19: =SUMIF(الوارد!$D$2:$D$6000,E19,الوارد!$E$2:$E$6000) -> 580.86 | J19: =SUMIF(الوارد!$D$2:$D$6000,E19,الوارد!$G$2:$G$6000) -> 0 | K19: =SUMIF(الوارد!$D$2:$D$6000,E19,الوارد!$H$2:$H$6000) -> 0 | L19: =SUMIF(المنصرف!$D$2:$D$6000,E19,المنصرف!$E$2:$E$6000) -> 0 | M19: =SUMIF(المنصرف!$D$2:$D$6000,E19,المنصرف!$G$2:$G$6000) -> 0 | N19: =SUMIF(المنصرف!$D$2:$D$6000,E19,المنصرف!$H$2:$H$6000) -> 0 | O19: =SUMIF(المرتجع!$D$2:$D$6000,E19,المرتجع!$E$2:$E$6000) -> 0 | P19: =SUMIF(المرتجع!$D$2:$D$6000,E19,المرتجع!$G$2:$G$6000) -> 0 | Q19: =SUMIF(المرتجع!$D$2:$D$6000,E19,المرتجع!$H$2:$H$6000) -> 0 | R19: 874.97 | S19: 0 | T19: 0 | AA19: 90 | AG19: =IFERROR(VLOOKUP(ROWS($AG$2:AG19),$AI$2:$AJ$932,2,0),"") -> 90 | AI19: =IF(ISNUMBER(SEARCH($AL$2,AJ19)),MAX($AI$1:AI18)+1,0) -> 18 | AJ19: 90
A20: 19 | B20: اسود | C20: كروشيه | D20: 4.5 سم | E20: اسود كروشيه 4.5 سم | F20: 232.3 | I20: =SUMIF(الوارد!$D$2:$D$6000,E20,الوارد!$E$2:$E$6000) -> 2159.58 | J20: =SUMIF(الوارد!$D$2:$D$6000,E20,الوارد!$G$2:$G$6000) -> 0 | K20: =SUMIF(الوارد!$D$2:$D$6000,E20,الوارد!$H$2:$H$6000) -> 0 | L20: =SUMIF(المنصرف!$D$2:$D$6000,E20,المنصرف!$E$2:$E$6000) -> 0 | M20: =SUMIF(المنصرف!$D$2:$D$6000,E20,المنصرف!$G$2:$G$6000) -> 0 | N20: =SUMIF(المنصرف!$D$2:$D$6000,E20,المنصرف!$H$2:$H$6000) -> 0 | O20: =SUMIF(المرتجع!$D$2:$D$6000,E20,المرتجع!$E$2:$E$6000) -> 0 | P20: =SUMIF(المرتجع!$D$2:$D$6000,E20,المرتجع!$G$2:$G$6000) -> 0 | Q20: =SUMIF(المرتجع!$D$2:$D$6000,E20,المرتجع!$H$2:$H$6000) -> 0 | R20: 2391.88 | S20: 0 | T20: 0 | AA20: 95 | AG20: =IFERROR(VLOOKUP(ROWS($AG$2:AG20),$AI$2:$AJ$932,2,0),"") -> 95 | AI20: =IF(ISNUMBER(SEARCH($AL$2,AJ20)),MAX($AI$1:AI19)+1,0) -> 19 | AJ20: 95
A21: 20 | B21: اسود | C21: كروشيه | D21: 5.5 سم | E21: =B21&" "&C21&" "&D21 -> اسود كروشيه 5.5 سم | F21: 280.18 | I21: =SUMIF(الوارد!$D$2:$D$6000,E21,الوارد!$E$2:$E$6000) -> 4.81 | J21: =SUMIF(الوارد!$D$2:$D$6000,E21,الوارد!$G$2:$G$6000) -> 0 | K21: =SUMIF(الوارد!$D$2:$D$6000,E21,الوارد!$H$2:$H$6000) -> 0 | L21: =SUMIF(المنصرف!$D$2:$D$6000,E21,المنصرف!$E$2:$E$6000) -> 0 | M21: =SUMIF(المنصرف!$D$2:$D$6000,E21,المنصرف!$G$2:$G$6000) -> 0 | N21: =SUMIF(المنصرف!$D$2:$D$6000,E21,المنصرف!$H$2:$H$6000) -> 0 | O21: =SUMIF(المرتجع!$D$2:$D$6000,E21,المرتجع!$E$2:$E$6000) -> 0 | P21: =SUMIF(المرتجع!$D$2:$D$6000,E21,المرتجع!$G$2:$G$6000) -> 0 | Q21: =SUMIF(المرتجع!$D$2:$D$6000,E21,المرتجع!$H$2:$H$6000) -> 0 | R21: =F21+I21+O21-L21 -> 284.99 | S21: =G21+J21+P21-M21 -> 0 | T21: =H21+K21+Q21-N21 -> 0 | AA21: 100 | AG21: =IFERROR(VLOOKUP(ROWS($AG$2:AG21),$AI$2:$AJ$932,2,0),"") -> 100 | AI21: =IF(ISNUMBER(SEARCH($AL$2,AJ21)),MAX($AI$1:AI20)+1,0) -> 20 | AJ21: 100
A22: 21 | B22: اسود | C22: كروشيه | D22: 6.4 سم | E22: اسود كروشيه 6.4 سم | F22: 85 | I22: =SUMIF(الوارد!$D$2:$D$6000,E22,الوارد!$E$2:$E$6000) -> 103.37 | J22: =SUMIF(الوارد!$D$2:$D$6000,E22,الوارد!$G$2:$G$6000) -> 0 | K22: =SUMIF(الوارد!$D$2:$D$6000,E22,الوارد!$H$2:$H$6000) -> 0 | L22: =SUMIF(المنصرف!$D$2:$D$6000,E22,المنصرف!$E$2:$E$6000) -> 0 | M22: =SUMIF(المنصرف!$D$2:$D$6000,E22,المنصرف!$G$2:$G$6000) -> 0 | N22: =SUMIF(المنصرف!$D$2:$D$6000,E22,المنصرف!$H$2:$H$6000) -> 0 | O22: =SUMIF(المرتجع!$D$2:$D$6000,E22,المرتجع!$E$2:$E$6000) -> 0 | P22: =SUMIF(المرتجع!$D$2:$D$6000,E22,المرتجع!$G$2:$G$6000) -> 0 | Q22: =SUMIF(المرتجع!$D$2:$D$6000,E22,المرتجع!$H$2:$H$6000) -> 0 | R22: 188.37 | S22: 0 | T22: 0 | AA22: 105 | AG22: =IFERROR(VLOOKUP(ROWS($AG$2:AG22),$AI$2:$AJ$932,2,0),"") -> 105 | AI22: =IF(ISNUMBER(SEARCH($AL$2,AJ22)),MAX($AI$1:AI21)+1,0) -> 21 | AJ22: 105
A23: 22 | B23: اسود | C23: كروشيه | D23: 6.5 سم | E23: اسود كروشيه 6.5 سم | F23: 12 | I23: =SUMIF(الوارد!$D$2:$D$6000,E23,الوارد!$E$2:$E$6000) -> 0 | J23: =SUMIF(الوارد!$D$2:$D$6000,E23,الوارد!$G$2:$G$6000) -> 0 | K23: =SUMIF(الوارد!$D$2:$D$6000,E23,الوارد!$H$2:$H$6000) -> 0 | L23: =SUMIF(المنصرف!$D$2:$D$6000,E23,المنصرف!$E$2:$E$6000) -> 0 | M23: =SUMIF(المنصرف!$D$2:$D$6000,E23,المنصرف!$G$2:$G$6000) -> 0 | N23: =SUMIF(المنصرف!$D$2:$D$6000,E23,المنصرف!$H$2:$H$6000) -> 0 | O23: =SUMIF(المرتجع!$D$2:$D$6000,E23,المرتجع!$E$2:$E$6000) -> 0 | P23: =SUMIF(المرتجع!$D$2:$D$6000,E23,المرتجع!$G$2:$G$6000) -> 0 | Q23: =SUMIF(المرتجع!$D$2:$D$6000,E23,المرتجع!$H$2:$H$6000) -> 0 | R23: 12 | S23: 0 | T23: 0 | AA23: 110 | AG23: =IFERROR(VLOOKUP(ROWS($AG$2:AG23),$AI$2:$AJ$932,2,0),"") -> 110 | AI23: =IF(ISNUMBER(SEARCH($AL$2,AJ23)),MAX($AI$1:AI22)+1,0) -> 22 | AJ23: 110
A24: 23 | B24: اسود | C24: كروشيه | D24: 2سم | E24: اسود كروشيه 2سم | F24: 733.14 | I24: =SUMIF(الوارد!$D$2:$D$6000,E24,الوارد!$E$2:$E$6000) -> 82.05 | J24: =SUMIF(الوارد!$D$2:$D$6000,E24,الوارد!$G$2:$G$6000) -> 0 | K24: =SUMIF(الوارد!$D$2:$D$6000,E24,الوارد!$H$2:$H$6000) -> 0 | L24: =SUMIF(المنصرف!$D$2:$D$6000,E24,المنصرف!$E$2:$E$6000) -> 0 | M24: =SUMIF(المنصرف!$D$2:$D$6000,E24,المنصرف!$G$2:$G$6000) -> 0 | N24: =SUMIF(المنصرف!$D$2:$D$6000,E24,المنصرف!$H$2:$H$6000) -> 0 | O24: =SUMIF(المرتجع!$D$2:$D$6000,E24,المرتجع!$E$2:$E$6000) -> 0 | P24: =SUMIF(المرتجع!$D$2:$D$6000,E24,المرتجع!$G$2:$G$6000) -> 0 | Q24: =SUMIF(المرتجع!$D$2:$D$6000,E24,المرتجع!$H$2:$H$6000) -> 0 | R24: 815.19 | S24: 0 | T24: 0 | AA24: 115 | AG24: =IFERROR(VLOOKUP(ROWS($AG$2:AG24),$AI$2:$AJ$932,2,0),"") -> 115 | AI24: =IF(ISNUMBER(SEARCH($AL$2,AJ24)),MAX($AI$1:AI23)+1,0) -> 23 | AJ24: 115
A25: 24 | B25: اسود | C25: كروشيه | D25: 1.3 سم | E25: اسود كروشيه 1.3 سم | F25: 275.05 | I25: =SUMIF(الوارد!$D$2:$D$6000,E25,الوارد!$E$2:$E$6000) -> 0 | J25: =SUMIF(الوارد!$D$2:$D$6000,E25,الوارد!$G$2:$G$6000) -> 0 | K25: =SUMIF(الوارد!$D$2:$D$6000,E25,الوارد!$H$2:$H$6000) -> 0 | L25: =SUMIF(المنصرف!$D$2:$D$6000,E25,المنصرف!$E$2:$E$6000) -> 0 | M25: =SUMIF(المنصرف!$D$2:$D$6000,E25,المنصرف!$G$2:$G$6000) -> 0 | N25: =SUMIF(المنصرف!$D$2:$D$6000,E25,المنصرف!$H$2:$H$6000) -> 0 | O25: =SUMIF(المرتجع!$D$2:$D$6000,E25,المرتجع!$E$2:$E$6000) -> 0 | P25: =SUMIF(المرتجع!$D$2:$D$6000,E25,المرتجع!$G$2:$G$6000) -> 0 | Q25: =SUMIF(المرتجع!$D$2:$D$6000,E25,المرتجع!$H$2:$H$6000) -> 0 | R25: 275.05 | S25: 0 | T25: 0 | AG25: =IFERROR(VLOOKUP(ROWS($AG$2:AG25),$AI$2:$AJ$932,2,0),"") -> 180 | AI25: =IF(ISNUMBER(SEARCH($AL$2,AJ25)),MAX($AI$1:AI24)+1,0) -> 0
A26: 25 | B26: اسود | C26: كروشيه | D26: 5سم | E26: اسود كروشيه 5سم | F26: 150 | I26: =SUMIF(الوارد!$D$2:$D$6000,E26,الوارد!$E$2:$E$6000) -> 1862.44 | J26: =SUMIF(الوارد!$D$2:$D$6000,E26,الوارد!$G$2:$G$6000) -> 0 | K26: =SUMIF(الوارد!$D$2:$D$6000,E26,الوارد!$H$2:$H$6000) -> 0 | L26: =SUMIF(المنصرف!$D$2:$D$6000,E26,المنصرف!$E$2:$E$6000) -> 0 | M26: =SUMIF(المنصرف!$D$2:$D$6000,E26,المنصرف!$G$2:$G$6000) -> 0 | N26: =SUMIF(المنصرف!$D$2:$D$6000,E26,المنصرف!$H$2:$H$6000) -> 0 | O26: =SUMIF(المرتجع!$D$2:$D$6000,E26,المرتجع!$E$2:$E$6000) -> 0 | P26: =SUMIF(المرتجع!$D$2:$D$6000,E26,المرتجع!$G$2:$G$6000) -> 0 | Q26: =SUMIF(المرتجع!$D$2:$D$6000,E26,المرتجع!$H$2:$H$6000) -> 0 | R26: 2012.44 | S26: 0 | T26: 0 | AA26: 180 | AG26: =IFERROR(VLOOKUP(ROWS($AG$2:AG26),$AI$2:$AJ$932,2,0),"") -> 185 | AI26: =IF(ISNUMBER(SEARCH($AL$2,AJ26)),MAX($AI$1:AI25)+1,0) -> 24 | AJ26: 180
A27: 26 | B27: اسود | C27: كروشيه | D27: 6 سم | E27: اسود كروشيه 6 سم | F27: 89 | I27: =SUMIF(الوارد!$D$2:$D$6000,E27,الوارد!$E$2:$E$6000) -> 0 | J27: =SUMIF(الوارد!$D$2:$D$6000,E27,الوارد!$G$2:$G$6000) -> 0 | K27: =SUMIF(الوارد!$D$2:$D$6000,E27,الوارد!$H$2:$H$6000) -> 0 | L27: =SUMIF(المنصرف!$D$2:$D$6000,E27,المنصرف!$E$2:$E$6000) -> 0 | M27: =SUMIF(المنصرف!$D$2:$D$6000,E27,المنصرف!$G$2:$G$6000) -> 0 | N27: =SUMIF(المنصرف!$D$2:$D$6000,E27,المنصرف!$H$2:$H$6000) -> 0 | O27: =SUMIF(المرتجع!$D$2:$D$6000,E27,المرتجع!$E$2:$E$6000) -> 0 | P27: =SUMIF(المرتجع!$D$2:$D$6000,E27,المرتجع!$G$2:$G$6000) -> 0 | Q27: =SUMIF(المرتجع!$D$2:$D$6000,E27,المرتجع!$H$2:$H$6000) -> 0 | R27: 89 | S27: 0 | T27: 0 | AA27: 185 | AG27: =IFERROR(VLOOKUP(ROWS($AG$2:AG27),$AI$2:$AJ$932,2,0),"") -> 190 | AI27: =IF(ISNUMBER(SEARCH($AL$2,AJ27)),MAX($AI$1:AI26)+1,0) -> 25 | AJ27: 185
A28: 27 | B28: اسود | C28: كروشيه | D28: 7 مم | E28: اسود كروشيه 7 مم | F28: 74 | I28: =SUMIF(الوارد!$D$2:$D$6000,E28,الوارد!$E$2:$E$6000) -> 0 | J28: =SUMIF(الوارد!$D$2:$D$6000,E28,الوارد!$G$2:$G$6000) -> 0 | K28: =SUMIF(الوارد!$D$2:$D$6000,E28,الوارد!$H$2:$H$6000) -> 0 | L28: =SUMIF(المنصرف!$D$2:$D$6000,E28,المنصرف!$E$2:$E$6000) -> 0 | M28: =SUMIF(المنصرف!$D$2:$D$6000,E28,المنصرف!$G$2:$G$6000) -> 0 | N28: =SUMIF(المنصرف!$D$2:$D$6000,E28,المنصرف!$H$2:$H$6000) -> 0 | O28: =SUMIF(المرتجع!$D$2:$D$6000,E28,المرتجع!$E$2:$E$6000) -> 0 | P28: =SUMIF(المرتجع!$D$2:$D$6000,E28,المرتجع!$G$2:$G$6000) -> 0 | Q28: =SUMIF(المرتجع!$D$2:$D$6000,E28,المرتجع!$H$2:$H$6000) -> 0 | R28: 74 | S28: 0 | T28: 0 | AA28: 190 | AG28: =IFERROR(VLOOKUP(ROWS($AG$2:AG28),$AI$2:$AJ$932,2,0),"") -> 195 | AI28: =IF(ISNUMBER(SEARCH($AL$2,AJ28)),MAX($AI$1:AI27)+1,0) -> 26 | AJ28: 190
A29: 28 | B29: اسود | C29: كروشيه | D29: 3 سم | E29: اسود كروشيه 3 سم | F29: 222 | I29: =SUMIF(الوارد!$D$2:$D$6000,E29,الوارد!$E$2:$E$6000) -> 418.17 | J29: =SUMIF(الوارد!$D$2:$D$6000,E29,الوارد!$G$2:$G$6000) -> 0 | K29: =SUMIF(الوارد!$D$2:$D$6000,E29,الوارد!$H$2:$H$6000) -> 0 | L29: =SUMIF(المنصرف!$D$2:$D$6000,E29,المنصرف!$E$2:$E$6000) -> 0 | M29: =SUMIF(المنصرف!$D$2:$D$6000,E29,المنصرف!$G$2:$G$6000) -> 0 | N29: =SUMIF(المنصرف!$D$2:$D$6000,E29,المنصرف!$H$2:$H$6000) -> 0 | O29: =SUMIF(المرتجع!$D$2:$D$6000,E29,المرتجع!$E$2:$E$6000) -> 0 | P29: =SUMIF(المرتجع!$D$2:$D$6000,E29,المرتجع!$G$2:$G$6000) -> 0 | Q29: =SUMIF(المرتجع!$D$2:$D$6000,E29,المرتجع!$H$2:$H$6000) -> 0 | R29: 640.17 | S29: 0 | T29: 0 | AA29: 195 | AG29: =IFERROR(VLOOKUP(ROWS($AG$2:AG29),$AI$2:$AJ$932,2,0),"") -> 200 | AI29: =IF(ISNUMBER(SEARCH($AL$2,AJ29)),MAX($AI$1:AI28)+1,0) -> 27 | AJ29: 195
A30: 29 | B30: اسود | C30: كروشيه | D30: 1 سم | E30: اسود كروشيه 1 سم | F30: 183.36 | I30: =SUMIF(الوارد!$D$2:$D$6000,E30,الوارد!$E$2:$E$6000) -> 0 | J30: =SUMIF(الوارد!$D$2:$D$6000,E30,الوارد!$G$2:$G$6000) -> 0 | K30: =SUMIF(الوارد!$D$2:$D$6000,E30,الوارد!$H$2:$H$6000) -> 0 | L30: =SUMIF(المنصرف!$D$2:$D$6000,E30,المنصرف!$E$2:$E$6000) -> 0 | M30: =SUMIF(المنصرف!$D$2:$D$6000,E30,المنصرف!$G$2:$G$6000) -> 0 | N30: =SUMIF(المنصرف!$D$2:$D$6000,E30,المنصرف!$H$2:$H$6000) -> 0 | O30: =SUMIF(المرتجع!$D$2:$D$6000,E30,المرتجع!$E$2:$E$6000) -> 0 | P30: =SUMIF(المرتجع!$D$2:$D$6000,E30,المرتجع!$G$2:$G$6000) -> 0 | Q30: =SUMIF(المرتجع!$D$2:$D$6000,E30,المرتجع!$H$2:$H$6000) -> 0 | R30: 183.36 | S30: 0 | T30: 0 | AA30: 200 | AG30: =IFERROR(VLOOKUP(ROWS($AG$2:AG30),$AI$2:$AJ$932,2,0),"") -> 205 | AI30: =IF(ISNUMBER(SEARCH($AL$2,AJ30)),MAX($AI$1:AI29)+1,0) -> 28 | AJ30: 200
A31: 30 | B31: اسود | C31: كروشيه | D31: 2.5 سم | E31: اسود كروشيه 2.5 سم | F31: 228.04 | I31: =SUMIF(الوارد!$D$2:$D$6000,E31,الوارد!$E$2:$E$6000) -> 406.18 | J31: =SUMIF(الوارد!$D$2:$D$6000,E31,الوارد!$G$2:$G$6000) -> 0 | K31: =SUMIF(الوارد!$D$2:$D$6000,E31,الوارد!$H$2:$H$6000) -> 0 | L31: =SUMIF(المنصرف!$D$2:$D$6000,E31,المنصرف!$E$2:$E$6000) -> 0 | M31: =SUMIF(المنصرف!$D$2:$D$6000,E31,المنصرف!$G$2:$G$6000) -> 0 | N31: =SUMIF(المنصرف!$D$2:$D$6000,E31,المنصرف!$H$2:$H$6000) -> 0 | O31: =SUMIF(المرتجع!$D$2:$D$6000,E31,المرتجع!$E$2:$E$6000) -> 0 | P31: =SUMIF(المرتجع!$D$2:$D$6000,E31,المرتجع!$G$2:$G$6000) -> 0 | Q31: =SUMIF(المرتجع!$D$2:$D$6000,E31,المرتجع!$H$2:$H$6000) -> 0 | R31: 634.22 | S31: 0 | T31: 0 | AA31: 205 | AG31: =IFERROR(VLOOKUP(ROWS($AG$2:AG31),$AI$2:$AJ$932,2,0),"") -> 210 | AI31: =IF(ISNUMBER(SEARCH($AL$2,AJ31)),MAX($AI$1:AI30)+1,0) -> 29 | AJ31: 205
A32: 31 | B32: اسود | C32: كروشيه | D32: 5.8 سم | E32: اسود كروشيه 5.8 سم | F32: 38 | I32: =SUMIF(الوارد!$D$2:$D$6000,E32,الوارد!$E$2:$E$6000) -> 132.08 | J32: =SUMIF(الوارد!$D$2:$D$6000,E32,الوارد!$G$2:$G$6000) -> 0 | K32: =SUMIF(الوارد!$D$2:$D$6000,E32,الوارد!$H$2:$H$6000) -> 0 | L32: =SUMIF(المنصرف!$D$2:$D$6000,E32,المنصرف!$E$2:$E$6000) -> 0 | M32: =SUMIF(المنصرف!$D$2:$D$6000,E32,المنصرف!$G$2:$G$6000) -> 0 | N32: =SUMIF(المنصرف!$D$2:$D$6000,E32,المنصرف!$H$2:$H$6000) -> 0 | O32: =SUMIF(المرتجع!$D$2:$D$6000,E32,المرتجع!$E$2:$E$6000) -> 0 | P32: =SUMIF(المرتجع!$D$2:$D$6000,E32,المرتجع!$G$2:$G$6000) -> 0 | Q32: =SUMIF(المرتجع!$D$2:$D$6000,E32,المرتجع!$H$2:$H$6000) -> 0 | R32: 170.08 | S32: 0 | T32: 0 | AA32: 210 | AG32: =IFERROR(VLOOKUP(ROWS($AG$2:AG32),$AI$2:$AJ$932,2,0),"") -> 215 | AI32: =IF(ISNUMBER(SEARCH($AL$2,AJ32)),MAX($AI$1:AI31)+1,0) -> 30 | AJ32: 210
A33: 32 | B33: اسود | C33: كروشيه | D33: 4.7 سم | E33: اسود كروشيه 4.7 سم | F33: 213 | I33: =SUMIF(الوارد!$D$2:$D$6000,E33,الوارد!$E$2:$E$6000) -> 0 | J33: =SUMIF(الوارد!$D$2:$D$6000,E33,الوارد!$G$2:$G$6000) -> 0 | K33: =SUMIF(الوارد!$D$2:$D$6000,E33,الوارد!$H$2:$H$6000) -> 0 | L33: =SUMIF(المنصرف!$D$2:$D$6000,E33,المنصرف!$E$2:$E$6000) -> 0 | M33: =SUMIF(المنصرف!$D$2:$D$6000,E33,المنصرف!$G$2:$G$6000) -> 0 | N33: =SUMIF(المنصرف!$D$2:$D$6000,E33,المنصرف!$H$2:$H$6000) -> 0 | O33: =SUMIF(المرتجع!$D$2:$D$6000,E33,المرتجع!$E$2:$E$6000) -> 0 | P33: =SUMIF(المرتجع!$D$2:$D$6000,E33,المرتجع!$G$2:$G$6000) -> 0 | Q33: =SUMIF(المرتجع!$D$2:$D$6000,E33,المرتجع!$H$2:$H$6000) -> 0 | R33: 213 | S33: 0 | T33: 0 | AA33: 215 | AG33: =IFERROR(VLOOKUP(ROWS($AG$2:AG33),$AI$2:$AJ$932,2,0),"") -> 220 | AI33: =IF(ISNUMBER(SEARCH($AL$2,AJ33)),MAX($AI$1:AI32)+1,0) -> 31 | AJ33: 215
A34: 33 | B34: اسود | C34: كروشيه | D34: 4.3 سم | E34: اسود كروشيه 4.3 سم | F34: 33 | I34: =SUMIF(الوارد!$D$2:$D$6000,E34,الوارد!$E$2:$E$6000) -> 0 | J34: =SUMIF(الوارد!$D$2:$D$6000,E34,الوارد!$G$2:$G$6000) -> 0 | K34: =SUMIF(الوارد!$D$2:$D$6000,E34,الوارد!$H$2:$H$6000) -> 0 | L34: =SUMIF(المنصرف!$D$2:$D$6000,E34,المنصرف!$E$2:$E$6000) -> 0 | M34: =SUMIF(المنصرف!$D$2:$D$6000,E34,المنصرف!$G$2:$G$6000) -> 0 | N34: =SUMIF(المنصرف!$D$2:$D$6000,E34,المنصرف!$H$2:$H$6000) -> 0 | O34: =SUMIF(المرتجع!$D$2:$D$6000,E34,المرتجع!$E$2:$E$6000) -> 0 | P34: =SUMIF(المرتجع!$D$2:$D$6000,E34,المرتجع!$G$2:$G$6000) -> 0 | Q34: =SUMIF(المرتجع!$D$2:$D$6000,E34,المرتجع!$H$2:$H$6000) -> 0 | R34: 33 | S34: 0 | T34: 0 | AA34: 220 | AG34: =IFERROR(VLOOKUP(ROWS($AG$2:AG34),$AI$2:$AJ$932,2,0),"") -> 225 | AI34: =IF(ISNUMBER(SEARCH($AL$2,AJ34)),MAX($AI$1:AI33)+1,0) -> 32 | AJ34: 220
A35: 34 | B35: اسود | C35: كروشيه | D35: 1.4 سم | E35: اسود كروشيه 1.4 سم | F35: 34 | I35: =SUMIF(الوارد!$D$2:$D$6000,E35,الوارد!$E$2:$E$6000) -> 0 | J35: =SUMIF(الوارد!$D$2:$D$6000,E35,الوارد!$G$2:$G$6000) -> 0 | K35: =SUMIF(الوارد!$D$2:$D$6000,E35,الوارد!$H$2:$H$6000) -> 0 | L35: =SUMIF(المنصرف!$D$2:$D$6000,E35,المنصرف!$E$2:$E$6000) -> 0 | M35: =SUMIF(المنصرف!$D$2:$D$6000,E35,المنصرف!$G$2:$G$6000) -> 0 | N35: =SUMIF(المنصرف!$D$2:$D$6000,E35,المنصرف!$H$2:$H$6000) -> 0 | O35: =SUMIF(المرتجع!$D$2:$D$6000,E35,المرتجع!$E$2:$E$6000) -> 0 | P35: =SUMIF(المرتجع!$D$2:$D$6000,E35,المرتجع!$G$2:$G$6000) -> 0 | Q35: =SUMIF(المرتجع!$D$2:$D$6000,E35,المرتجع!$H$2:$H$6000) -> 0 | R35: 34 | S35: 0 | T35: 0 | AA35: 225 | AG35: =IFERROR(VLOOKUP(ROWS($AG$2:AG35),$AI$2:$AJ$932,2,0),"") -> 230 | AI35: =IF(ISNUMBER(SEARCH($AL$2,AJ35)),MAX($AI$1:AI34)+1,0) -> 33 | AJ35: 225
A36: 35 | B36: رصاصي | C36: كروشيه | D36: 3 سم | E36: رصاصي كروشيه 3 سم | F36: 162 | I36: =SUMIF(الوارد!$D$2:$D$6000,E36,الوارد!$E$2:$E$6000) -> 0 | J36: =SUMIF(الوارد!$D$2:$D$6000,E36,الوارد!$G$2:$G$6000) -> 0 | K36: =SUMIF(الوارد!$D$2:$D$6000,E36,الوارد!$H$2:$H$6000) -> 0 | L36: =SUMIF(المنصرف!$D$2:$D$6000,E36,المنصرف!$E$2:$E$6000) -> 0 | M36: =SUMIF(المنصرف!$D$2:$D$6000,E36,المنصرف!$G$2:$G$6000) -> 0 | N36: =SUMIF(المنصرف!$D$2:$D$6000,E36,المنصرف!$H$2:$H$6000) -> 0 | O36: =SUMIF(المرتجع!$D$2:$D$6000,E36,المرتجع!$E$2:$E$6000) -> 0 | P36: =SUMIF(المرتجع!$D$2:$D$6000,E36,المرتجع!$G$2:$G$6000) -> 0 | Q36: =SUMIF(المرتجع!$D$2:$D$6000,E36,المرتجع!$H$2:$H$6000) -> 0 | R36: 162 | S36: 0 | T36: 0 | AA36: 230 | AG36: =IFERROR(VLOOKUP(ROWS($AG$2:AG36),$AI$2:$AJ$932,2,0),"") -> 235 | AI36: =IF(ISNUMBER(SEARCH($AL$2,AJ36)),MAX($AI$1:AI35)+1,0) -> 34 | AJ36: 230
A37: 36 | B37: الوان | C37: ويفن خام | E37: الوان ويفن خام | F37: 1602.11 | I37: =SUMIF(الوارد!$D$2:$D$6000,E37,الوارد!$E$2:$E$6000) -> 2242 | J37: =SUMIF(الوارد!$D$2:$D$6000,E37,الوارد!$G$2:$G$6000) -> 0 | K37: =SUMIF(الوارد!$D$2:$D$6000,E37,الوارد!$H$2:$H$6000) -> 0 | L37: =SUMIF(المنصرف!$D$2:$D$6000,E37,المنصرف!$E$2:$E$6000) -> 0 | M37: =SUMIF(المنصرف!$D$2:$D$6000,E37,المنصرف!$G$2:$G$6000) -> 0 | N37: =SUMIF(المنصرف!$D$2:$D$6000,E37,المنصرف!$H$2:$H$6000) -> 0 | O37: =SUMIF(المرتجع!$D$2:$D$6000,E37,المرتجع!$E$2:$E$6000) -> 57.3 | P37: =SUMIF(المرتجع!$D$2:$D$6000,E37,المرتجع!$G$2:$G$6000) -> 0 | Q37: =SUMIF(المرتجع!$D$2:$D$6000,E37,المرتجع!$H$2:$H$6000) -> 0 | R37: 3901.41 | S37: 0 | T37: 0 | AA37: 235 | AG37: =IFERROR(VLOOKUP(ROWS($AG$2:AG37),$AI$2:$AJ$932,2,0),"") -> 240 | AI37: =IF(ISNUMBER(SEARCH($AL$2,AJ37)),MAX($AI$1:AI36)+1,0) -> 35 | AJ37: 235
A38: 37 | B38: ألوان | C38: ويفين | D38: مقاسات مختلفة | E38: ألوان ويفين مقاسات مختلفة | F38: 482.78 | I38: =SUMIF(الوارد!$D$2:$D$6000,E38,الوارد!$E$2:$E$6000) -> 3180.46 | J38: =SUMIF(الوارد!$D$2:$D$6000,E38,الوارد!$G$2:$G$6000) -> 0 | K38: =SUMIF(الوارد!$D$2:$D$6000,E38,الوارد!$H$2:$H$6000) -> 0 | L38: =SUMIF(المنصرف!$D$2:$D$6000,E38,المنصرف!$E$2:$E$6000) -> 0 | M38: =SUMIF(المنصرف!$D$2:$D$6000,E38,المنصرف!$G$2:$G$6000) -> 0 | N38: =SUMIF(المنصرف!$D$2:$D$6000,E38,المنصرف!$H$2:$H$6000) -> 0 | O38: =SUMIF(المرتجع!$D$2:$D$6000,E38,المرتجع!$E$2:$E$6000) -> 2377.87 | P38: =SUMIF(المرتجع!$D$2:$D$6000,E38,المرتجع!$G$2:$G$6000) -> 0 | Q38: =SUMIF(المرتجع!$D$2:$D$6000,E38,المرتجع!$H$2:$H$6000) -> 0 | R38: 6041.11 | S38: 0 | T38: 0 | AA38: 240 | AG38: =IFERROR(VLOOKUP(ROWS($AG$2:AG38),$AI$2:$AJ$932,2,0),"") -> 245 | AI38: =IF(ISNUMBER(SEARCH($AL$2,AJ38)),MAX($AI$1:AI37)+1,0) -> 36 | AJ38: 240
A39: 38 | B39: الوان | C39: كردون قطن | D39: مقاسات مختلفة | E39: الوان كردون قطن مقاسات مختلفة | F39: 4127.46 | I39: =SUMIF(الوارد!$D$2:$D$6000,E39,الوارد!$E$2:$E$6000) -> 2653.34 | J39: =SUMIF(الوارد!$D$2:$D$6000,E39,الوارد!$G$2:$G$6000) -> 0 | K39: =SUMIF(الوارد!$D$2:$D$6000,E39,الوارد!$H$2:$H$6000) -> 0 | L39: =SUMIF(المنصرف!$D$2:$D$6000,E39,المنصرف!$E$2:$E$6000) -> 0 | M39: =SUMIF(المنصرف!$D$2:$D$6000,E39,المنصرف!$G$2:$G$6000) -> 0 | N39: =SUMIF(المنصرف!$D$2:$D$6000,E39,المنصرف!$H$2:$H$6000) -> 0 | O39: =SUMIF(المرتجع!$D$2:$D$6000,E39,المرتجع!$E$2:$E$6000) -> 203.57 | P39: =SUMIF(المرتجع!$D$2:$D$6000,E39,المرتجع!$G$2:$G$6000) -> 0 | Q39: =SUMIF(المرتجع!$D$2:$D$6000,E39,المرتجع!$H$2:$H$6000) -> 0 | R39: 6984.37 | S39: 0 | T39: 0 | AA39: 245 | AG39: =IFERROR(VLOOKUP(ROWS($AG$2:AG39),$AI$2:$AJ$932,2,0),"") -> 250 | AI39: =IF(ISNUMBER(SEARCH($AL$2,AJ39)),MAX($AI$1:AI38)+1,0) -> 37 | AJ39: 245
A40: 39 | B40: الوان | C40: كردون بوليبستير | D40: مقاسات مختلفة | E40: الوان كردون بوليبستير مقاسات مختلفة | F40: 1795.83 | I40: =SUMIF(الوارد!$D$2:$D$6000,E40,الوارد!$E$2:$E$6000) -> 3152.94 | J40: =SUMIF(الوارد!$D$2:$D$6000,E40,الوارد!$G$2:$G$6000) -> 0 | K40: =SUMIF(الوارد!$D$2:$D$6000,E40,الوارد!$H$2:$H$6000) -> 0 | L40: =SUMIF(المنصرف!$D$2:$D$6000,E40,المنصرف!$E$2:$E$6000) -> 0 | M40: =SUMIF(المنصرف!$D$2:$D$6000,E40,المنصرف!$G$2:$G$6000) -> 0 | N40: =SUMIF(المنصرف!$D$2:$D$6000,E40,المنصرف!$H$2:$H$6000) -> 0 | O40: =SUMIF(المرتجع!$D$2:$D$6000,E40,المرتجع!$E$2:$E$6000) -> 0 | P40: =SUMIF(المرتجع!$D$2:$D$6000,E40,المرتجع!$G$2:$G$6000) -> 0 | Q40: =SUMIF(المرتجع!$D$2:$D$6000,E40,المرتجع!$H$2:$H$6000) -> 0 | R40: 4948.77 | S40: 0 | T40: 0 | AA40: 250 | AG40: =IFERROR(VLOOKUP(ROWS($AG$2:AG40),$AI$2:$AJ$932,2,0),"") -> 255 | AI40: =IF(ISNUMBER(SEARCH($AL$2,AJ40)),MAX($AI$1:AI39)+1,0) -> 38 | AJ40: 250
A41: 40 | B41: درجة | C41: جاكار | E41: درجة جاكار | F41: 35189.93 | I41: =SUMIF(الوارد!$D$2:$D$6000,E41,الوارد!$E$2:$E$6000) -> 498.85 | J41: =SUMIF(الوارد!$D$2:$D$6000,E41,الوارد!$G$2:$G$6000) -> 0 | K41: =SUMIF(الوارد!$D$2:$D$6000,E41,الوارد!$H$2:$H$6000) -> 0 | L41: =SUMIF(المنصرف!$D$2:$D$6000,E41,المنصرف!$E$2:$E$6000) -> 0 | M41: =SUMIF(المنصرف!$D$2:$D$6000,E41,المنصرف!$G$2:$G$6000) -> 0 | N41: =SUMIF(المنصرف!$D$2:$D$6000,E41,المنصرف!$H$2:$H$6000) -> 0 | O41: =SUMIF(المرتجع!$D$2:$D$6000,E41,المرتجع!$E$2:$E$6000) -> 350 | P41: =SUMIF(المرتجع!$D$2:$D$6000,E41,المرتجع!$G$2:$G$6000) -> 0 | Q41: =SUMIF(المرتجع!$D$2:$D$6000,E41,المرتجع!$H$2:$H$6000) -> 0 | R41: 36038.78 | S41: 0 | T41: 0 | AA41: 255 | AG41: =IFERROR(VLOOKUP(ROWS($AG$2:AG41),$AI$2:$AJ$932,2,0),"") -> 260 | AI41: =IF(ISNUMBER(SEARCH($AL$2,AJ41)),MAX($AI$1:AI40)+1,0) -> 39 | AJ41: 255
A42: 41 | B42: الوان | C42: جاكار | D42: 3 سم | E42: الوان جاكار 3 سم | F42: 8656.14 | I42: =SUMIF(الوارد!$D$2:$D$6000,E42,الوارد!$E$2:$E$6000) -> 16582.66 | J42: =SUMIF(الوارد!$D$2:$D$6000,E42,الوارد!$G$2:$G$6000) -> 0 | K42: =SUMIF(الوارد!$D$2:$D$6000,E42,الوارد!$H$2:$H$6000) -> 0 | L42: =SUMIF(المنصرف!$D$2:$D$6000,E42,المنصرف!$E$2:$E$6000) -> 0 | M42: =SUMIF(المنصرف!$D$2:$D$6000,E42,المنصرف!$G$2:$G$6000) -> 0 | N42: =SUMIF(المنصرف!$D$2:$D$6000,E42,المنصرف!$H$2:$H$6000) -> 0 | O42: =SUMIF(المرتجع!$D$2:$D$6000,E42,المرتجع!$E$2:$E$6000) -> 0 | P42: =SUMIF(المرتجع!$D$2:$D$6000,E42,المرتجع!$G$2:$G$6000) -> 0 | Q42: =SUMIF(المرتجع!$D$2:$D$6000,E42,المرتجع!$H$2:$H$6000) -> 0 | R42: 25238.8 | S42: 0 | T42: 0 | AA42: 260 | AG42: =IFERROR(VLOOKUP(ROWS($AG$2:AG42),$AI$2:$AJ$932,2,0),"") -> 265 | AI42: =IF(ISNUMBER(SEARCH($AL$2,AJ42)),MAX($AI$1:AI41)+1,0) -> 40 | AJ42: 260
A43: 42 | B43: الوان | C43: جاكار | D43: 4سم | E43: الوان جاكار 4سم | I43: =SUMIF(الوارد!$D$2:$D$6000,E43,الوارد!$E$2:$E$6000) -> 326.83 | J43: =SUMIF(الوارد!$D$2:$D$6000,E43,الوارد!$G$2:$G$6000) -> 0 | K43: =SUMIF(الوارد!$D$2:$D$6000,E43,الوارد!$H$2:$H$6000) -> 0 | L43: =SUMIF(المنصرف!$D$2:$D$6000,E43,المنصرف!$E$2:$E$6000) -> 0 | M43: =SUMIF(المنصرف!$D$2:$D$6000,E43,المنصرف!$G$2:$G$6000) -> 0 | N43: =SUMIF(المنصرف!$D$2:$D$6000,E43,المنصرف!$H$2:$H$6000) -> 0 | O43: =SUMIF(المرتجع!$D$2:$D$6000,E43,المرتجع!$E$2:$E$6000) -> 0 | P43: =SUMIF(المرتجع!$D$2:$D$6000,E43,المرتجع!$G$2:$G$6000) -> 0 | Q43: =SUMIF(المرتجع!$D$2:$D$6000,E43,المرتجع!$H$2:$H$6000) -> 0 | R43: 326.83 | S43: 0 | T43: 0 | AA43: 265 | AG43: =IFERROR(VLOOKUP(ROWS($AG$2:AG43),$AI$2:$AJ$932,2,0),"") -> 270 | AI43: =IF(ISNUMBER(SEARCH($AL$2,AJ43)),MAX($AI$1:AI42)+1,0) -> 41 | AJ43: 265
A44: 43 | B44: اسود | C44: كروشيه | D44: 4سم | E44: اسود كروشيه 4سم | I44: =SUMIF(الوارد!$D$2:$D$6000,E44,الوارد!$E$2:$E$6000) -> 1121.32 | J44: =SUMIF(الوارد!$D$2:$D$6000,E44,الوارد!$G$2:$G$6000) -> 0 | K44: =SUMIF(الوارد!$D$2:$D$6000,E44,الوارد!$H$2:$H$6000) -> 0 | L44: =SUMIF(المنصرف!$D$2:$D$6000,E44,المنصرف!$E$2:$E$6000) -> 0 | M44: =SUMIF(المنصرف!$D$2:$D$6000,E44,المنصرف!$G$2:$G$6000) -> 0 | N44: =SUMIF(المنصرف!$D$2:$D$6000,E44,المنصرف!$H$2:$H$6000) -> 0 | O44: =SUMIF(المرتجع!$D$2:$D$6000,E44,المرتجع!$E$2:$E$6000) -> 0 | P44: =SUMIF(المرتجع!$D$2:$D$6000,E44,المرتجع!$G$2:$G$6000) -> 0 | Q44: =SUMIF(المرتجع!$D$2:$D$6000,E44,المرتجع!$H$2:$H$6000) -> 0 | R44: 1121.32 | S44: 0 | T44: 0 | AA44: 270 | AG44: =IFERROR(VLOOKUP(ROWS($AG$2:AG44),$AI$2:$AJ$932,2,0),"") -> 275 | AI44: =IF(ISNUMBER(SEARCH($AL$2,AJ44)),MAX($AI$1:AI43)+1,0) -> 42 | AJ44: 270
A45: 44 | B45: ألوان | C45: كروشيه | D45: مقاسات مختلفة | E45: ألوان كروشيه مقاسات مختلفة | I45: =SUMIF(الوارد!$D$2:$D$6000,E45,الوارد!$E$2:$E$6000) -> 95.91 | J45: =SUMIF(الوارد!$D$2:$D$6000,E45,الوارد!$G$2:$G$6000) -> 0 | K45: =SUMIF(الوارد!$D$2:$D$6000,E45,الوارد!$H$2:$H$6000) -> 0 | L45: =SUMIF(المنصرف!$D$2:$D$6000,E45,المنصرف!$E$2:$E$6000) -> 0 | M45: =SUMIF(المنصرف!$D$2:$D$6000,E45,المنصرف!$G$2:$G$6000) -> 0 | N45: =SUMIF(المنصرف!$D$2:$D$6000,E45,المنصرف!$H$2:$H$6000) -> 0 | O45: =SUMIF(المرتجع!$D$2:$D$6000,E45,المرتجع!$E$2:$E$6000) -> 0 | P45: =SUMIF(المرتجع!$D$2:$D$6000,E45,المرتجع!$G$2:$G$6000) -> 0 | Q45: =SUMIF(المرتجع!$D$2:$D$6000,E45,المرتجع!$H$2:$H$6000) -> 0 | R45: 95.91 | S45: 0 | T45: 0 | AA45: 275 | AG45: =IFERROR(VLOOKUP(ROWS($AG$2:AG45),$AI$2:$AJ$932,2,0),"") -> 280 | AI45: =IF(ISNUMBER(SEARCH($AL$2,AJ45)),MAX($AI$1:AI44)+1,0) -> 43 | AJ45: 275
A46: 45 | B46: درجة | C46: كروشيه | E46: درجة كروشيه | I46: =SUMIF(الوارد!$D$2:$D$6000,E46,الوارد!$E$2:$E$6000) -> 485.8 | J46: =SUMIF(الوارد!$D$2:$D$6000,E46,الوارد!$G$2:$G$6000) -> 0 | K46: =SUMIF(الوارد!$D$2:$D$6000,E46,الوارد!$H$2:$H$6000) -> 0 | L46: =SUMIF(المنصرف!$D$2:$D$6000,E46,المنصرف!$E$2:$E$6000) -> 0 | M46: =SUMIF(المنصرف!$D$2:$D$6000,E46,المنصرف!$G$2:$G$6000) -> 0 | N46: =SUMIF(المنصرف!$D$2:$D$6000,E46,المنصرف!$H$2:$H$6000) -> 0 | O46: =SUMIF(المرتجع!$D$2:$D$6000,E46,المرتجع!$E$2:$E$6000) -> 0 | P46: =SUMIF(المرتجع!$D$2:$D$6000,E46,المرتجع!$G$2:$G$6000) -> 0 | Q46: =SUMIF(المرتجع!$D$2:$D$6000,E46,المرتجع!$H$2:$H$6000) -> 0 | R46: 485.8 | S46: 0 | T46: 0 | AA46: 280 | AG46: =IFERROR(VLOOKUP(ROWS($AG$2:AG46),$AI$2:$AJ$932,2,0),"") -> 305 | AI46: =IF(ISNUMBER(SEARCH($AL$2,AJ46)),MAX($AI$1:AI45)+1,0) -> 44 | AJ46: 280
A47: 46 | B47: درجة | C47: ويفين | E47: درجة ويفين | I47: =SUMIF(الوارد!$D$2:$D$6000,E47,الوارد!$E$2:$E$6000) -> 157.4 | J47: =SUMIF(الوارد!$D$2:$D$6000,E47,الوارد!$G$2:$G$6000) -> 0 | K47: =SUMIF(الوارد!$D$2:$D$6000,E47,الوارد!$H$2:$H$6000) -> 0 | L47: =SUMIF(المنصرف!$D$2:$D$6000,E47,المنصرف!$E$2:$E$6000) -> 0 | M47: =SUMIF(المنصرف!$D$2:$D$6000,E47,المنصرف!$G$2:$G$6000) -> 0 | N47: =SUMIF(المنصرف!$D$2:$D$6000,E47,المنصرف!$H$2:$H$6000) -> 0 | O47: =SUMIF(المرتجع!$D$2:$D$6000,E47,المرتجع!$E$2:$E$6000) -> 0 | P47: =SUMIF(المرتجع!$D$2:$D$6000,E47,المرتجع!$G$2:$G$6000) -> 0 | Q47: =SUMIF(المرتجع!$D$2:$D$6000,E47,المرتجع!$H$2:$H$6000) -> 0 | R47: 157.4 | S47: 0 | T47: 0 | AA47: 305 | AG47: =IFERROR(VLOOKUP(ROWS($AG$2:AG47),$AI$2:$AJ$932,2,0),"") -> 310 | AI47: =IF(ISNUMBER(SEARCH($AL$2,AJ47)),MAX($AI$1:AI46)+1,0) -> 45 | AJ47: 305
A48: 47 | B48: درجة | C48: كوردون | E48: درجة كوردون | I48: =SUMIF(الوارد!$D$2:$D$6000,E48,الوارد!$E$2:$E$6000) -> 217.65 | J48: =SUMIF(الوارد!$D$2:$D$6000,E48,الوارد!$G$2:$G$6000) -> 0 | K48: =SUMIF(الوارد!$D$2:$D$6000,E48,الوارد!$H$2:$H$6000) -> 0 | L48: =SUMIF(المنصرف!$D$2:$D$6000,E48,المنصرف!$E$2:$E$6000) -> 0 | M48: =SUMIF(المنصرف!$D$2:$D$6000,E48,المنصرف!$G$2:$G$6000) -> 0 | N48: =SUMIF(المنصرف!$D$2:$D$6000,E48,المنصرف!$H$2:$H$6000) -> 0 | O48: =SUMIF(المرتجع!$D$2:$D$6000,E48,المرتجع!$E$2:$E$6000) -> 0 | P48: =SUMIF(المرتجع!$D$2:$D$6000,E48,المرتجع!$G$2:$G$6000) -> 0 | Q48: =SUMIF(المرتجع!$D$2:$D$6000,E48,المرتجع!$H$2:$H$6000) -> 0 | R48: 217.65 | S48: 0 | T48: 0 | AA48: 310 | AG48: =IFERROR(VLOOKUP(ROWS($AG$2:AG48),$AI$2:$AJ$932,2,0),"") -> 315 | AI48: =IF(ISNUMBER(SEARCH($AL$2,AJ48)),MAX($AI$1:AI47)+1,0) -> 46 | AJ48: 310
A49: 48 | B49: ألوان | C49: كوردون خام | E49: ألوان كوردون خام | I49: =SUMIF(الوارد!$D$2:$D$6000,E49,الوارد!$E$2:$E$6000) -> 120 | J49: =SUMIF(الوارد!$D$2:$D$6000,E49,الوارد!$G$2:$G$6000) -> 0 | K49: =SUMIF(الوارد!$D$2:$D$6000,E49,الوارد!$H$2:$H$6000) -> 0 | L49: =SUMIF(المنصرف!$D$2:$D$6000,E49,المنصرف!$E$2:$E$6000) -> 0 | M49: =SUMIF(المنصرف!$D$2:$D$6000,E49,المنصرف!$G$2:$G$6000) -> 0 | N49: =SUMIF(المنصرف!$D$2:$D$6000,E49,المنصرف!$H$2:$H$6000) -> 0 | O49: =SUMIF(المرتجع!$D$2:$D$6000,E49,المرتجع!$E$2:$E$6000) -> 0 | P49: =SUMIF(المرتجع!$D$2:$D$6000,E49,المرتجع!$G$2:$G$6000) -> 0 | Q49: =SUMIF(المرتجع!$D$2:$D$6000,E49,المرتجع!$H$2:$H$6000) -> 0 | R49: 120 | S49: 0 | T49: 0 | AA49: 315 | AG49: =IFERROR(VLOOKUP(ROWS($AG$2:AG49),$AI$2:$AJ$932,2,0),"") -> 320 | AI49: =IF(ISNUMBER(SEARCH($AL$2,AJ49)),MAX($AI$1:AI48)+1,0) -> 47 | AJ49: 315
A50: 49 | B50: ألوان | C50: جاكار | D50: 5سم | E50: ألوان جاكار 5سم | I50: =SUMIF(الوارد!$D$2:$D$6000,E50,الوارد!$E$2:$E$6000) -> 203 | J50: =SUMIF(الوارد!$D$2:$D$6000,E50,الوارد!$G$2:$G$6000) -> 0 | K50: =SUMIF(الوارد!$D$2:$D$6000,E50,الوارد!$H$2:$H$6000) -> 0 | L50: =SUMIF(المنصرف!$D$2:$D$6000,E50,المنصرف!$E$2:$E$6000) -> 0 | M50: =SUMIF(المنصرف!$D$2:$D$6000,E50,المنصرف!$G$2:$G$6000) -> 0 | N50: =SUMIF(المنصرف!$D$2:$D$6000,E50,المنصرف!$H$2:$H$6000) -> 0 | O50: =SUMIF(المرتجع!$D$2:$D$6000,E50,المرتجع!$E$2:$E$6000) -> 0 | P50: =SUMIF(المرتجع!$D$2:$D$6000,E50,المرتجع!$G$2:$G$6000) -> 0 | Q50: =SUMIF(المرتجع!$D$2:$D$6000,E50,المرتجع!$H$2:$H$6000) -> 0 | R50: 203 | S50: 0 | T50: 0 | AA50: 320 | AG50: =IFERROR(VLOOKUP(ROWS($AG$2:AG50),$AI$2:$AJ$932,2,0),"") -> 325 | AI50: =IF(ISNUMBER(SEARCH($AL$2,AJ50)),MAX($AI$1:AI49)+1,0) -> 48 | AJ50: 320
A51: 50 | B51: اسود | C51: كروشيه | D51: 3.2سم | E51: اسود كروشيه 3.2سم | I51: =SUMIF(الوارد!$D$2:$D$6000,E51,الوارد!$E$2:$E$6000) -> 65.56 | J51: =SUMIF(الوارد!$D$2:$D$6000,E51,الوارد!$G$2:$G$6000) -> 0 | K51: =SUMIF(الوارد!$D$2:$D$6000,E51,الوارد!$H$2:$H$6000) -> 0 | L51: =SUMIF(المنصرف!$D$2:$D$6000,E51,المنصرف!$E$2:$E$6000) -> 0 | M51: =SUMIF(المنصرف!$D$2:$D$6000,E51,المنصرف!$G$2:$G$6000) -> 0 | N51: =SUMIF(المنصرف!$D$2:$D$6000,E51,المنصرف!$H$2:$H$6000) -> 0 | O51: =SUMIF(المرتجع!$D$2:$D$6000,E51,المرتجع!$E$2:$E$6000) -> 0 | P51: =SUMIF(المرتجع!$D$2:$D$6000,E51,المرتجع!$G$2:$G$6000) -> 0 | Q51: =SUMIF(المرتجع!$D$2:$D$6000,E51,المرتجع!$H$2:$H$6000) -> 0 | R51: 65.56 | S51: 0 | T51: 0 | AA51: 325 | AG51: =IFERROR(VLOOKUP(ROWS($AG$2:AG51),$AI$2:$AJ$932,2,0),"") -> 330 | AI51: =IF(ISNUMBER(SEARCH($AL$2,AJ51)),MAX($AI$1:AI50)+1,0) -> 49 | AJ51: 325
I52: =SUMIF(الوارد!$D$2:$D$6000,E52,الوارد!$E$2:$E$6000) -> 0 | J52: =SUMIF(الوارد!$D$2:$D$6000,E52,الوارد!$G$2:$G$6000) -> 0 | K52: =SUMIF(الوارد!$D$2:$D$6000,E52,الوارد!$H$2:$H$6000) -> 0 | L52: =SUMIF(المنصرف!$D$2:$D$6000,E52,المنصرف!$E$2:$E$6000) -> 0 | M52: =SUMIF(المنصرف!$D$2:$D$6000,E52,المنصرف!$G$2:$G$6000) -> 0 | N52: =SUMIF(المنصرف!$D$2:$D$6000,E52,المنصرف!$H$2:$H$6000) -> 0 | O52: =SUMIF(المرتجع!$D$2:$D$6000,E52,المرتجع!$E$2:$E$6000) -> 0 | P52: =SUMIF(المرتجع!$D$2:$D$6000,E52,المرتجع!$G$2:$G$6000) -> 0 | Q52: =SUMIF(المرتجع!$D$2:$D$6000,E52,المرتجع!$H$2:$H$6000) -> 0 | R52: 0 | S52: 0 | T52: 0 | AA52: 330 | AG52: =IFERROR(VLOOKUP(ROWS($AG$2:AG52),$AI$2:$AJ$932,2,0),"") -> 335 | AI52: =IF(ISNUMBER(SEARCH($AL$2,AJ52)),MAX($AI$1:AI51)+1,0) -> 50 | AJ52: 330
I53: =SUMIF(الوارد!$D$2:$D$6000,E53,الوارد!$E$2:$E$6000) -> 0 | J53: =SUMIF(الوارد!$D$2:$D$6000,E53,الوارد!$G$2:$G$6000) -> 0 | K53: =SUMIF(الوارد!$D$2:$D$6000,E53,الوارد!$H$2:$H$6000) -> 0 | L53: =SUMIF(المنصرف!$D$2:$D$6000,E53,المنصرف!$E$2:$E$6000) -> 0 | M53: =SUMIF(المنصرف!$D$2:$D$6000,E53,المنصرف!$G$2:$G$6000) -> 0 | N53: =SUMIF(المنصرف!$D$2:$D$6000,E53,المنصرف!$H$2:$H$6000) -> 0 | O53: =SUMIF(المرتجع!$D$2:$D$6000,E53,المرتجع!$E$2:$E$6000) -> 0 | P53: =SUMIF(المرتجع!$D$2:$D$6000,E53,المرتجع!$G$2:$G$6000) -> 0 | Q53: =SUMIF(المرتجع!$D$2:$D$6000,E53,المرتجع!$H$2:$H$6000) -> 0 | R53: 0 | S53: 0 | T53: 0 | AA53: 335 | AG53: =IFERROR(VLOOKUP(ROWS($AG$2:AG53),$AI$2:$AJ$932,2,0),"") -> 340 | AI53: =IF(ISNUMBER(SEARCH($AL$2,AJ53)),MAX($AI$1:AI52)+1,0) -> 51 | AJ53: 335
I54: =SUMIF(الوارد!$D$2:$D$6000,E54,الوارد!$E$2:$E$6000) -> 0 | J54: =SUMIF(الوارد!$D$2:$D$6000,E54,الوارد!$G$2:$G$6000) -> 0 | K54: =SUMIF(الوارد!$D$2:$D$6000,E54,الوارد!$H$2:$H$6000) -> 0 | L54: =SUMIF(المنصرف!$D$2:$D$6000,E54,المنصرف!$E$2:$E$6000) -> 0 | M54: =SUMIF(المنصرف!$D$2:$D$6000,E54,المنصرف!$G$2:$G$6000) -> 0 | N54: =SUMIF(المنصرف!$D$2:$D$6000,E54,المنصرف!$H$2:$H$6000) -> 0 | O54: =SUMIF(المرتجع!$D$2:$D$6000,E54,المرتجع!$E$2:$E$6000) -> 0 | P54: =SUMIF(المرتجع!$D$2:$D$6000,E54,المرتجع!$G$2:$G$6000) -> 0 | Q54: =SUMIF(المرتجع!$D$2:$D$6000,E54,المرتجع!$H$2:$H$6000) -> 0 | R54: 0 | S54: 0 | T54: 0 | AA54: 340 | AG54: =IFERROR(VLOOKUP(ROWS($AG$2:AG54),$AI$2:$AJ$932,2,0),"") -> 345 | AI54: =IF(ISNUMBER(SEARCH($AL$2,AJ54)),MAX($AI$1:AI53)+1,0) -> 52 | AJ54: 340
I55: =SUMIF(الوارد!$D$2:$D$6000,E55,الوارد!$E$2:$E$6000) -> 0 | J55: =SUMIF(الوارد!$D$2:$D$6000,E55,الوارد!$G$2:$G$6000) -> 0 | K55: =SUMIF(الوارد!$D$2:$D$6000,E55,الوارد!$H$2:$H$6000) -> 0 | L55: =SUMIF(المنصرف!$D$2:$D$6000,E55,المنصرف!$E$2:$E$6000) -> 0 | M55: =SUMIF(المنصرف!$D$2:$D$6000,E55,المنصرف!$G$2:$G$6000) -> 0 | N55: =SUMIF(المنصرف!$D$2:$D$6000,E55,المنصرف!$H$2:$H$6000) -> 0 | O55: =SUMIF(المرتجع!$D$2:$D$6000,E55,المرتجع!$E$2:$E$6000) -> 0 | P55: =SUMIF(المرتجع!$D$2:$D$6000,E55,المرتجع!$G$2:$G$6000) -> 0 | Q55: =SUMIF(المرتجع!$D$2:$D$6000,E55,المرتجع!$H$2:$H$6000) -> 0 | R55: 0 | S55: 0 | T55: 0 | AA55: 345 | AG55: =IFERROR(VLOOKUP(ROWS($AG$2:AG55),$AI$2:$AJ$932,2,0),"") -> 350 | AI55: =IF(ISNUMBER(SEARCH($AL$2,AJ55)),MAX($AI$1:AI54)+1,0) -> 53 | AJ55: 345
I56: =SUMIF(الوارد!$D$2:$D$6000,E56,الوارد!$E$2:$E$6000) -> 0 | J56: =SUMIF(الوارد!$D$2:$D$6000,E56,الوارد!$G$2:$G$6000) -> 0 | K56: =SUMIF(الوارد!$D$2:$D$6000,E56,الوارد!$H$2:$H$6000) -> 0 | L56: =SUMIF(المنصرف!$D$2:$D$6000,E56,المنصرف!$E$2:$E$6000) -> 0 | M56: =SUMIF(المنصرف!$D$2:$D$6000,E56,المنصرف!$G$2:$G$6000) -> 0 | N56: =SUMIF(المنصرف!$D$2:$D$6000,E56,المنصرف!$H$2:$H$6000) -> 0 | O56: =SUMIF(المرتجع!$D$2:$D$6000,E56,المرتجع!$E$2:$E$6000) -> 0 | P56: =SUMIF(المرتجع!$D$2:$D$6000,E56,المرتجع!$G$2:$G$6000) -> 0 | Q56: =SUMIF(المرتجع!$D$2:$D$6000,E56,المرتجع!$H$2:$H$6000) -> 0 | R56: 0 | S56: 0 | T56: 0 | AA56: 350 | AG56: =IFERROR(VLOOKUP(ROWS($AG$2:AG56),$AI$2:$AJ$932,2,0),"") -> 355 | AI56: =IF(ISNUMBER(SEARCH($AL$2,AJ56)),MAX($AI$1:AI55)+1,0) -> 54 | AJ56: 350
I57: =SUMIF(الوارد!$D$2:$D$6000,E57,الوارد!$E$2:$E$6000) -> 0 | J57: =SUMIF(الوارد!$D$2:$D$6000,E57,الوارد!$G$2:$G$6000) -> 0 | K57: =SUMIF(الوارد!$D$2:$D$6000,E57,الوارد!$H$2:$H$6000) -> 0 | L57: =SUMIF(المنصرف!$D$2:$D$6000,E57,المنصرف!$E$2:$E$6000) -> 0 | M57: =SUMIF(المنصرف!$D$2:$D$6000,E57,المنصرف!$G$2:$G$6000) -> 0 | N57: =SUMIF(المنصرف!$D$2:$D$6000,E57,المنصرف!$H$2:$H$6000) -> 0 | O57: =SUMIF(المرتجع!$D$2:$D$6000,E57,المرتجع!$E$2:$E$6000) -> 0 | P57: =SUMIF(المرتجع!$D$2:$D$6000,E57,المرتجع!$G$2:$G$6000) -> 0 | Q57: =SUMIF(المرتجع!$D$2:$D$6000,E57,المرتجع!$H$2:$H$6000) -> 0 | R57: 0 | S57: 0 | T57: 0 | AA57: 355 | AG57: =IFERROR(VLOOKUP(ROWS($AG$2:AG57),$AI$2:$AJ$932,2,0),"") -> 360 | AI57: =IF(ISNUMBER(SEARCH($AL$2,AJ57)),MAX($AI$1:AI56)+1,0) -> 55 | AJ57: 355
I58: =SUMIF(الوارد!$D$2:$D$6000,E58,الوارد!$E$2:$E$6000) -> 0 | J58: =SUMIF(الوارد!$D$2:$D$6000,E58,الوارد!$G$2:$G$6000) -> 0 | K58: =SUMIF(الوارد!$D$2:$D$6000,E58,الوارد!$H$2:$H$6000) -> 0 | L58: =SUMIF(المنصرف!$D$2:$D$6000,E58,المنصرف!$E$2:$E$6000) -> 0 | M58: =SUMIF(المنصرف!$D$2:$D$6000,E58,المنصرف!$G$2:$G$6000) -> 0 | N58: =SUMIF(المنصرف!$D$2:$D$6000,E58,المنصرف!$H$2:$H$6000) -> 0 | O58: =SUMIF(المرتجع!$D$2:$D$6000,E58,المرتجع!$E$2:$E$6000) -> 0 | P58: =SUMIF(المرتجع!$D$2:$D$6000,E58,المرتجع!$G$2:$G$6000) -> 0 | Q58: =SUMIF(المرتجع!$D$2:$D$6000,E58,المرتجع!$H$2:$H$6000) -> 0 | R58: 0 | S58: 0 | T58: 0 | AA58: 360 | AG58: =IFERROR(VLOOKUP(ROWS($AG$2:AG58),$AI$2:$AJ$932,2,0),"") -> 365 | AI58: =IF(ISNUMBER(SEARCH($AL$2,AJ58)),MAX($AI$1:AI57)+1,0) -> 56 | AJ58: 360
I59: =SUMIF(الوارد!$D$2:$D$6000,E59,الوارد!$E$2:$E$6000) -> 0 | J59: =SUMIF(الوارد!$D$2:$D$6000,E59,الوارد!$G$2:$G$6000) -> 0 | K59: =SUMIF(الوارد!$D$2:$D$6000,E59,الوارد!$H$2:$H$6000) -> 0 | L59: =SUMIF(المنصرف!$D$2:$D$6000,E59,المنصرف!$E$2:$E$6000) -> 0 | M59: =SUMIF(المنصرف!$D$2:$D$6000,E59,المنصرف!$G$2:$G$6000) -> 0 | N59: =SUMIF(المنصرف!$D$2:$D$6000,E59,المنصرف!$H$2:$H$6000) -> 0 | O59: =SUMIF(المرتجع!$D$2:$D$6000,E59,المرتجع!$E$2:$E$6000) -> 0 | P59: =SUMIF(المرتجع!$D$2:$D$6000,E59,المرتجع!$G$2:$G$6000) -> 0 | Q59: =SUMIF(المرتجع!$D$2:$D$6000,E59,المرتجع!$H$2:$H$6000) -> 0 | R59: 0 | S59: 0 | T59: 0 | AA59: 365 | AG59: =IFERROR(VLOOKUP(ROWS($AG$2:AG59),$AI$2:$AJ$932,2,0),"") -> 370 | AI59: =IF(ISNUMBER(SEARCH($AL$2,AJ59)),MAX($AI$1:AI58)+1,0) -> 57 | AJ59: 365
I60: =SUMIF(الوارد!$D$2:$D$6000,E60,الوارد!$E$2:$E$6000) -> 0 | J60: =SUMIF(الوارد!$D$2:$D$6000,E60,الوارد!$G$2:$G$6000) -> 0 | K60: =SUMIF(الوارد!$D$2:$D$6000,E60,الوارد!$H$2:$H$6000) -> 0 | L60: =SUMIF(المنصرف!$D$2:$D$6000,E60,المنصرف!$E$2:$E$6000) -> 0 | M60: =SUMIF(المنصرف!$D$2:$D$6000,E60,المنصرف!$G$2:$G$6000) -> 0 | N60: =SUMIF(المنصرف!$D$2:$D$6000,E60,المنصرف!$H$2:$H$6000) -> 0 | O60: =SUMIF(المرتجع!$D$2:$D$6000,E60,المرتجع!$E$2:$E$6000) -> 0 | P60: =SUMIF(المرتجع!$D$2:$D$6000,E60,المرتجع!$G$2:$G$6000) -> 0 | Q60: =SUMIF(المرتجع!$D$2:$D$6000,E60,المرتجع!$H$2:$H$6000) -> 0 | R60: 0 | S60: 0 | T60: 0 | AA60: 370 | AG60: =IFERROR(VLOOKUP(ROWS($AG$2:AG60),$AI$2:$AJ$932,2,0),"") -> 375 | AI60: =IF(ISNUMBER(SEARCH($AL$2,AJ60)),MAX($AI$1:AI59)+1,0) -> 58 | AJ60: 370
I61: =SUMIF(الوارد!$D$2:$D$6000,E61,الوارد!$E$2:$E$6000) -> 0 | J61: =SUMIF(الوارد!$D$2:$D$6000,E61,الوارد!$G$2:$G$6000) -> 0 | K61: =SUMIF(الوارد!$D$2:$D$6000,E61,الوارد!$H$2:$H$6000) -> 0 | L61: =SUMIF(المنصرف!$D$2:$D$6000,E61,المنصرف!$E$2:$E$6000) -> 0 | M61: =SUMIF(المنصرف!$D$2:$D$6000,E61,المنصرف!$G$2:$G$6000) -> 0 | N61: =SUMIF(المنصرف!$D$2:$D$6000,E61,المنصرف!$H$2:$H$6000) -> 0 | O61: =SUMIF(المرتجع!$D$2:$D$6000,E61,المرتجع!$E$2:$E$6000) -> 0 | P61: =SUMIF(المرتجع!$D$2:$D$6000,E61,المرتجع!$G$2:$G$6000) -> 0 | Q61: =SUMIF(المرتجع!$D$2:$D$6000,E61,المرتجع!$H$2:$H$6000) -> 0 | R61: 0 | S61: 0 | T61: 0 | AA61: 375 | AG61: =IFERROR(VLOOKUP(ROWS($AG$2:AG61),$AI$2:$AJ$932,2,0),"") -> 380 | AI61: =IF(ISNUMBER(SEARCH($AL$2,AJ61)),MAX($AI$1:AI60)+1,0) -> 59 | AJ61: 375
I62: =SUMIF(الوارد!$D$2:$D$6000,E62,الوارد!$E$2:$E$6000) -> 0 | J62: =SUMIF(الوارد!$D$2:$D$6000,E62,الوارد!$G$2:$G$6000) -> 0 | K62: =SUMIF(الوارد!$D$2:$D$6000,E62,الوارد!$H$2:$H$6000) -> 0 | L62: =SUMIF(المنصرف!$D$2:$D$6000,E62,المنصرف!$E$2:$E$6000) -> 0 | M62: =SUMIF(المنصرف!$D$2:$D$6000,E62,المنصرف!$G$2:$G$6000) -> 0 | N62: =SUMIF(المنصرف!$D$2:$D$6000,E62,المنصرف!$H$2:$H$6000) -> 0 | O62: =SUMIF(المرتجع!$D$2:$D$6000,E62,المرتجع!$E$2:$E$6000) -> 0 | P62: =SUMIF(المرتجع!$D$2:$D$6000,E62,المرتجع!$G$2:$G$6000) -> 0 | Q62: =SUMIF(المرتجع!$D$2:$D$6000,E62,المرتجع!$H$2:$H$6000) -> 0 | R62: 0 | S62: 0 | T62: 0 | AA62: 380 | AG62: =IFERROR(VLOOKUP(ROWS($AG$2:AG62),$AI$2:$AJ$932,2,0),"") -> 420 | AI62: =IF(ISNUMBER(SEARCH($AL$2,AJ62)),MAX($AI$1:AI61)+1,0) -> 60 | AJ62: 380
I63: =SUMIF(الوارد!$D$2:$D$6000,E63,الوارد!$E$2:$E$6000) -> 0 | J63: =SUMIF(الوارد!$D$2:$D$6000,E63,الوارد!$G$2:$G$6000) -> 0 | K63: =SUMIF(الوارد!$D$2:$D$6000,E63,الوارد!$H$2:$H$6000) -> 0 | L63: =SUMIF(المنصرف!$D$2:$D$6000,E63,المنصرف!$E$2:$E$6000) -> 0 | M63: =SUMIF(المنصرف!$D$2:$D$6000,E63,المنصرف!$G$2:$G$6000) -> 0 | N63: =SUMIF(المنصرف!$D$2:$D$6000,E63,المنصرف!$H$2:$H$6000) -> 0 | O63: =SUMIF(المرتجع!$D$2:$D$6000,E63,المرتجع!$E$2:$E$6000) -> 0 | P63: =SUMIF(المرتجع!$D$2:$D$6000,E63,المرتجع!$G$2:$G$6000) -> 0 | Q63: =SUMIF(المرتجع!$D$2:$D$6000,E63,المرتجع!$H$2:$H$6000) -> 0 | R63: 0 | S63: 0 | T63: 0 | AA63: 420 | AG63: =IFERROR(VLOOKUP(ROWS($AG$2:AG63),$AI$2:$AJ$932,2,0),"") -> 425 | AI63: =IF(ISNUMBER(SEARCH($AL$2,AJ63)),MAX($AI$1:AI62)+1,0) -> 61 | AJ63: 420
I64: =SUMIF(الوارد!$D$2:$D$6000,E64,الوارد!$E$2:$E$6000) -> 0 | J64: =SUMIF(الوارد!$D$2:$D$6000,E64,الوارد!$G$2:$G$6000) -> 0 | K64: =SUMIF(الوارد!$D$2:$D$6000,E64,الوارد!$H$2:$H$6000) -> 0 | L64: =SUMIF(المنصرف!$D$2:$D$6000,E64,المنصرف!$E$2:$E$6000) -> 0 | M64: =SUMIF(المنصرف!$D$2:$D$6000,E64,المنصرف!$G$2:$G$6000) -> 0 | N64: =SUMIF(المنصرف!$D$2:$D$6000,E64,المنصرف!$H$2:$H$6000) -> 0 | O64: =SUMIF(المرتجع!$D$2:$D$6000,E64,المرتجع!$E$2:$E$6000) -> 0 | P64: =SUMIF(المرتجع!$D$2:$D$6000,E64,المرتجع!$G$2:$G$6000) -> 0 | Q64: =SUMIF(المرتجع!$D$2:$D$6000,E64,المرتجع!$H$2:$H$6000) -> 0 | R64: 0 | S64: 0 | T64: 0 | AA64: 425 | AG64: =IFERROR(VLOOKUP(ROWS($AG$2:AG64),$AI$2:$AJ$932,2,0),"") -> 430 | AI64: =IF(ISNUMBER(SEARCH($AL$2,AJ64)),MAX($AI$1:AI63)+1,0) -> 62 | AJ64: 425
I65: =SUMIF(الوارد!$D$2:$D$6000,E65,الوارد!$E$2:$E$6000) -> 0 | J65: =SUMIF(الوارد!$D$2:$D$6000,E65,الوارد!$G$2:$G$6000) -> 0 | K65: =SUMIF(الوارد!$D$2:$D$6000,E65,الوارد!$H$2:$H$6000) -> 0 | L65: =SUMIF(المنصرف!$D$2:$D$6000,E65,المنصرف!$E$2:$E$6000) -> 0 | M65: =SUMIF(المنصرف!$D$2:$D$6000,E65,المنصرف!$G$2:$G$6000) -> 0 | N65: =SUMIF(المنصرف!$D$2:$D$6000,E65,المنصرف!$H$2:$H$6000) -> 0 | O65: =SUMIF(المرتجع!$D$2:$D$6000,E65,المرتجع!$E$2:$E$6000) -> 0 | P65: =SUMIF(المرتجع!$D$2:$D$6000,E65,المرتجع!$G$2:$G$6000) -> 0 | Q65: =SUMIF(المرتجع!$D$2:$D$6000,E65,المرتجع!$H$2:$H$6000) -> 0 | R65: 0 | S65: 0 | T65: 0 | AA65: 430 | AG65: =IFERROR(VLOOKUP(ROWS($AG$2:AG65),$AI$2:$AJ$932,2,0),"") -> 435 | AI65: =IF(ISNUMBER(SEARCH($AL$2,AJ65)),MAX($AI$1:AI64)+1,0) -> 63 | AJ65: 430
I66: =SUMIF(الوارد!$D$2:$D$6000,E66,الوارد!$E$2:$E$6000) -> 0 | J66: =SUMIF(الوارد!$D$2:$D$6000,E66,الوارد!$G$2:$G$6000) -> 0 | K66: =SUMIF(الوارد!$D$2:$D$6000,E66,الوارد!$H$2:$H$6000) -> 0 | L66: =SUMIF(المنصرف!$D$2:$D$6000,E66,المنصرف!$E$2:$E$6000) -> 0 | M66: =SUMIF(المنصرف!$D$2:$D$6000,E66,المنصرف!$G$2:$G$6000) -> 0 | N66: =SUMIF(المنصرف!$D$2:$D$6000,E66,المنصرف!$H$2:$H$6000) -> 0 | O66: =SUMIF(المرتجع!$D$2:$D$6000,E66,المرتجع!$E$2:$E$6000) -> 0 | P66: =SUMIF(المرتجع!$D$2:$D$6000,E66,المرتجع!$G$2:$G$6000) -> 0 | Q66: =SUMIF(المرتجع!$D$2:$D$6000,E66,المرتجع!$H$2:$H$6000) -> 0 | R66: 0 | S66: 0 | T66: 0 | AA66: 435 | AG66: =IFERROR(VLOOKUP(ROWS($AG$2:AG66),$AI$2:$AJ$932,2,0),"") -> 440 | AI66: =IF(ISNUMBER(SEARCH($AL$2,AJ66)),MAX($AI$1:AI65)+1,0) -> 64 | AJ66: 435
I67: =SUMIF(الوارد!$D$2:$D$6000,E67,الوارد!$E$2:$E$6000) -> 0 | J67: =SUMIF(الوارد!$D$2:$D$6000,E67,الوارد!$G$2:$G$6000) -> 0 | K67: =SUMIF(الوارد!$D$2:$D$6000,E67,الوارد!$H$2:$H$6000) -> 0 | L67: =SUMIF(المنصرف!$D$2:$D$6000,E67,المنصرف!$E$2:$E$6000) -> 0 | M67: =SUMIF(المنصرف!$D$2:$D$6000,E67,المنصرف!$G$2:$G$6000) -> 0 | N67: =SUMIF(المنصرف!$D$2:$D$6000,E67,المنصرف!$H$2:$H$6000) -> 0 | O67: =SUMIF(المرتجع!$D$2:$D$6000,E67,المرتجع!$E$2:$E$6000) -> 0 | P67: =SUMIF(المرتجع!$D$2:$D$6000,E67,المرتجع!$G$2:$G$6000) -> 0 | Q67: =SUMIF(المرتجع!$D$2:$D$6000,E67,المرتجع!$H$2:$H$6000) -> 0 | R67: 0 | S67: 0 | T67: 0 | AA67: 440 | AG67: =IFERROR(VLOOKUP(ROWS($AG$2:AG67),$AI$2:$AJ$932,2,0),"") -> 445 | AI67: =IF(ISNUMBER(SEARCH($AL$2,AJ67)),MAX($AI$1:AI66)+1,0) -> 65 | AJ67: 440
I68: =SUMIF(الوارد!$D$2:$D$6000,E68,الوارد!$E$2:$E$6000) -> 0 | J68: =SUMIF(الوارد!$D$2:$D$6000,E68,الوارد!$G$2:$G$6000) -> 0 | K68: =SUMIF(الوارد!$D$2:$D$6000,E68,الوارد!$H$2:$H$6000) -> 0 | L68: =SUMIF(المنصرف!$D$2:$D$6000,E68,المنصرف!$E$2:$E$6000) -> 0 | M68: =SUMIF(المنصرف!$D$2:$D$6000,E68,المنصرف!$G$2:$G$6000) -> 0 | N68: =SUMIF(المنصرف!$D$2:$D$6000,E68,المنصرف!$H$2:$H$6000) -> 0 | O68: =SUMIF(المرتجع!$D$2:$D$6000,E68,المرتجع!$E$2:$E$6000) -> 0 | P68: =SUMIF(المرتجع!$D$2:$D$6000,E68,المرتجع!$G$2:$G$6000) -> 0 | Q68: =SUMIF(المرتجع!$D$2:$D$6000,E68,المرتجع!$H$2:$H$6000) -> 0 | R68: 0 | S68: 0 | T68: 0 | AA68: 445 | AG68: =IFERROR(VLOOKUP(ROWS($AG$2:AG68),$AI$2:$AJ$932,2,0),"") -> 450 | AI68: =IF(ISNUMBER(SEARCH($AL$2,AJ68)),MAX($AI$1:AI67)+1,0) -> 66 | AJ68: 445
I69: =SUMIF(الوارد!$D$2:$D$6000,E69,الوارد!$E$2:$E$6000) -> 0 | J69: =SUMIF(الوارد!$D$2:$D$6000,E69,الوارد!$G$2:$G$6000) -> 0 | K69: =SUMIF(الوارد!$D$2:$D$6000,E69,الوارد!$H$2:$H$6000) -> 0 | L69: =SUMIF(المنصرف!$D$2:$D$6000,E69,المنصرف!$E$2:$E$6000) -> 0 | M69: =SUMIF(المنصرف!$D$2:$D$6000,E69,المنصرف!$G$2:$G$6000) -> 0 | N69: =SUMIF(المنصرف!$D$2:$D$6000,E69,المنصرف!$H$2:$H$6000) -> 0 | O69: =SUMIF(المرتجع!$D$2:$D$6000,E69,المرتجع!$E$2:$E$6000) -> 0 | P69: =SUMIF(المرتجع!$D$2:$D$6000,E69,المرتجع!$G$2:$G$6000) -> 0 | Q69: =SUMIF(المرتجع!$D$2:$D$6000,E69,المرتجع!$H$2:$H$6000) -> 0 | R69: 0 | S69: 0 | T69: 0 | AA69: 450 | AG69: =IFERROR(VLOOKUP(ROWS($AG$2:AG69),$AI$2:$AJ$932,2,0),"") -> 455 | AI69: =IF(ISNUMBER(SEARCH($AL$2,AJ69)),MAX($AI$1:AI68)+1,0) -> 67 | AJ69: 450
I70: =SUMIF(الوارد!$D$2:$D$6000,E70,الوارد!$E$2:$E$6000) -> 0 | J70: =SUMIF(الوارد!$D$2:$D$6000,E70,الوارد!$G$2:$G$6000) -> 0 | K70: =SUMIF(الوارد!$D$2:$D$6000,E70,الوارد!$H$2:$H$6000) -> 0 | L70: =SUMIF(المنصرف!$D$2:$D$6000,E70,المنصرف!$E$2:$E$6000) -> 0 | M70: =SUMIF(المنصرف!$D$2:$D$6000,E70,المنصرف!$G$2:$G$6000) -> 0 | N70: =SUMIF(المنصرف!$D$2:$D$6000,E70,المنصرف!$H$2:$H$6000) -> 0 | O70: =SUMIF(المرتجع!$D$2:$D$6000,E70,المرتجع!$E$2:$E$6000) -> 0 | P70: =SUMIF(المرتجع!$D$2:$D$6000,E70,المرتجع!$G$2:$G$6000) -> 0 | Q70: =SUMIF(المرتجع!$D$2:$D$6000,E70,المرتجع!$H$2:$H$6000) -> 0 | R70: 0 | S70: 0 | T70: 0 | AA70: 455 | AG70: =IFERROR(VLOOKUP(ROWS($AG$2:AG70),$AI$2:$AJ$932,2,0),"") -> 460 | AI70: =IF(ISNUMBER(SEARCH($AL$2,AJ70)),MAX($AI$1:AI69)+1,0) -> 68 | AJ70: 455
I71: =SUMIF(الوارد!$D$2:$D$6000,E71,الوارد!$E$2:$E$6000) -> 0 | J71: =SUMIF(الوارد!$D$2:$D$6000,E71,الوارد!$G$2:$G$6000) -> 0 | K71: =SUMIF(الوارد!$D$2:$D$6000,E71,الوارد!$H$2:$H$6000) -> 0 | L71: =SUMIF(المنصرف!$D$2:$D$6000,E71,المنصرف!$E$2:$E$6000) -> 0 | M71: =SUMIF(المنصرف!$D$2:$D$6000,E71,المنصرف!$G$2:$G$6000) -> 0 | N71: =SUMIF(المنصرف!$D$2:$D$6000,E71,المنصرف!$H$2:$H$6000) -> 0 | O71: =SUMIF(المرتجع!$D$2:$D$6000,E71,المرتجع!$E$2:$E$6000) -> 0 | P71: =SUMIF(المرتجع!$D$2:$D$6000,E71,المرتجع!$G$2:$G$6000) -> 0 | Q71: =SUMIF(المرتجع!$D$2:$D$6000,E71,المرتجع!$H$2:$H$6000) -> 0 | R71: 0 | S71: 0 | T71: 0 | AA71: 460 | AG71: =IFERROR(VLOOKUP(ROWS($AG$2:AG71),$AI$2:$AJ$932,2,0),"") -> 465 | AI71: =IF(ISNUMBER(SEARCH($AL$2,AJ71)),MAX($AI$1:AI70)+1,0) -> 69 | AJ71: 460
I72: =SUMIF(الوارد!$D$2:$D$6000,E72,الوارد!$E$2:$E$6000) -> 0 | J72: =SUMIF(الوارد!$D$2:$D$6000,E72,الوارد!$G$2:$G$6000) -> 0 | K72: =SUMIF(الوارد!$D$2:$D$6000,E72,الوارد!$H$2:$H$6000) -> 0 | L72: =SUMIF(المنصرف!$D$2:$D$6000,E72,المنصرف!$E$2:$E$6000) -> 0 | M72: =SUMIF(المنصرف!$D$2:$D$6000,E72,المنصرف!$G$2:$G$6000) -> 0 | N72: =SUMIF(المنصرف!$D$2:$D$6000,E72,المنصرف!$H$2:$H$6000) -> 0 | O72: =SUMIF(المرتجع!$D$2:$D$6000,E72,المرتجع!$E$2:$E$6000) -> 0 | P72: =SUMIF(المرتجع!$D$2:$D$6000,E72,المرتجع!$G$2:$G$6000) -> 0 | Q72: =SUMIF(المرتجع!$D$2:$D$6000,E72,المرتجع!$H$2:$H$6000) -> 0 | R72: 0 | S72: 0 | T72: 0 | AA72: 465 | AG72: =IFERROR(VLOOKUP(ROWS($AG$2:AG72),$AI$2:$AJ$932,2,0),"") -> 470 | AI72: =IF(ISNUMBER(SEARCH($AL$2,AJ72)),MAX($AI$1:AI71)+1,0) -> 70 | AJ72: 465
I73: =SUMIF(الوارد!$D$2:$D$6000,E73,الوارد!$E$2:$E$6000) -> 0 | J73: =SUMIF(الوارد!$D$2:$D$6000,E73,الوارد!$G$2:$G$6000) -> 0 | K73: =SUMIF(الوارد!$D$2:$D$6000,E73,الوارد!$H$2:$H$6000) -> 0 | L73: =SUMIF(المنصرف!$D$2:$D$6000,E73,المنصرف!$E$2:$E$6000) -> 0 | M73: =SUMIF(المنصرف!$D$2:$D$6000,E73,المنصرف!$G$2:$G$6000) -> 0 | N73: =SUMIF(المنصرف!$D$2:$D$6000,E73,المنصرف!$H$2:$H$6000) -> 0 | O73: =SUMIF(المرتجع!$D$2:$D$6000,E73,المرتجع!$E$2:$E$6000) -> 0 | P73: =SUMIF(المرتجع!$D$2:$D$6000,E73,المرتجع!$G$2:$G$6000) -> 0 | Q73: =SUMIF(المرتجع!$D$2:$D$6000,E73,المرتجع!$H$2:$H$6000) -> 0 | R73: 0 | S73: 0 | T73: 0 | AA73: 470 | AG73: =IFERROR(VLOOKUP(ROWS($AG$2:AG73),$AI$2:$AJ$932,2,0),"") -> 475 | AI73: =IF(ISNUMBER(SEARCH($AL$2,AJ73)),MAX($AI$1:AI72)+1,0) -> 71 | AJ73: 470
I74: =SUMIF(الوارد!$D$2:$D$6000,E74,الوارد!$E$2:$E$6000) -> 0 | J74: =SUMIF(الوارد!$D$2:$D$6000,E74,الوارد!$G$2:$G$6000) -> 0 | K74: =SUMIF(الوارد!$D$2:$D$6000,E74,الوارد!$H$2:$H$6000) -> 0 | L74: =SUMIF(المنصرف!$D$2:$D$6000,E74,المنصرف!$E$2:$E$6000) -> 0 | M74: =SUMIF(المنصرف!$D$2:$D$6000,E74,المنصرف!$G$2:$G$6000) -> 0 | N74: =SUMIF(المنصرف!$D$2:$D$6000,E74,المنصرف!$H$2:$H$6000) -> 0 | O74: =SUMIF(المرتجع!$D$2:$D$6000,E74,المرتجع!$E$2:$E$6000) -> 0 | P74: =SUMIF(المرتجع!$D$2:$D$6000,E74,المرتجع!$G$2:$G$6000) -> 0 | Q74: =SUMIF(المرتجع!$D$2:$D$6000,E74,المرتجع!$H$2:$H$6000) -> 0 | R74: 0 | S74: 0 | T74: 0 | AA74: 475 | AG74: =IFERROR(VLOOKUP(ROWS($AG$2:AG74),$AI$2:$AJ$932,2,0),"") -> 480 | AI74: =IF(ISNUMBER(SEARCH($AL$2,AJ74)),MAX($AI$1:AI73)+1,0) -> 72 | AJ74: 475
I75: =SUMIF(الوارد!$D$2:$D$6000,E75,الوارد!$E$2:$E$6000) -> 0 | J75: =SUMIF(الوارد!$D$2:$D$6000,E75,الوارد!$G$2:$G$6000) -> 0 | K75: =SUMIF(الوارد!$D$2:$D$6000,E75,الوارد!$H$2:$H$6000) -> 0 | L75: =SUMIF(المنصرف!$D$2:$D$6000,E75,المنصرف!$E$2:$E$6000) -> 0 | M75: =SUMIF(المنصرف!$D$2:$D$6000,E75,المنصرف!$G$2:$G$6000) -> 0 | N75: =SUMIF(المنصرف!$D$2:$D$6000,E75,المنصرف!$H$2:$H$6000) -> 0 | O75: =SUMIF(المرتجع!$D$2:$D$6000,E75,المرتجع!$E$2:$E$6000) -> 0 | P75: =SUMIF(المرتجع!$D$2:$D$6000,E75,المرتجع!$G$2:$G$6000) -> 0 | Q75: =SUMIF(المرتجع!$D$2:$D$6000,E75,المرتجع!$H$2:$H$6000) -> 0 | R75: 0 | S75: 0 | T75: 0 | AA75: 480 | AG75: =IFERROR(VLOOKUP(ROWS($AG$2:AG75),$AI$2:$AJ$932,2,0),"") -> 485 | AI75: =IF(ISNUMBER(SEARCH($AL$2,AJ75)),MAX($AI$1:AI74)+1,0) -> 73 | AJ75: 480
I76: =SUMIF(الوارد!$D$2:$D$6000,E76,الوارد!$E$2:$E$6000) -> 0 | J76: =SUMIF(الوارد!$D$2:$D$6000,E76,الوارد!$G$2:$G$6000) -> 0 | K76: =SUMIF(الوارد!$D$2:$D$6000,E76,الوارد!$H$2:$H$6000) -> 0 | L76: =SUMIF(المنصرف!$D$2:$D$6000,E76,المنصرف!$E$2:$E$6000) -> 0 | M76: =SUMIF(المنصرف!$D$2:$D$6000,E76,المنصرف!$G$2:$G$6000) -> 0 | N76: =SUMIF(المنصرف!$D$2:$D$6000,E76,المنصرف!$H$2:$H$6000) -> 0 | O76: =SUMIF(المرتجع!$D$2:$D$6000,E76,المرتجع!$E$2:$E$6000) -> 0 | P76: =SUMIF(المرتجع!$D$2:$D$6000,E76,المرتجع!$G$2:$G$6000) -> 0 | Q76: =SUMIF(المرتجع!$D$2:$D$6000,E76,المرتجع!$H$2:$H$6000) -> 0 | R76: 0 | S76: 0 | T76: 0 | AA76: 485 | AG76: =IFERROR(VLOOKUP(ROWS($AG$2:AG76),$AI$2:$AJ$932,2,0),"") -> 490 | AI76: =IF(ISNUMBER(SEARCH($AL$2,AJ76)),MAX($AI$1:AI75)+1,0) -> 74 | AJ76: 485
I77: =SUMIF(الوارد!$D$2:$D$6000,E77,الوارد!$E$2:$E$6000) -> 0 | J77: =SUMIF(الوارد!$D$2:$D$6000,E77,الوارد!$G$2:$G$6000) -> 0 | K77: =SUMIF(الوارد!$D$2:$D$6000,E77,الوارد!$H$2:$H$6000) -> 0 | L77: =SUMIF(المنصرف!$D$2:$D$6000,E77,المنصرف!$E$2:$E$6000) -> 0 | M77: =SUMIF(المنصرف!$D$2:$D$6000,E77,المنصرف!$G$2:$G$6000) -> 0 | N77: =SUMIF(المنصرف!$D$2:$D$6000,E77,المنصرف!$H$2:$H$6000) -> 0 | O77: =SUMIF(المرتجع!$D$2:$D$6000,E77,المرتجع!$E$2:$E$6000) -> 0 | P77: =SUMIF(المرتجع!$D$2:$D$6000,E77,المرتجع!$G$2:$G$6000) -> 0 | Q77: =SUMIF(المرتجع!$D$2:$D$6000,E77,المرتجع!$H$2:$H$6000) -> 0 | R77: 0 | S77: 0 | T77: 0 | AA77: 490 | AG77: =IFERROR(VLOOKUP(ROWS($AG$2:AG77),$AI$2:$AJ$932,2,0),"") -> 495 | AI77: =IF(ISNUMBER(SEARCH($AL$2,AJ77)),MAX($AI$1:AI76)+1,0) -> 75 | AJ77: 490
I78: =SUMIF(الوارد!$D$2:$D$6000,E78,الوارد!$E$2:$E$6000) -> 0 | J78: =SUMIF(الوارد!$D$2:$D$6000,E78,الوارد!$G$2:$G$6000) -> 0 | K78: =SUMIF(الوارد!$D$2:$D$6000,E78,الوارد!$H$2:$H$6000) -> 0 | L78: =SUMIF(المنصرف!$D$2:$D$6000,E78,المنصرف!$E$2:$E$6000) -> 0 | M78: =SUMIF(المنصرف!$D$2:$D$6000,E78,المنصرف!$G$2:$G$6000) -> 0 | N78: =SUMIF(المنصرف!$D$2:$D$6000,E78,المنصرف!$H$2:$H$6000) -> 0 | O78: =SUMIF(المرتجع!$D$2:$D$6000,E78,المرتجع!$E$2:$E$6000) -> 0 | P78: =SUMIF(المرتجع!$D$2:$D$6000,E78,المرتجع!$G$2:$G$6000) -> 0 | Q78: =SUMIF(المرتجع!$D$2:$D$6000,E78,المرتجع!$H$2:$H$6000) -> 0 | R78: 0 | S78: 0 | T78: 0 | AA78: 495 | AG78: =IFERROR(VLOOKUP(ROWS($AG$2:AG78),$AI$2:$AJ$932,2,0),"") -> 500 | AI78: =IF(ISNUMBER(SEARCH($AL$2,AJ78)),MAX($AI$1:AI77)+1,0) -> 76 | AJ78: 495
I79: =SUMIF(الوارد!$D$2:$D$6000,E79,الوارد!$E$2:$E$6000) -> 0 | J79: =SUMIF(الوارد!$D$2:$D$6000,E79,الوارد!$G$2:$G$6000) -> 0 | K79: =SUMIF(الوارد!$D$2:$D$6000,E79,الوارد!$H$2:$H$6000) -> 0 | L79: =SUMIF(المنصرف!$D$2:$D$6000,E79,المنصرف!$E$2:$E$6000) -> 0 | M79: =SUMIF(المنصرف!$D$2:$D$6000,E79,المنصرف!$G$2:$G$6000) -> 0 | N79: =SUMIF(المنصرف!$D$2:$D$6000,E79,المنصرف!$H$2:$H$6000) -> 0 | O79: =SUMIF(المرتجع!$D$2:$D$6000,E79,المرتجع!$E$2:$E$6000) -> 0 | P79: =SUMIF(المرتجع!$D$2:$D$6000,E79,المرتجع!$G$2:$G$6000) -> 0 | Q79: =SUMIF(المرتجع!$D$2:$D$6000,E79,المرتجع!$H$2:$H$6000) -> 0 | R79: 0 | S79: 0 | T79: 0 | AA79: 500 | AG79: =IFERROR(VLOOKUP(ROWS($AG$2:AG79),$AI$2:$AJ$932,2,0),"") -> 510 | AI79: =IF(ISNUMBER(SEARCH($AL$2,AJ79)),MAX($AI$1:AI78)+1,0) -> 77 | AJ79: 500
I80: =SUMIF(الوارد!$D$2:$D$6000,E80,الوارد!$E$2:$E$6000) -> 0 | J80: =SUMIF(الوارد!$D$2:$D$6000,E80,الوارد!$G$2:$G$6000) -> 0 | K80: =SUMIF(الوارد!$D$2:$D$6000,E80,الوارد!$H$2:$H$6000) -> 0 | L80: =SUMIF(المنصرف!$D$2:$D$6000,E80,المنصرف!$E$2:$E$6000) -> 0 | M80: =SUMIF(المنصرف!$D$2:$D$6000,E80,المنصرف!$G$2:$G$6000) -> 0 | N80: =SUMIF(المنصرف!$D$2:$D$6000,E80,المنصرف!$H$2:$H$6000) -> 0 | O80: =SUMIF(المرتجع!$D$2:$D$6000,E80,المرتجع!$E$2:$E$6000) -> 0 | P80: =SUMIF(المرتجع!$D$2:$D$6000,E80,المرتجع!$G$2:$G$6000) -> 0 | Q80: =SUMIF(المرتجع!$D$2:$D$6000,E80,المرتجع!$H$2:$H$6000) -> 0 | R80: 0 | S80: 0 | T80: 0 | AA80: 510 | AG80: =IFERROR(VLOOKUP(ROWS($AG$2:AG80),$AI$2:$AJ$932,2,0),"") -> 515 | AI80: =IF(ISNUMBER(SEARCH($AL$2,AJ80)),MAX($AI$1:AI79)+1,0) -> 78 | AJ80: 510
I81: =SUMIF(الوارد!$D$2:$D$6000,E81,الوارد!$E$2:$E$6000) -> 0 | J81: =SUMIF(الوارد!$D$2:$D$6000,E81,الوارد!$G$2:$G$6000) -> 0 | K81: =SUMIF(الوارد!$D$2:$D$6000,E81,الوارد!$H$2:$H$6000) -> 0 | L81: =SUMIF(المنصرف!$D$2:$D$6000,E81,المنصرف!$E$2:$E$6000) -> 0 | M81: =SUMIF(المنصرف!$D$2:$D$6000,E81,المنصرف!$G$2:$G$6000) -> 0 | N81: =SUMIF(المنصرف!$D$2:$D$6000,E81,المنصرف!$H$2:$H$6000) -> 0 | O81: =SUMIF(المرتجع!$D$2:$D$6000,E81,المرتجع!$E$2:$E$6000) -> 0 | P81: =SUMIF(المرتجع!$D$2:$D$6000,E81,المرتجع!$G$2:$G$6000) -> 0 | Q81: =SUMIF(المرتجع!$D$2:$D$6000,E81,المرتجع!$H$2:$H$6000) -> 0 | R81: 0 | S81: 0 | T81: 0 | AA81: 515 | AG81: =IFERROR(VLOOKUP(ROWS($AG$2:AG81),$AI$2:$AJ$932,2,0),"") -> 520 | AI81: =IF(ISNUMBER(SEARCH($AL$2,AJ81)),MAX($AI$1:AI80)+1,0) -> 79 | AJ81: 515
I82: =SUMIF(الوارد!$D$2:$D$6000,E82,الوارد!$E$2:$E$6000) -> 0 | J82: =SUMIF(الوارد!$D$2:$D$6000,E82,الوارد!$G$2:$G$6000) -> 0 | K82: =SUMIF(الوارد!$D$2:$D$6000,E82,الوارد!$H$2:$H$6000) -> 0 | L82: =SUMIF(المنصرف!$D$2:$D$6000,E82,المنصرف!$E$2:$E$6000) -> 0 | M82: =SUMIF(المنصرف!$D$2:$D$6000,E82,المنصرف!$G$2:$G$6000) -> 0 | N82: =SUMIF(المنصرف!$D$2:$D$6000,E82,المنصرف!$H$2:$H$6000) -> 0 | O82: =SUMIF(المرتجع!$D$2:$D$6000,E82,المرتجع!$E$2:$E$6000) -> 0 | P82: =SUMIF(المرتجع!$D$2:$D$6000,E82,المرتجع!$G$2:$G$6000) -> 0 | Q82: =SUMIF(المرتجع!$D$2:$D$6000,E82,المرتجع!$H$2:$H$6000) -> 0 | R82: 0 | S82: 0 | T82: 0 | AA82: 520 | AG82: =IFERROR(VLOOKUP(ROWS($AG$2:AG82),$AI$2:$AJ$932,2,0),"") -> 525 | AI82: =IF(ISNUMBER(SEARCH($AL$2,AJ82)),MAX($AI$1:AI81)+1,0) -> 80 | AJ82: 520
I83: =SUMIF(الوارد!$D$2:$D$6000,E83,الوارد!$E$2:$E$6000) -> 0 | J83: =SUMIF(الوارد!$D$2:$D$6000,E83,الوارد!$G$2:$G$6000) -> 0 | K83: =SUMIF(الوارد!$D$2:$D$6000,E83,الوارد!$H$2:$H$6000) -> 0 | L83: =SUMIF(المنصرف!$D$2:$D$6000,E83,المنصرف!$E$2:$E$6000) -> 0 | M83: =SUMIF(المنصرف!$D$2:$D$6000,E83,المنصرف!$G$2:$G$6000) -> 0 | N83: =SUMIF(المنصرف!$D$2:$D$6000,E83,المنصرف!$H$2:$H$6000) -> 0 | O83: =SUMIF(المرتجع!$D$2:$D$6000,E83,المرتجع!$E$2:$E$6000) -> 0 | P83: =SUMIF(المرتجع!$D$2:$D$6000,E83,المرتجع!$G$2:$G$6000) -> 0 | Q83: =SUMIF(المرتجع!$D$2:$D$6000,E83,المرتجع!$H$2:$H$6000) -> 0 | R83: 0 | S83: 0 | T83: 0 | AA83: 525 | AG83: =IFERROR(VLOOKUP(ROWS($AG$2:AG83),$AI$2:$AJ$932,2,0),"") -> 530 | AI83: =IF(ISNUMBER(SEARCH($AL$2,AJ83)),MAX($AI$1:AI82)+1,0) -> 81 | AJ83: 525
I84: =SUMIF(الوارد!$D$2:$D$6000,E84,الوارد!$E$2:$E$6000) -> 0 | J84: =SUMIF(الوارد!$D$2:$D$6000,E84,الوارد!$G$2:$G$6000) -> 0 | K84: =SUMIF(الوارد!$D$2:$D$6000,E84,الوارد!$H$2:$H$6000) -> 0 | L84: =SUMIF(المنصرف!$D$2:$D$6000,E84,المنصرف!$E$2:$E$6000) -> 0 | M84: =SUMIF(المنصرف!$D$2:$D$6000,E84,المنصرف!$G$2:$G$6000) -> 0 | N84: =SUMIF(المنصرف!$D$2:$D$6000,E84,المنصرف!$H$2:$H$6000) -> 0 | O84: =SUMIF(المرتجع!$D$2:$D$6000,E84,المرتجع!$E$2:$E$6000) -> 0 | P84: =SUMIF(المرتجع!$D$2:$D$6000,E84,المرتجع!$G$2:$G$6000) -> 0 | Q84: =SUMIF(المرتجع!$D$2:$D$6000,E84,المرتجع!$H$2:$H$6000) -> 0 | R84: 0 | S84: 0 | T84: 0 | AA84: 530 | AG84: =IFERROR(VLOOKUP(ROWS($AG$2:AG84),$AI$2:$AJ$932,2,0),"") -> 600 | AI84: =IF(ISNUMBER(SEARCH($AL$2,AJ84)),MAX($AI$1:AI83)+1,0) -> 82 | AJ84: 530
E85: =B85&" "&C85&" "&D85 ->  | I85: =SUMIF(الوارد!$D$2:$D$6000,E85,الوارد!$E$2:$E$6000) -> 0 | J85: =SUMIF(الوارد!$D$2:$D$6000,E85,الوارد!$G$2:$G$6000) -> 0 | K85: =SUMIF(الوارد!$D$2:$D$6000,E85,الوارد!$H$2:$H$6000) -> 0 | L85: =SUMIF(المنصرف!$D$2:$D$6000,E85,المنصرف!$E$2:$E$6000) -> 0 | M85: =SUMIF(المنصرف!$D$2:$D$6000,E85,المنصرف!$G$2:$G$6000) -> 0 | N85: =SUMIF(المنصرف!$D$2:$D$6000,E85,المنصرف!$H$2:$H$6000) -> 0 | O85: =SUMIF(المرتجع!$D$2:$D$6000,E85,المرتجع!$E$2:$E$6000) -> 0 | P85: =SUMIF(المرتجع!$D$2:$D$6000,E85,المرتجع!$G$2:$G$6000) -> 0 | Q85: =SUMIF(المرتجع!$D$2:$D$6000,E85,المرتجع!$H$2:$H$6000) -> 0 | R85: =F85+I85+O85-L85 -> 0 | S85: =G85+J85+P85-M85 -> 0 | T85: =H85+K85+Q85-N85 -> 0 | AA85: 600 | AG85: =IFERROR(VLOOKUP(ROWS($AG$2:AG85),$AI$2:$AJ$932,2,0),"") -> 620 | AI85: =IF(ISNUMBER(SEARCH($AL$2,AJ85)),MAX($AI$1:AI84)+1,0) -> 83 | AJ85: 600
I86: =SUMIF(الوارد!$D$2:$D$6000,E86,الوارد!$E$2:$E$6000) -> 0 | J86: =SUMIF(الوارد!$D$2:$D$6000,E86,الوارد!$G$2:$G$6000) -> 0 | K86: =SUMIF(الوارد!$D$2:$D$6000,E86,الوارد!$H$2:$H$6000) -> 0 | L86: =SUMIF(المنصرف!$D$2:$D$6000,E86,المنصرف!$E$2:$E$6000) -> 0 | M86: =SUMIF(المنصرف!$D$2:$D$6000,E86,المنصرف!$G$2:$G$6000) -> 0 | N86: =SUMIF(المنصرف!$D$2:$D$6000,E86,المنصرف!$H$2:$H$6000) -> 0 | O86: =SUMIF(المرتجع!$D$2:$D$6000,E86,المرتجع!$E$2:$E$6000) -> 0 | P86: =SUMIF(المرتجع!$D$2:$D$6000,E86,المرتجع!$G$2:$G$6000) -> 0 | Q86: =SUMIF(المرتجع!$D$2:$D$6000,E86,المرتجع!$H$2:$H$6000) -> 0 | R86: 0 | S86: 0 | T86: 0 | AA86: 620 | AG86: =IFERROR(VLOOKUP(ROWS($AG$2:AG86),$AI$2:$AJ$932,2,0),"") -> 625 | AI86: =IF(ISNUMBER(SEARCH($AL$2,AJ86)),MAX($AI$1:AI85)+1,0) -> 84 | AJ86: 620
I87: =SUMIF(الوارد!$D$2:$D$6000,E87,الوارد!$E$2:$E$6000) -> 0 | J87: =SUMIF(الوارد!$D$2:$D$6000,E87,الوارد!$G$2:$G$6000) -> 0 | K87: =SUMIF(الوارد!$D$2:$D$6000,E87,الوارد!$H$2:$H$6000) -> 0 | L87: =SUMIF(المنصرف!$D$2:$D$6000,E87,المنصرف!$E$2:$E$6000) -> 0 | M87: =SUMIF(المنصرف!$D$2:$D$6000,E87,المنصرف!$G$2:$G$6000) -> 0 | N87: =SUMIF(المنصرف!$D$2:$D$6000,E87,المنصرف!$H$2:$H$6000) -> 0 | O87: =SUMIF(المرتجع!$D$2:$D$6000,E87,المرتجع!$E$2:$E$6000) -> 0 | P87: =SUMIF(المرتجع!$D$2:$D$6000,E87,المرتجع!$G$2:$G$6000) -> 0 | Q87: =SUMIF(المرتجع!$D$2:$D$6000,E87,المرتجع!$H$2:$H$6000) -> 0 | R87: 0 | S87: 0 | T87: 0 | AA87: 625 | AG87: =IFERROR(VLOOKUP(ROWS($AG$2:AG87),$AI$2:$AJ$932,2,0),"") -> 630 | AI87: =IF(ISNUMBER(SEARCH($AL$2,AJ87)),MAX($AI$1:AI86)+1,0) -> 85 | AJ87: 625
I88: =SUMIF(الوارد!$D$2:$D$6000,E88,الوارد!$E$2:$E$6000) -> 0 | J88: =SUMIF(الوارد!$D$2:$D$6000,E88,الوارد!$G$2:$G$6000) -> 0 | K88: =SUMIF(الوارد!$D$2:$D$6000,E88,الوارد!$H$2:$H$6000) -> 0 | L88: =SUMIF(المنصرف!$D$2:$D$6000,E88,المنصرف!$E$2:$E$6000) -> 0 | M88: =SUMIF(المنصرف!$D$2:$D$6000,E88,المنصرف!$G$2:$G$6000) -> 0 | N88: =SUMIF(المنصرف!$D$2:$D$6000,E88,المنصرف!$H$2:$H$6000) -> 0 | O88: =SUMIF(المرتجع!$D$2:$D$6000,E88,المرتجع!$E$2:$E$6000) -> 0 | P88: =SUMIF(المرتجع!$D$2:$D$6000,E88,المرتجع!$G$2:$G$6000) -> 0 | Q88: =SUMIF(المرتجع!$D$2:$D$6000,E88,المرتجع!$H$2:$H$6000) -> 0 | R88: 0 | S88: 0 | T88: 0 | AA88: 630 | AG88: =IFERROR(VLOOKUP(ROWS($AG$2:AG88),$AI$2:$AJ$932,2,0),"") -> 635 | AI88: =IF(ISNUMBER(SEARCH($AL$2,AJ88)),MAX($AI$1:AI87)+1,0) -> 86 | AJ88: 630
I89: =SUMIF(الوارد!$D$2:$D$6000,E89,الوارد!$E$2:$E$6000) -> 0 | J89: =SUMIF(الوارد!$D$2:$D$6000,E89,الوارد!$G$2:$G$6000) -> 0 | K89: =SUMIF(الوارد!$D$2:$D$6000,E89,الوارد!$H$2:$H$6000) -> 0 | L89: =SUMIF(المنصرف!$D$2:$D$6000,E89,المنصرف!$E$2:$E$6000) -> 0 | M89: =SUMIF(المنصرف!$D$2:$D$6000,E89,المنصرف!$G$2:$G$6000) -> 0 | N89: =SUMIF(المنصرف!$D$2:$D$6000,E89,المنصرف!$H$2:$H$6000) -> 0 | O89: =SUMIF(المرتجع!$D$2:$D$6000,E89,المرتجع!$E$2:$E$6000) -> 0 | P89: =SUMIF(المرتجع!$D$2:$D$6000,E89,المرتجع!$G$2:$G$6000) -> 0 | Q89: =SUMIF(المرتجع!$D$2:$D$6000,E89,المرتجع!$H$2:$H$6000) -> 0 | R89: 0 | S89: 0 | T89: 0 | AA89: 635 | AG89: =IFERROR(VLOOKUP(ROWS($AG$2:AG89),$AI$2:$AJ$932,2,0),"") -> 640 | AI89: =IF(ISNUMBER(SEARCH($AL$2,AJ89)),MAX($AI$1:AI88)+1,0) -> 87 | AJ89: 635
I90: =SUMIF(الوارد!$D$2:$D$6000,E90,الوارد!$E$2:$E$6000) -> 0 | J90: =SUMIF(الوارد!$D$2:$D$6000,E90,الوارد!$G$2:$G$6000) -> 0 | K90: =SUMIF(الوارد!$D$2:$D$6000,E90,الوارد!$H$2:$H$6000) -> 0 | L90: =SUMIF(المنصرف!$D$2:$D$6000,E90,المنصرف!$E$2:$E$6000) -> 0 | M90: =SUMIF(المنصرف!$D$2:$D$6000,E90,المنصرف!$G$2:$G$6000) -> 0 | N90: =SUMIF(المنصرف!$D$2:$D$6000,E90,المنصرف!$H$2:$H$6000) -> 0 | O90: =SUMIF(المرتجع!$D$2:$D$6000,E90,المرتجع!$E$2:$E$6000) -> 0 | P90: =SUMIF(المرتجع!$D$2:$D$6000,E90,المرتجع!$G$2:$G$6000) -> 0 | Q90: =SUMIF(المرتجع!$D$2:$D$6000,E90,المرتجع!$H$2:$H$6000) -> 0 | R90: 0 | S90: 0 | T90: 0 | AA90: 640 | AG90: =IFERROR(VLOOKUP(ROWS($AG$2:AG90),$AI$2:$AJ$932,2,0),"") ->  | AI90: =IF(ISNUMBER(SEARCH($AL$2,AJ90)),MAX($AI$1:AI89)+1,0) -> 88 | AJ90: 640
I91: =SUMIF(الوارد!$D$2:$D$6000,E91,الوارد!$E$2:$E$6000) -> 0 | J91: =SUMIF(الوارد!$D$2:$D$6000,E91,الوارد!$G$2:$G$6000) -> 0 | K91: =SUMIF(الوارد!$D$2:$D$6000,E91,الوارد!$H$2:$H$6000) -> 0 | L91: =SUMIF(المنصرف!$D$2:$D$6000,E91,المنصرف!$E$2:$E$6000) -> 0 | M91: =SUMIF(المنصرف!$D$2:$D$6000,E91,المنصرف!$G$2:$G$6000) -> 0 | N91: =SUMIF(المنصرف!$D$2:$D$6000,E91,المنصرف!$H$2:$H$6000) -> 0 | O91: =SUMIF(المرتجع!$D$2:$D$6000,E91,المرتجع!$E$2:$E$6000) -> 0 | P91: =SUMIF(المرتجع!$D$2:$D$6000,E91,المرتجع!$G$2:$G$6000) -> 0 | Q91: =SUMIF(المرتجع!$D$2:$D$6000,E91,المرتجع!$H$2:$H$6000) -> 0 | R91: 0 | S91: 0 | T91: 0 | AG91: =IFERROR(VLOOKUP(ROWS($AG$2:AG91),$AI$2:$AJ$932,2,0),"") ->  | AI91: =IF(ISNUMBER(SEARCH($AL$2,AJ91)),MAX($AI$1:AI90)+1,0) -> 0
I92: =SUMIF(الوارد!$D$2:$D$6000,E92,الوارد!$E$2:$E$6000) -> 0 | J92: =SUMIF(الوارد!$D$2:$D$6000,E92,الوارد!$G$2:$G$6000) -> 0 | K92: =SUMIF(الوارد!$D$2:$D$6000,E92,الوارد!$H$2:$H$6000) -> 0 | L92: =SUMIF(المنصرف!$D$2:$D$6000,E92,المنصرف!$E$2:$E$6000) -> 0 | M92: =SUMIF(المنصرف!$D$2:$D$6000,E92,المنصرف!$G$2:$G$6000) -> 0 | N92: =SUMIF(المنصرف!$D$2:$D$6000,E92,المنصرف!$H$2:$H$6000) -> 0 | O92: =SUMIF(المرتجع!$D$2:$D$6000,E92,المرتجع!$E$2:$E$6000) -> 0 | P92: =SUMIF(المرتجع!$D$2:$D$6000,E92,المرتجع!$G$2:$G$6000) -> 0 | Q92: =SUMIF(المرتجع!$D$2:$D$6000,E92,المرتجع!$H$2:$H$6000) -> 0 | R92: 0 | S92: 0 | T92: 0 | AG92: =IFERROR(VLOOKUP(ROWS($AG$2:AG92),$AI$2:$AJ$932,2,0),"") ->  | AI92: =IF(ISNUMBER(SEARCH($AL$2,AJ92)),MAX($AI$1:AI91)+1,0) -> 0
I93: =SUMIF(الوارد!$D$2:$D$6000,E93,الوارد!$E$2:$E$6000) -> 0 | J93: =SUMIF(الوارد!$D$2:$D$6000,E93,الوارد!$G$2:$G$6000) -> 0 | K93: =SUMIF(الوارد!$D$2:$D$6000,E93,الوارد!$H$2:$H$6000) -> 0 | L93: =SUMIF(المنصرف!$D$2:$D$6000,E93,المنصرف!$E$2:$E$6000) -> 0 | M93: =SUMIF(المنصرف!$D$2:$D$6000,E93,المنصرف!$G$2:$G$6000) -> 0 | N93: =SUMIF(المنصرف!$D$2:$D$6000,E93,المنصرف!$H$2:$H$6000) -> 0 | O93: =SUMIF(المرتجع!$D$2:$D$6000,E93,المرتجع!$E$2:$E$6000) -> 0 | P93: =SUMIF(المرتجع!$D$2:$D$6000,E93,المرتجع!$G$2:$G$6000) -> 0 | Q93: =SUMIF(المرتجع!$D$2:$D$6000,E93,المرتجع!$H$2:$H$6000) -> 0 | R93: 0 | S93: 0 | T93: 0 | AG93: =IFERROR(VLOOKUP(ROWS($AG$2:AG93),$AI$2:$AJ$932,2,0),"") ->  | AI93: =IF(ISNUMBER(SEARCH($AL$2,AJ93)),MAX($AI$1:AI92)+1,0) -> 0
I94: =SUMIF(الوارد!$D$2:$D$6000,E94,الوارد!$E$2:$E$6000) -> 0 | J94: =SUMIF(الوارد!$D$2:$D$6000,E94,الوارد!$G$2:$G$6000) -> 0 | K94: =SUMIF(الوارد!$D$2:$D$6000,E94,الوارد!$H$2:$H$6000) -> 0 | L94: =SUMIF(المنصرف!$D$2:$D$6000,E94,المنصرف!$E$2:$E$6000) -> 0 | M94: =SUMIF(المنصرف!$D$2:$D$6000,E94,المنصرف!$G$2:$G$6000) -> 0 | N94: =SUMIF(المنصرف!$D$2:$D$6000,E94,المنصرف!$H$2:$H$6000) -> 0 | O94: =SUMIF(المرتجع!$D$2:$D$6000,E94,المرتجع!$E$2:$E$6000) -> 0 | P94: =SUMIF(المرتجع!$D$2:$D$6000,E94,المرتجع!$G$2:$G$6000) -> 0 | Q94: =SUMIF(المرتجع!$D$2:$D$6000,E94,المرتجع!$H$2:$H$6000) -> 0 | R94: 0 | S94: 0 | T94: 0 | AG94: =IFERROR(VLOOKUP(ROWS($AG$2:AG94),$AI$2:$AJ$932,2,0),"") ->  | AI94: =IF(ISNUMBER(SEARCH($AL$2,AJ94)),MAX($AI$1:AI93)+1,0) -> 0
I95: =SUMIF(الوارد!$D$2:$D$6000,E95,الوارد!$E$2:$E$6000) -> 0 | J95: =SUMIF(الوارد!$D$2:$D$6000,E95,الوارد!$G$2:$G$6000) -> 0 | K95: =SUMIF(الوارد!$D$2:$D$6000,E95,الوارد!$H$2:$H$6000) -> 0 | L95: =SUMIF(المنصرف!$D$2:$D$6000,E95,المنصرف!$E$2:$E$6000) -> 0 | M95: =SUMIF(المنصرف!$D$2:$D$6000,E95,المنصرف!$G$2:$G$6000) -> 0 | N95: =SUMIF(المنصرف!$D$2:$D$6000,E95,المنصرف!$H$2:$H$6000) -> 0 | O95: =SUMIF(المرتجع!$D$2:$D$6000,E95,المرتجع!$E$2:$E$6000) -> 0 | P95: =SUMIF(المرتجع!$D$2:$D$6000,E95,المرتجع!$G$2:$G$6000) -> 0 | Q95: =SUMIF(المرتجع!$D$2:$D$6000,E95,المرتجع!$H$2:$H$6000) -> 0 | R95: 0 | S95: 0 | T95: 0 | AG95: =IFERROR(VLOOKUP(ROWS($AG$2:AG95),$AI$2:$AJ$932,2,0),"") ->  | AI95: =IF(ISNUMBER(SEARCH($AL$2,AJ95)),MAX($AI$1:AI94)+1,0) -> 0
I96: =SUMIF(الوارد!$D$2:$D$6000,E96,الوارد!$E$2:$E$6000) -> 0 | J96: =SUMIF(الوارد!$D$2:$D$6000,E96,الوارد!$G$2:$G$6000) -> 0 | K96: =SUMIF(الوارد!$D$2:$D$6000,E96,الوارد!$H$2:$H$6000) -> 0 | L96: =SUMIF(المنصرف!$D$2:$D$6000,E96,المنصرف!$E$2:$E$6000) -> 0 | M96: =SUMIF(المنصرف!$D$2:$D$6000,E96,المنصرف!$G$2:$G$6000) -> 0 | N96: =SUMIF(المنصرف!$D$2:$D$6000,E96,المنصرف!$H$2:$H$6000) -> 0 | O96: =SUMIF(المرتجع!$D$2:$D$6000,E96,المرتجع!$E$2:$E$6000) -> 0 | P96: =SUMIF(المرتجع!$D$2:$D$6000,E96,المرتجع!$G$2:$G$6000) -> 0 | Q96: =SUMIF(المرتجع!$D$2:$D$6000,E96,المرتجع!$H$2:$H$6000) -> 0 | R96: 0 | S96: 0 | T96: 0 | AG96: =IFERROR(VLOOKUP(ROWS($AG$2:AG96),$AI$2:$AJ$932,2,0),"") ->  | AI96: =IF(ISNUMBER(SEARCH($AL$2,AJ96)),MAX($AI$1:AI95)+1,0) -> 0
I97: =SUMIF(الوارد!$D$2:$D$6000,E97,الوارد!$E$2:$E$6000) -> 0 | J97: =SUMIF(الوارد!$D$2:$D$6000,E97,الوارد!$G$2:$G$6000) -> 0 | K97: =SUMIF(الوارد!$D$2:$D$6000,E97,الوارد!$H$2:$H$6000) -> 0 | L97: =SUMIF(المنصرف!$D$2:$D$6000,E97,المنصرف!$E$2:$E$6000) -> 0 | M97: =SUMIF(المنصرف!$D$2:$D$6000,E97,المنصرف!$G$2:$G$6000) -> 0 | N97: =SUMIF(المنصرف!$D$2:$D$6000,E97,المنصرف!$H$2:$H$6000) -> 0 | O97: =SUMIF(المرتجع!$D$2:$D$6000,E97,المرتجع!$E$2:$E$6000) -> 0 | P97: =SUMIF(المرتجع!$D$2:$D$6000,E97,المرتجع!$G$2:$G$6000) -> 0 | Q97: =SUMIF(المرتجع!$D$2:$D$6000,E97,المرتجع!$H$2:$H$6000) -> 0 | R97: 0 | S97: 0 | T97: 0 | AG97: =IFERROR(VLOOKUP(ROWS($AG$2:AG97),$AI$2:$AJ$932,2,0),"") ->  | AI97: =IF(ISNUMBER(SEARCH($AL$2,AJ97)),MAX($AI$1:AI96)+1,0) -> 0
I98: =SUMIF(الوارد!$D$2:$D$6000,E98,الوارد!$E$2:$E$6000) -> 0 | J98: =SUMIF(الوارد!$D$2:$D$6000,E98,الوارد!$G$2:$G$6000) -> 0 | K98: =SUMIF(الوارد!$D$2:$D$6000,E98,الوارد!$H$2:$H$6000) -> 0 | L98: =SUMIF(المنصرف!$D$2:$D$6000,E98,المنصرف!$E$2:$E$6000) -> 0 | M98: =SUMIF(المنصرف!$D$2:$D$6000,E98,المنصرف!$G$2:$G$6000) -> 0 | N98: =SUMIF(المنصرف!$D$2:$D$6000,E98,المنصرف!$H$2:$H$6000) -> 0 | O98: =SUMIF(المرتجع!$D$2:$D$6000,E98,المرتجع!$E$2:$E$6000) -> 0 | P98: =SUMIF(المرتجع!$D$2:$D$6000,E98,المرتجع!$G$2:$G$6000) -> 0 | Q98: =SUMIF(المرتجع!$D$2:$D$6000,E98,المرتجع!$H$2:$H$6000) -> 0 | R98: 0 | S98: 0 | T98: 0 | AG98: =IFERROR(VLOOKUP(ROWS($AG$2:AG98),$AI$2:$AJ$932,2,0),"") ->  | AI98: =IF(ISNUMBER(SEARCH($AL$2,AJ98)),MAX($AI$1:AI97)+1,0) -> 0
I99: =SUMIF(الوارد!$D$2:$D$6000,E99,الوارد!$E$2:$E$6000) -> 0 | J99: =SUMIF(الوارد!$D$2:$D$6000,E99,الوارد!$G$2:$G$6000) -> 0 | K99: =SUMIF(الوارد!$D$2:$D$6000,E99,الوارد!$H$2:$H$6000) -> 0 | L99: =SUMIF(المنصرف!$D$2:$D$6000,E99,المنصرف!$E$2:$E$6000) -> 0 | M99: =SUMIF(المنصرف!$D$2:$D$6000,E99,المنصرف!$G$2:$G$6000) -> 0 | N99: =SUMIF(المنصرف!$D$2:$D$6000,E99,المنصرف!$H$2:$H$6000) -> 0 | O99: =SUMIF(المرتجع!$D$2:$D$6000,E99,المرتجع!$E$2:$E$6000) -> 0 | P99: =SUMIF(المرتجع!$D$2:$D$6000,E99,المرتجع!$G$2:$G$6000) -> 0 | Q99: =SUMIF(المرتجع!$D$2:$D$6000,E99,المرتجع!$H$2:$H$6000) -> 0 | R99: 0 | S99: 0 | T99: 0 | AG99: =IFERROR(VLOOKUP(ROWS($AG$2:AG99),$AI$2:$AJ$932,2,0),"") ->  | AI99: =IF(ISNUMBER(SEARCH($AL$2,AJ99)),MAX($AI$1:AI98)+1,0) -> 0
I100: =SUMIF(الوارد!$D$2:$D$6000,E100,الوارد!$E$2:$E$6000) -> 0 | J100: =SUMIF(الوارد!$D$2:$D$6000,E100,الوارد!$G$2:$G$6000) -> 0 | K100: =SUMIF(الوارد!$D$2:$D$6000,E100,الوارد!$H$2:$H$6000) -> 0 | L100: =SUMIF(المنصرف!$D$2:$D$6000,E100,المنصرف!$E$2:$E$6000) -> 0 | M100: =SUMIF(المنصرف!$D$2:$D$6000,E100,المنصرف!$G$2:$G$6000) -> 0 | N100: =SUMIF(المنصرف!$D$2:$D$6000,E100,المنصرف!$H$2:$H$6000) -> 0 | O100: =SUMIF(المرتجع!$D$2:$D$6000,E100,المرتجع!$E$2:$E$6000) -> 0 | P100: =SUMIF(المرتجع!$D$2:$D$6000,E100,المرتجع!$G$2:$G$6000) -> 0 | Q100: =SUMIF(المرتجع!$D$2:$D$6000,E100,المرتجع!$H$2:$H$6000) -> 0 | R100: 0 | S100: 0 | T100: 0 | AG100: =IFERROR(VLOOKUP(ROWS($AG$2:AG100),$AI$2:$AJ$932,2,0),"") ->  | AI100: =IF(ISNUMBER(SEARCH($AL$2,AJ100)),MAX($AI$1:AI99)+1,0) -> 0
I101: =SUMIF(الوارد!$D$2:$D$6000,E101,الوارد!$E$2:$E$6000) -> 0 | J101: =SUMIF(الوارد!$D$2:$D$6000,E101,الوارد!$G$2:$G$6000) -> 0 | K101: =SUMIF(الوارد!$D$2:$D$6000,E101,الوارد!$H$2:$H$6000) -> 0 | L101: =SUMIF(المنصرف!$D$2:$D$6000,E101,المنصرف!$E$2:$E$6000) -> 0 | M101: =SUMIF(المنصرف!$D$2:$D$6000,E101,المنصرف!$G$2:$G$6000) -> 0 | N101: =SUMIF(المنصرف!$D$2:$D$6000,E101,المنصرف!$H$2:$H$6000) -> 0 | O101: =SUMIF(المرتجع!$D$2:$D$6000,E101,المرتجع!$E$2:$E$6000) -> 0 | P101: =SUMIF(المرتجع!$D$2:$D$6000,E101,المرتجع!$G$2:$G$6000) -> 0 | Q101: =SUMIF(المرتجع!$D$2:$D$6000,E101,المرتجع!$H$2:$H$6000) -> 0 | R101: 0 | S101: 0 | T101: 0 | AG101: =IFERROR(VLOOKUP(ROWS($AG$2:AG101),$AI$2:$AJ$932,2,0),"") ->  | AI101: =IF(ISNUMBER(SEARCH($AL$2,AJ101)),MAX($AI$1:AI100)+1,0) -> 0
I102: =SUMIF(الوارد!$D$2:$D$6000,E102,الوارد!$E$2:$E$6000) -> 0 | J102: =SUMIF(الوارد!$D$2:$D$6000,E102,الوارد!$G$2:$G$6000) -> 0 | K102: =SUMIF(الوارد!$D$2:$D$6000,E102,الوارد!$H$2:$H$6000) -> 0 | L102: =SUMIF(المنصرف!$D$2:$D$6000,E102,المنصرف!$E$2:$E$6000) -> 0 | M102: =SUMIF(المنصرف!$D$2:$D$6000,E102,المنصرف!$G$2:$G$6000) -> 0 | N102: =SUMIF(المنصرف!$D$2:$D$6000,E102,المنصرف!$H$2:$H$6000) -> 0 | O102: =SUMIF(المرتجع!$D$2:$D$6000,E102,المرتجع!$E$2:$E$6000) -> 0 | P102: =SUMIF(المرتجع!$D$2:$D$6000,E102,المرتجع!$G$2:$G$6000) -> 0 | Q102: =SUMIF(المرتجع!$D$2:$D$6000,E102,المرتجع!$H$2:$H$6000) -> 0 | R102: 0 | S102: 0 | T102: 0 | AG102: =IFERROR(VLOOKUP(ROWS($AG$2:AG102),$AI$2:$AJ$932,2,0),"") ->  | AI102: =IF(ISNUMBER(SEARCH($AL$2,AJ102)),MAX($AI$1:AI101)+1,0) -> 0
I103: =SUMIF(الوارد!$D$2:$D$6000,E103,الوارد!$E$2:$E$6000) -> 0 | J103: =SUMIF(الوارد!$D$2:$D$6000,E103,الوارد!$G$2:$G$6000) -> 0 | K103: =SUMIF(الوارد!$D$2:$D$6000,E103,الوارد!$H$2:$H$6000) -> 0 | L103: =SUMIF(المنصرف!$D$2:$D$6000,E103,المنصرف!$E$2:$E$6000) -> 0 | M103: =SUMIF(المنصرف!$D$2:$D$6000,E103,المنصرف!$G$2:$G$6000) -> 0 | N103: =SUMIF(المنصرف!$D$2:$D$6000,E103,المنصرف!$H$2:$H$6000) -> 0 | O103: =SUMIF(المرتجع!$D$2:$D$6000,E103,المرتجع!$E$2:$E$6000) -> 0 | P103: =SUMIF(المرتجع!$D$2:$D$6000,E103,المرتجع!$G$2:$G$6000) -> 0 | Q103: =SUMIF(المرتجع!$D$2:$D$6000,E103,المرتجع!$H$2:$H$6000) -> 0 | R103: 0 | S103: 0 | T103: 0 | AG103: =IFERROR(VLOOKUP(ROWS($AG$2:AG103),$AI$2:$AJ$932,2,0),"") ->  | AI103: =IF(ISNUMBER(SEARCH($AL$2,AJ103)),MAX($AI$1:AI102)+1,0) -> 0
I104: =SUMIF(الوارد!$D$2:$D$6000,E104,الوارد!$E$2:$E$6000) -> 0 | J104: =SUMIF(الوارد!$D$2:$D$6000,E104,الوارد!$G$2:$G$6000) -> 0 | K104: =SUMIF(الوارد!$D$2:$D$6000,E104,الوارد!$H$2:$H$6000) -> 0 | L104: =SUMIF(المنصرف!$D$2:$D$6000,E104,المنصرف!$E$2:$E$6000) -> 0 | M104: =SUMIF(المنصرف!$D$2:$D$6000,E104,المنصرف!$G$2:$G$6000) -> 0 | N104: =SUMIF(المنصرف!$D$2:$D$6000,E104,المنصرف!$H$2:$H$6000) -> 0 | O104: =SUMIF(المرتجع!$D$2:$D$6000,E104,المرتجع!$E$2:$E$6000) -> 0 | P104: =SUMIF(المرتجع!$D$2:$D$6000,E104,المرتجع!$G$2:$G$6000) -> 0 | Q104: =SUMIF(المرتجع!$D$2:$D$6000,E104,المرتجع!$H$2:$H$6000) -> 0 | R104: 0 | S104: 0 | T104: 0 | AG104: =IFERROR(VLOOKUP(ROWS($AG$2:AG104),$AI$2:$AJ$932,2,0),"") ->  | AI104: =IF(ISNUMBER(SEARCH($AL$2,AJ104)),MAX($AI$1:AI103)+1,0) -> 0
I105: =SUMIF(الوارد!$D$2:$D$6000,E105,الوارد!$E$2:$E$6000) -> 0 | J105: =SUMIF(الوارد!$D$2:$D$6000,E105,الوارد!$G$2:$G$6000) -> 0 | K105: =SUMIF(الوارد!$D$2:$D$6000,E105,الوارد!$H$2:$H$6000) -> 0 | L105: =SUMIF(المنصرف!$D$2:$D$6000,E105,المنصرف!$E$2:$E$6000) -> 0 | M105: =SUMIF(المنصرف!$D$2:$D$6000,E105,المنصرف!$G$2:$G$6000) -> 0 | N105: =SUMIF(المنصرف!$D$2:$D$6000,E105,المنصرف!$H$2:$H$6000) -> 0 | O105: =SUMIF(المرتجع!$D$2:$D$6000,E105,المرتجع!$E$2:$E$6000) -> 0 | P105: =SUMIF(المرتجع!$D$2:$D$6000,E105,المرتجع!$G$2:$G$6000) -> 0 | Q105: =SUMIF(المرتجع!$D$2:$D$6000,E105,المرتجع!$H$2:$H$6000) -> 0 | R105: 0 | S105: 0 | T105: 0 | AG105: =IFERROR(VLOOKUP(ROWS($AG$2:AG105),$AI$2:$AJ$932,2,0),"") ->  | AI105: =IF(ISNUMBER(SEARCH($AL$2,AJ105)),MAX($AI$1:AI104)+1,0) -> 0
I106: =SUMIF(الوارد!$D$2:$D$6000,E106,الوارد!$E$2:$E$6000) -> 0 | J106: =SUMIF(الوارد!$D$2:$D$6000,E106,الوارد!$G$2:$G$6000) -> 0 | K106: =SUMIF(الوارد!$D$2:$D$6000,E106,الوارد!$H$2:$H$6000) -> 0 | L106: =SUMIF(المنصرف!$D$2:$D$6000,E106,المنصرف!$E$2:$E$6000) -> 0 | M106: =SUMIF(المنصرف!$D$2:$D$6000,E106,المنصرف!$G$2:$G$6000) -> 0 | N106: =SUMIF(المنصرف!$D$2:$D$6000,E106,المنصرف!$H$2:$H$6000) -> 0 | O106: =SUMIF(المرتجع!$D$2:$D$6000,E106,المرتجع!$E$2:$E$6000) -> 0 | P106: =SUMIF(المرتجع!$D$2:$D$6000,E106,المرتجع!$G$2:$G$6000) -> 0 | Q106: =SUMIF(المرتجع!$D$2:$D$6000,E106,المرتجع!$H$2:$H$6000) -> 0 | R106: 0 | S106: 0 | T106: 0 | AG106: =IFERROR(VLOOKUP(ROWS($AG$2:AG106),$AI$2:$AJ$932,2,0),"") ->  | AI106: =IF(ISNUMBER(SEARCH($AL$2,AJ106)),MAX($AI$1:AI105)+1,0) -> 0
I107: =SUMIF(الوارد!$D$2:$D$6000,E107,الوارد!$E$2:$E$6000) -> 0 | J107: =SUMIF(الوارد!$D$2:$D$6000,E107,الوارد!$G$2:$G$6000) -> 0 | K107: =SUMIF(الوارد!$D$2:$D$6000,E107,الوارد!$H$2:$H$6000) -> 0 | L107: =SUMIF(المنصرف!$D$2:$D$6000,E107,المنصرف!$E$2:$E$6000) -> 0 | M107: =SUMIF(المنصرف!$D$2:$D$6000,E107,المنصرف!$G$2:$G$6000) -> 0 | N107: =SUMIF(المنصرف!$D$2:$D$6000,E107,المنصرف!$H$2:$H$6000) -> 0 | O107: =SUMIF(المرتجع!$D$2:$D$6000,E107,المرتجع!$E$2:$E$6000) -> 0 | P107: =SUMIF(المرتجع!$D$2:$D$6000,E107,المرتجع!$G$2:$G$6000) -> 0 | Q107: =SUMIF(المرتجع!$D$2:$D$6000,E107,المرتجع!$H$2:$H$6000) -> 0 | R107: 0 | S107: 0 | T107: 0 | AG107: =IFERROR(VLOOKUP(ROWS($AG$2:AG107),$AI$2:$AJ$932,2,0),"") ->  | AI107: =IF(ISNUMBER(SEARCH($AL$2,AJ107)),MAX($AI$1:AI106)+1,0) -> 0
I108: =SUMIF(الوارد!$D$2:$D$6000,E108,الوارد!$E$2:$E$6000) -> 0 | J108: =SUMIF(الوارد!$D$2:$D$6000,E108,الوارد!$G$2:$G$6000) -> 0 | K108: =SUMIF(الوارد!$D$2:$D$6000,E108,الوارد!$H$2:$H$6000) -> 0 | L108: =SUMIF(المنصرف!$D$2:$D$6000,E108,المنصرف!$E$2:$E$6000) -> 0 | M108: =SUMIF(المنصرف!$D$2:$D$6000,E108,المنصرف!$G$2:$G$6000) -> 0 | N108: =SUMIF(المنصرف!$D$2:$D$6000,E108,المنصرف!$H$2:$H$6000) -> 0 | O108: =SUMIF(المرتجع!$D$2:$D$6000,E108,المرتجع!$E$2:$E$6000) -> 0 | P108: =SUMIF(المرتجع!$D$2:$D$6000,E108,المرتجع!$G$2:$G$6000) -> 0 | Q108: =SUMIF(المرتجع!$D$2:$D$6000,E108,المرتجع!$H$2:$H$6000) -> 0 | R108: 0 | S108: 0 | T108: 0 | AG108: =IFERROR(VLOOKUP(ROWS($AG$2:AG108),$AI$2:$AJ$932,2,0),"") ->  | AI108: =IF(ISNUMBER(SEARCH($AL$2,AJ108)),MAX($AI$1:AI107)+1,0) -> 0
I109: =SUMIF(الوارد!$D$2:$D$6000,E109,الوارد!$E$2:$E$6000) -> 0 | J109: =SUMIF(الوارد!$D$2:$D$6000,E109,الوارد!$G$2:$G$6000) -> 0 | K109: =SUMIF(الوارد!$D$2:$D$6000,E109,الوارد!$H$2:$H$6000) -> 0 | L109: =SUMIF(المنصرف!$D$2:$D$6000,E109,المنصرف!$E$2:$E$6000) -> 0 | M109: =SUMIF(المنصرف!$D$2:$D$6000,E109,المنصرف!$G$2:$G$6000) -> 0 | N109: =SUMIF(المنصرف!$D$2:$D$6000,E109,المنصرف!$H$2:$H$6000) -> 0 | O109: =SUMIF(المرتجع!$D$2:$D$6000,E109,المرتجع!$E$2:$E$6000) -> 0 | P109: =SUMIF(المرتجع!$D$2:$D$6000,E109,المرتجع!$G$2:$G$6000) -> 0 | Q109: =SUMIF(المرتجع!$D$2:$D$6000,E109,المرتجع!$H$2:$H$6000) -> 0 | R109: 0 | S109: 0 | T109: 0 | AG109: =IFERROR(VLOOKUP(ROWS($AG$2:AG109),$AI$2:$AJ$932,2,0),"") ->  | AI109: =IF(ISNUMBER(SEARCH($AL$2,AJ109)),MAX($AI$1:AI108)+1,0) -> 0
I110: =SUMIF(الوارد!$D$2:$D$6000,E110,الوارد!$E$2:$E$6000) -> 0 | J110: =SUMIF(الوارد!$D$2:$D$6000,E110,الوارد!$G$2:$G$6000) -> 0 | K110: =SUMIF(الوارد!$D$2:$D$6000,E110,الوارد!$H$2:$H$6000) -> 0 | L110: =SUMIF(المنصرف!$D$2:$D$6000,E110,المنصرف!$E$2:$E$6000) -> 0 | M110: =SUMIF(المنصرف!$D$2:$D$6000,E110,المنصرف!$G$2:$G$6000) -> 0 | N110: =SUMIF(المنصرف!$D$2:$D$6000,E110,المنصرف!$H$2:$H$6000) -> 0 | O110: =SUMIF(المرتجع!$D$2:$D$6000,E110,المرتجع!$E$2:$E$6000) -> 0 | P110: =SUMIF(المرتجع!$D$2:$D$6000,E110,المرتجع!$G$2:$G$6000) -> 0 | Q110: =SUMIF(المرتجع!$D$2:$D$6000,E110,المرتجع!$H$2:$H$6000) -> 0 | R110: 0 | S110: 0 | T110: 0 | AG110: =IFERROR(VLOOKUP(ROWS($AG$2:AG110),$AI$2:$AJ$932,2,0),"") ->  | AI110: =IF(ISNUMBER(SEARCH($AL$2,AJ110)),MAX($AI$1:AI109)+1,0) -> 0
I111: =SUMIF(الوارد!$D$2:$D$6000,E111,الوارد!$E$2:$E$6000) -> 0 | J111: =SUMIF(الوارد!$D$2:$D$6000,E111,الوارد!$G$2:$G$6000) -> 0 | K111: =SUMIF(الوارد!$D$2:$D$6000,E111,الوارد!$H$2:$H$6000) -> 0 | L111: =SUMIF(المنصرف!$D$2:$D$6000,E111,المنصرف!$E$2:$E$6000) -> 0 | M111: =SUMIF(المنصرف!$D$2:$D$6000,E111,المنصرف!$G$2:$G$6000) -> 0 | N111: =SUMIF(المنصرف!$D$2:$D$6000,E111,المنصرف!$H$2:$H$6000) -> 0 | O111: =SUMIF(المرتجع!$D$2:$D$6000,E111,المرتجع!$E$2:$E$6000) -> 0 | P111: =SUMIF(المرتجع!$D$2:$D$6000,E111,المرتجع!$G$2:$G$6000) -> 0 | Q111: =SUMIF(المرتجع!$D$2:$D$6000,E111,المرتجع!$H$2:$H$6000) -> 0 | R111: 0 | S111: 0 | T111: 0 | AG111: =IFERROR(VLOOKUP(ROWS($AG$2:AG111),$AI$2:$AJ$932,2,0),"") ->  | AI111: =IF(ISNUMBER(SEARCH($AL$2,AJ111)),MAX($AI$1:AI110)+1,0) -> 0
I112: =SUMIF(الوارد!$D$2:$D$6000,E112,الوارد!$E$2:$E$6000) -> 0 | J112: =SUMIF(الوارد!$D$2:$D$6000,E112,الوارد!$G$2:$G$6000) -> 0 | K112: =SUMIF(الوارد!$D$2:$D$6000,E112,الوارد!$H$2:$H$6000) -> 0 | L112: =SUMIF(المنصرف!$D$2:$D$6000,E112,المنصرف!$E$2:$E$6000) -> 0 | M112: =SUMIF(المنصرف!$D$2:$D$6000,E112,المنصرف!$G$2:$G$6000) -> 0 | N112: =SUMIF(المنصرف!$D$2:$D$6000,E112,المنصرف!$H$2:$H$6000) -> 0 | O112: =SUMIF(المرتجع!$D$2:$D$6000,E112,المرتجع!$E$2:$E$6000) -> 0 | P112: =SUMIF(المرتجع!$D$2:$D$6000,E112,المرتجع!$G$2:$G$6000) -> 0 | Q112: =SUMIF(المرتجع!$D$2:$D$6000,E112,المرتجع!$H$2:$H$6000) -> 0 | R112: 0 | S112: 0 | T112: 0 | AG112: =IFERROR(VLOOKUP(ROWS($AG$2:AG112),$AI$2:$AJ$932,2,0),"") ->  | AI112: =IF(ISNUMBER(SEARCH($AL$2,AJ112)),MAX($AI$1:AI111)+1,0) -> 0
I113: =SUMIF(الوارد!$D$2:$D$6000,E113,الوارد!$E$2:$E$6000) -> 0 | J113: =SUMIF(الوارد!$D$2:$D$6000,E113,الوارد!$G$2:$G$6000) -> 0 | K113: =SUMIF(الوارد!$D$2:$D$6000,E113,الوارد!$H$2:$H$6000) -> 0 | L113: =SUMIF(المنصرف!$D$2:$D$6000,E113,المنصرف!$E$2:$E$6000) -> 0 | M113: =SUMIF(المنصرف!$D$2:$D$6000,E113,المنصرف!$G$2:$G$6000) -> 0 | N113: =SUMIF(المنصرف!$D$2:$D$6000,E113,المنصرف!$H$2:$H$6000) -> 0 | O113: =SUMIF(المرتجع!$D$2:$D$6000,E113,المرتجع!$E$2:$E$6000) -> 0 | P113: =SUMIF(المرتجع!$D$2:$D$6000,E113,المرتجع!$G$2:$G$6000) -> 0 | Q113: =SUMIF(المرتجع!$D$2:$D$6000,E113,المرتجع!$H$2:$H$6000) -> 0 | R113: 0 | S113: 0 | T113: 0 | AG113: =IFERROR(VLOOKUP(ROWS($AG$2:AG113),$AI$2:$AJ$932,2,0),"") ->  | AI113: =IF(ISNUMBER(SEARCH($AL$2,AJ113)),MAX($AI$1:AI112)+1,0) -> 0
I114: =SUMIF(الوارد!$D$2:$D$6000,E114,الوارد!$E$2:$E$6000) -> 0 | J114: =SUMIF(الوارد!$D$2:$D$6000,E114,الوارد!$G$2:$G$6000) -> 0 | K114: =SUMIF(الوارد!$D$2:$D$6000,E114,الوارد!$H$2:$H$6000) -> 0 | L114: =SUMIF(المنصرف!$D$2:$D$6000,E114,المنصرف!$E$2:$E$6000) -> 0 | M114: =SUMIF(المنصرف!$D$2:$D$6000,E114,المنصرف!$G$2:$G$6000) -> 0 | N114: =SUMIF(المنصرف!$D$2:$D$6000,E114,المنصرف!$H$2:$H$6000) -> 0 | O114: =SUMIF(المرتجع!$D$2:$D$6000,E114,المرتجع!$E$2:$E$6000) -> 0 | P114: =SUMIF(المرتجع!$D$2:$D$6000,E114,المرتجع!$G$2:$G$6000) -> 0 | Q114: =SUMIF(المرتجع!$D$2:$D$6000,E114,المرتجع!$H$2:$H$6000) -> 0 | R114: 0 | S114: 0 | T114: 0 | AG114: =IFERROR(VLOOKUP(ROWS($AG$2:AG114),$AI$2:$AJ$932,2,0),"") ->  | AI114: =IF(ISNUMBER(SEARCH($AL$2,AJ114)),MAX($AI$1:AI113)+1,0) -> 0
I115: =SUMIF(الوارد!$D$2:$D$6000,E115,الوارد!$E$2:$E$6000) -> 0 | J115: =SUMIF(الوارد!$D$2:$D$6000,E115,الوارد!$G$2:$G$6000) -> 0 | K115: =SUMIF(الوارد!$D$2:$D$6000,E115,الوارد!$H$2:$H$6000) -> 0 | L115: =SUMIF(المنصرف!$D$2:$D$6000,E115,المنصرف!$E$2:$E$6000) -> 0 | M115: =SUMIF(المنصرف!$D$2:$D$6000,E115,المنصرف!$G$2:$G$6000) -> 0 | N115: =SUMIF(المنصرف!$D$2:$D$6000,E115,المنصرف!$H$2:$H$6000) -> 0 | O115: =SUMIF(المرتجع!$D$2:$D$6000,E115,المرتجع!$E$2:$E$6000) -> 0 | P115: =SUMIF(المرتجع!$D$2:$D$6000,E115,المرتجع!$G$2:$G$6000) -> 0 | Q115: =SUMIF(المرتجع!$D$2:$D$6000,E115,المرتجع!$H$2:$H$6000) -> 0 | R115: 0 | S115: 0 | T115: 0 | AG115: =IFERROR(VLOOKUP(ROWS($AG$2:AG115),$AI$2:$AJ$932,2,0),"") ->  | AI115: =IF(ISNUMBER(SEARCH($AL$2,AJ115)),MAX($AI$1:AI114)+1,0) -> 0
I116: =SUMIF(الوارد!$D$2:$D$6000,E116,الوارد!$E$2:$E$6000) -> 0 | J116: =SUMIF(الوارد!$D$2:$D$6000,E116,الوارد!$G$2:$G$6000) -> 0 | K116: =SUMIF(الوارد!$D$2:$D$6000,E116,الوارد!$H$2:$H$6000) -> 0 | L116: =SUMIF(المنصرف!$D$2:$D$6000,E116,المنصرف!$E$2:$E$6000) -> 0 | M116: =SUMIF(المنصرف!$D$2:$D$6000,E116,المنصرف!$G$2:$G$6000) -> 0 | N116: =SUMIF(المنصرف!$D$2:$D$6000,E116,المنصرف!$H$2:$H$6000) -> 0 | O116: =SUMIF(المرتجع!$D$2:$D$6000,E116,المرتجع!$E$2:$E$6000) -> 0 | P116: =SUMIF(المرتجع!$D$2:$D$6000,E116,المرتجع!$G$2:$G$6000) -> 0 | Q116: =SUMIF(المرتجع!$D$2:$D$6000,E116,المرتجع!$H$2:$H$6000) -> 0 | R116: 0 | S116: 0 | T116: 0 | AG116: =IFERROR(VLOOKUP(ROWS($AG$2:AG116),$AI$2:$AJ$932,2,0),"") ->  | AI116: =IF(ISNUMBER(SEARCH($AL$2,AJ116)),MAX($AI$1:AI115)+1,0) -> 0
I117: =SUMIF(الوارد!$D$2:$D$6000,E117,الوارد!$E$2:$E$6000) -> 0 | J117: =SUMIF(الوارد!$D$2:$D$6000,E117,الوارد!$G$2:$G$6000) -> 0 | K117: =SUMIF(الوارد!$D$2:$D$6000,E117,الوارد!$H$2:$H$6000) -> 0 | L117: =SUMIF(المنصرف!$D$2:$D$6000,E117,المنصرف!$E$2:$E$6000) -> 0 | M117: =SUMIF(المنصرف!$D$2:$D$6000,E117,المنصرف!$G$2:$G$6000) -> 0 | N117: =SUMIF(المنصرف!$D$2:$D$6000,E117,المنصرف!$H$2:$H$6000) -> 0 | O117: =SUMIF(المرتجع!$D$2:$D$6000,E117,المرتجع!$E$2:$E$6000) -> 0 | P117: =SUMIF(المرتجع!$D$2:$D$6000,E117,المرتجع!$G$2:$G$6000) -> 0 | Q117: =SUMIF(المرتجع!$D$2:$D$6000,E117,المرتجع!$H$2:$H$6000) -> 0 | R117: 0 | S117: 0 | T117: 0 | AG117: =IFERROR(VLOOKUP(ROWS($AG$2:AG117),$AI$2:$AJ$932,2,0),"") ->  | AI117: =IF(ISNUMBER(SEARCH($AL$2,AJ117)),MAX($AI$1:AI116)+1,0) -> 0
I118: =SUMIF(الوارد!$D$2:$D$6000,E118,الوارد!$E$2:$E$6000) -> 0 | J118: =SUMIF(الوارد!$D$2:$D$6000,E118,الوارد!$G$2:$G$6000) -> 0 | K118: =SUMIF(الوارد!$D$2:$D$6000,E118,الوارد!$H$2:$H$6000) -> 0 | L118: =SUMIF(المنصرف!$D$2:$D$6000,E118,المنصرف!$E$2:$E$6000) -> 0 | M118: =SUMIF(المنصرف!$D$2:$D$6000,E118,المنصرف!$G$2:$G$6000) -> 0 | N118: =SUMIF(المنصرف!$D$2:$D$6000,E118,المنصرف!$H$2:$H$6000) -> 0 | O118: =SUMIF(المرتجع!$D$2:$D$6000,E118,المرتجع!$E$2:$E$6000) -> 0 | P118: =SUMIF(المرتجع!$D$2:$D$6000,E118,المرتجع!$G$2:$G$6000) -> 0 | Q118: =SUMIF(المرتجع!$D$2:$D$6000,E118,المرتجع!$H$2:$H$6000) -> 0 | R118: 0 | S118: 0 | T118: 0 | AG118: =IFERROR(VLOOKUP(ROWS($AG$2:AG118),$AI$2:$AJ$932,2,0),"") ->  | AI118: =IF(ISNUMBER(SEARCH($AL$2,AJ118)),MAX($AI$1:AI117)+1,0) -> 0
I119: =SUMIF(الوارد!$D$2:$D$6000,E119,الوارد!$E$2:$E$6000) -> 0 | J119: =SUMIF(الوارد!$D$2:$D$6000,E119,الوارد!$G$2:$G$6000) -> 0 | K119: =SUMIF(الوارد!$D$2:$D$6000,E119,الوارد!$H$2:$H$6000) -> 0 | L119: =SUMIF(المنصرف!$D$2:$D$6000,E119,المنصرف!$E$2:$E$6000) -> 0 | M119: =SUMIF(المنصرف!$D$2:$D$6000,E119,المنصرف!$G$2:$G$6000) -> 0 | N119: =SUMIF(المنصرف!$D$2:$D$6000,E119,المنصرف!$H$2:$H$6000) -> 0 | O119: =SUMIF(المرتجع!$D$2:$D$6000,E119,المرتجع!$E$2:$E$6000) -> 0 | P119: =SUMIF(المرتجع!$D$2:$D$6000,E119,المرتجع!$G$2:$G$6000) -> 0 | Q119: =SUMIF(المرتجع!$D$2:$D$6000,E119,المرتجع!$H$2:$H$6000) -> 0 | R119: 0 | S119: 0 | T119: 0 | AG119: =IFERROR(VLOOKUP(ROWS($AG$2:AG119),$AI$2:$AJ$932,2,0),"") ->  | AI119: =IF(ISNUMBER(SEARCH($AL$2,AJ119)),MAX($AI$1:AI118)+1,0) -> 0
I120: =SUMIF(الوارد!$D$2:$D$6000,E120,الوارد!$E$2:$E$6000) -> 0 | J120: =SUMIF(الوارد!$D$2:$D$6000,E120,الوارد!$G$2:$G$6000) -> 0 | K120: =SUMIF(الوارد!$D$2:$D$6000,E120,الوارد!$H$2:$H$6000) -> 0 | L120: =SUMIF(المنصرف!$D$2:$D$6000,E120,المنصرف!$E$2:$E$6000) -> 0 | M120: =SUMIF(المنصرف!$D$2:$D$6000,E120,المنصرف!$G$2:$G$6000) -> 0 | N120: =SUMIF(المنصرف!$D$2:$D$6000,E120,المنصرف!$H$2:$H$6000) -> 0 | O120: =SUMIF(المرتجع!$D$2:$D$6000,E120,المرتجع!$E$2:$E$6000) -> 0 | P120: =SUMIF(المرتجع!$D$2:$D$6000,E120,المرتجع!$G$2:$G$6000) -> 0 | Q120: =SUMIF(المرتجع!$D$2:$D$6000,E120,المرتجع!$H$2:$H$6000) -> 0 | R120: 0 | S120: 0 | T120: 0 | AG120: =IFERROR(VLOOKUP(ROWS($AG$2:AG120),$AI$2:$AJ$932,2,0),"") ->  | AI120: =IF(ISNUMBER(SEARCH($AL$2,AJ120)),MAX($AI$1:AI119)+1,0) -> 0
I121: =SUMIF(الوارد!$D$2:$D$6000,E121,الوارد!$E$2:$E$6000) -> 0 | J121: =SUMIF(الوارد!$D$2:$D$6000,E121,الوارد!$G$2:$G$6000) -> 0 | K121: =SUMIF(الوارد!$D$2:$D$6000,E121,الوارد!$H$2:$H$6000) -> 0 | L121: =SUMIF(المنصرف!$D$2:$D$6000,E121,المنصرف!$E$2:$E$6000) -> 0 | M121: =SUMIF(المنصرف!$D$2:$D$6000,E121,المنصرف!$G$2:$G$6000) -> 0 | N121: =SUMIF(المنصرف!$D$2:$D$6000,E121,المنصرف!$H$2:$H$6000) -> 0 | O121: =SUMIF(المرتجع!$D$2:$D$6000,E121,المرتجع!$E$2:$E$6000) -> 0 | P121: =SUMIF(المرتجع!$D$2:$D$6000,E121,المرتجع!$G$2:$G$6000) -> 0 | Q121: =SUMIF(المرتجع!$D$2:$D$6000,E121,المرتجع!$H$2:$H$6000) -> 0 | R121: 0 | S121: 0 | T121: 0 | AG121: =IFERROR(VLOOKUP(ROWS($AG$2:AG121),$AI$2:$AJ$932,2,0),"") ->  | AI121: =IF(ISNUMBER(SEARCH($AL$2,AJ121)),MAX($AI$1:AI120)+1,0) -> 0
I122: =SUMIF(الوارد!$D$2:$D$6000,E122,الوارد!$E$2:$E$6000) -> 0 | J122: =SUMIF(الوارد!$D$2:$D$6000,E122,الوارد!$G$2:$G$6000) -> 0 | K122: =SUMIF(الوارد!$D$2:$D$6000,E122,الوارد!$H$2:$H$6000) -> 0 | L122: =SUMIF(المنصرف!$D$2:$D$6000,E122,المنصرف!$E$2:$E$6000) -> 0 | M122: =SUMIF(المنصرف!$D$2:$D$6000,E122,المنصرف!$G$2:$G$6000) -> 0 | N122: =SUMIF(المنصرف!$D$2:$D$6000,E122,المنصرف!$H$2:$H$6000) -> 0 | O122: =SUMIF(المرتجع!$D$2:$D$6000,E122,المرتجع!$E$2:$E$6000) -> 0 | P122: =SUMIF(المرتجع!$D$2:$D$6000,E122,المرتجع!$G$2:$G$6000) -> 0 | Q122: =SUMIF(المرتجع!$D$2:$D$6000,E122,المرتجع!$H$2:$H$6000) -> 0 | R122: 0 | S122: 0 | T122: 0 | AG122: =IFERROR(VLOOKUP(ROWS($AG$2:AG122),$AI$2:$AJ$932,2,0),"") ->  | AI122: =IF(ISNUMBER(SEARCH($AL$2,AJ122)),MAX($AI$1:AI121)+1,0) -> 0
I123: =SUMIF(الوارد!$D$2:$D$6000,E123,الوارد!$E$2:$E$6000) -> 0 | J123: =SUMIF(الوارد!$D$2:$D$6000,E123,الوارد!$G$2:$G$6000) -> 0 | K123: =SUMIF(الوارد!$D$2:$D$6000,E123,الوارد!$H$2:$H$6000) -> 0 | L123: =SUMIF(المنصرف!$D$2:$D$6000,E123,المنصرف!$E$2:$E$6000) -> 0 | M123: =SUMIF(المنصرف!$D$2:$D$6000,E123,المنصرف!$G$2:$G$6000) -> 0 | N123: =SUMIF(المنصرف!$D$2:$D$6000,E123,المنصرف!$H$2:$H$6000) -> 0 | O123: =SUMIF(المرتجع!$D$2:$D$6000,E123,المرتجع!$E$2:$E$6000) -> 0 | P123: =SUMIF(المرتجع!$D$2:$D$6000,E123,المرتجع!$G$2:$G$6000) -> 0 | Q123: =SUMIF(المرتجع!$D$2:$D$6000,E123,المرتجع!$H$2:$H$6000) -> 0 | R123: 0 | S123: 0 | T123: 0 | AG123: =IFERROR(VLOOKUP(ROWS($AG$2:AG123),$AI$2:$AJ$932,2,0),"") ->  | AI123: =IF(ISNUMBER(SEARCH($AL$2,AJ123)),MAX($AI$1:AI122)+1,0) -> 0
I124: =SUMIF(الوارد!$D$2:$D$6000,E124,الوارد!$E$2:$E$6000) -> 0 | J124: =SUMIF(الوارد!$D$2:$D$6000,E124,الوارد!$G$2:$G$6000) -> 0 | K124: =SUMIF(الوارد!$D$2:$D$6000,E124,الوارد!$H$2:$H$6000) -> 0 | L124: =SUMIF(المنصرف!$D$2:$D$6000,E124,المنصرف!$E$2:$E$6000) -> 0 | M124: =SUMIF(المنصرف!$D$2:$D$6000,E124,المنصرف!$G$2:$G$6000) -> 0 | N124: =SUMIF(المنصرف!$D$2:$D$6000,E124,المنصرف!$H$2:$H$6000) -> 0 | O124: =SUMIF(المرتجع!$D$2:$D$6000,E124,المرتجع!$E$2:$E$6000) -> 0 | P124: =SUMIF(المرتجع!$D$2:$D$6000,E124,المرتجع!$G$2:$G$6000) -> 0 | Q124: =SUMIF(المرتجع!$D$2:$D$6000,E124,المرتجع!$H$2:$H$6000) -> 0 | R124: 0 | S124: 0 | T124: 0 | AG124: =IFERROR(VLOOKUP(ROWS($AG$2:AG124),$AI$2:$AJ$932,2,0),"") ->  | AI124: =IF(ISNUMBER(SEARCH($AL$2,AJ124)),MAX($AI$1:AI123)+1,0) -> 0
I125: =SUMIF(الوارد!$D$2:$D$6000,E125,الوارد!$E$2:$E$6000) -> 0 | J125: =SUMIF(الوارد!$D$2:$D$6000,E125,الوارد!$G$2:$G$6000) -> 0 | K125: =SUMIF(الوارد!$D$2:$D$6000,E125,الوارد!$H$2:$H$6000) -> 0 | L125: =SUMIF(المنصرف!$D$2:$D$6000,E125,المنصرف!$E$2:$E$6000) -> 0 | M125: =SUMIF(المنصرف!$D$2:$D$6000,E125,المنصرف!$G$2:$G$6000) -> 0 | N125: =SUMIF(المنصرف!$D$2:$D$6000,E125,المنصرف!$H$2:$H$6000) -> 0 | O125: =SUMIF(المرتجع!$D$2:$D$6000,E125,المرتجع!$E$2:$E$6000) -> 0 | P125: =SUMIF(المرتجع!$D$2:$D$6000,E125,المرتجع!$G$2:$G$6000) -> 0 | Q125: =SUMIF(المرتجع!$D$2:$D$6000,E125,المرتجع!$H$2:$H$6000) -> 0 | R125: 0 | S125: 0 | T125: 0 | AG125: =IFERROR(VLOOKUP(ROWS($AG$2:AG125),$AI$2:$AJ$932,2,0),"") ->  | AI125: =IF(ISNUMBER(SEARCH($AL$2,AJ125)),MAX($AI$1:AI124)+1,0) -> 0
I126: =SUMIF(الوارد!$D$2:$D$6000,E126,الوارد!$E$2:$E$6000) -> 0 | J126: =SUMIF(الوارد!$D$2:$D$6000,E126,الوارد!$G$2:$G$6000) -> 0 | K126: =SUMIF(الوارد!$D$2:$D$6000,E126,الوارد!$H$2:$H$6000) -> 0 | L126: =SUMIF(المنصرف!$D$2:$D$6000,E126,المنصرف!$E$2:$E$6000) -> 0 | M126: =SUMIF(المنصرف!$D$2:$D$6000,E126,المنصرف!$G$2:$G$6000) -> 0 | N126: =SUMIF(المنصرف!$D$2:$D$6000,E126,المنصرف!$H$2:$H$6000) -> 0 | O126: =SUMIF(المرتجع!$D$2:$D$6000,E126,المرتجع!$E$2:$E$6000) -> 0 | P126: =SUMIF(المرتجع!$D$2:$D$6000,E126,المرتجع!$G$2:$G$6000) -> 0 | Q126: =SUMIF(المرتجع!$D$2:$D$6000,E126,المرتجع!$H$2:$H$6000) -> 0 | R126: 0 | S126: 0 | T126: 0 | AG126: =IFERROR(VLOOKUP(ROWS($AG$2:AG126),$AI$2:$AJ$932,2,0),"") ->  | AI126: =IF(ISNUMBER(SEARCH($AL$2,AJ126)),MAX($AI$1:AI125)+1,0) -> 0
I127: =SUMIF(الوارد!$D$2:$D$6000,E127,الوارد!$E$2:$E$6000) -> 0 | J127: =SUMIF(الوارد!$D$2:$D$6000,E127,الوارد!$G$2:$G$6000) -> 0 | K127: =SUMIF(الوارد!$D$2:$D$6000,E127,الوارد!$H$2:$H$6000) -> 0 | L127: =SUMIF(المنصرف!$D$2:$D$6000,E127,المنصرف!$E$2:$E$6000) -> 0 | M127: =SUMIF(المنصرف!$D$2:$D$6000,E127,المنصرف!$G$2:$G$6000) -> 0 | N127: =SUMIF(المنصرف!$D$2:$D$6000,E127,المنصرف!$H$2:$H$6000) -> 0 | O127: =SUMIF(المرتجع!$D$2:$D$6000,E127,المرتجع!$E$2:$E$6000) -> 0 | P127: =SUMIF(المرتجع!$D$2:$D$6000,E127,المرتجع!$G$2:$G$6000) -> 0 | Q127: =SUMIF(المرتجع!$D$2:$D$6000,E127,المرتجع!$H$2:$H$6000) -> 0 | R127: 0 | S127: 0 | T127: 0 | AG127: =IFERROR(VLOOKUP(ROWS($AG$2:AG127),$AI$2:$AJ$932,2,0),"") ->  | AI127: =IF(ISNUMBER(SEARCH($AL$2,AJ127)),MAX($AI$1:AI126)+1,0) -> 0
I128: =SUMIF(الوارد!$D$2:$D$6000,E128,الوارد!$E$2:$E$6000) -> 0 | J128: =SUMIF(الوارد!$D$2:$D$6000,E128,الوارد!$G$2:$G$6000) -> 0 | K128: =SUMIF(الوارد!$D$2:$D$6000,E128,الوارد!$H$2:$H$6000) -> 0 | L128: =SUMIF(المنصرف!$D$2:$D$6000,E128,المنصرف!$E$2:$E$6000) -> 0 | M128: =SUMIF(المنصرف!$D$2:$D$6000,E128,المنصرف!$G$2:$G$6000) -> 0 | N128: =SUMIF(المنصرف!$D$2:$D$6000,E128,المنصرف!$H$2:$H$6000) -> 0 | O128: =SUMIF(المرتجع!$D$2:$D$6000,E128,المرتجع!$E$2:$E$6000) -> 0 | P128: =SUMIF(المرتجع!$D$2:$D$6000,E128,المرتجع!$G$2:$G$6000) -> 0 | Q128: =SUMIF(المرتجع!$D$2:$D$6000,E128,المرتجع!$H$2:$H$6000) -> 0 | R128: 0 | S128: 0 | T128: 0 | AG128: =IFERROR(VLOOKUP(ROWS($AG$2:AG128),$AI$2:$AJ$932,2,0),"") ->  | AI128: =IF(ISNUMBER(SEARCH($AL$2,AJ128)),MAX($AI$1:AI127)+1,0) -> 0
I129: =SUMIF(الوارد!$D$2:$D$6000,E129,الوارد!$E$2:$E$6000) -> 0 | J129: =SUMIF(الوارد!$D$2:$D$6000,E129,الوارد!$G$2:$G$6000) -> 0 | K129: =SUMIF(الوارد!$D$2:$D$6000,E129,الوارد!$H$2:$H$6000) -> 0 | L129: =SUMIF(المنصرف!$D$2:$D$6000,E129,المنصرف!$E$2:$E$6000) -> 0 | M129: =SUMIF(المنصرف!$D$2:$D$6000,E129,المنصرف!$G$2:$G$6000) -> 0 | N129: =SUMIF(المنصرف!$D$2:$D$6000,E129,المنصرف!$H$2:$H$6000) -> 0 | O129: =SUMIF(المرتجع!$D$2:$D$6000,E129,المرتجع!$E$2:$E$6000) -> 0 | P129: =SUMIF(المرتجع!$D$2:$D$6000,E129,المرتجع!$G$2:$G$6000) -> 0 | Q129: =SUMIF(المرتجع!$D$2:$D$6000,E129,المرتجع!$H$2:$H$6000) -> 0 | R129: 0 | S129: 0 | T129: 0 | AG129: =IFERROR(VLOOKUP(ROWS($AG$2:AG129),$AI$2:$AJ$932,2,0),"") ->  | AI129: =IF(ISNUMBER(SEARCH($AL$2,AJ129)),MAX($AI$1:AI128)+1,0) -> 0
I130: =SUMIF(الوارد!$D$2:$D$6000,E130,الوارد!$E$2:$E$6000) -> 0 | J130: =SUMIF(الوارد!$D$2:$D$6000,E130,الوارد!$G$2:$G$6000) -> 0 | K130: =SUMIF(الوارد!$D$2:$D$6000,E130,الوارد!$H$2:$H$6000) -> 0 | L130: =SUMIF(المنصرف!$D$2:$D$6000,E130,المنصرف!$E$2:$E$6000) -> 0 | M130: =SUMIF(المنصرف!$D$2:$D$6000,E130,المنصرف!$G$2:$G$6000) -> 0 | N130: =SUMIF(المنصرف!$D$2:$D$6000,E130,المنصرف!$H$2:$H$6000) -> 0 | O130: =SUMIF(المرتجع!$D$2:$D$6000,E130,المرتجع!$E$2:$E$6000) -> 0 | P130: =SUMIF(المرتجع!$D$2:$D$6000,E130,المرتجع!$G$2:$G$6000) -> 0 | Q130: =SUMIF(المرتجع!$D$2:$D$6000,E130,المرتجع!$H$2:$H$6000) -> 0 | R130: 0 | S130: 0 | T130: 0 | AG130: =IFERROR(VLOOKUP(ROWS($AG$2:AG130),$AI$2:$AJ$932,2,0),"") ->  | AI130: =IF(ISNUMBER(SEARCH($AL$2,AJ130)),MAX($AI$1:AI129)+1,0) -> 0
I131: =SUMIF(الوارد!$D$2:$D$6000,E131,الوارد!$E$2:$E$6000) -> 0 | J131: =SUMIF(الوارد!$D$2:$D$6000,E131,الوارد!$G$2:$G$6000) -> 0 | K131: =SUMIF(الوارد!$D$2:$D$6000,E131,الوارد!$H$2:$H$6000) -> 0 | L131: =SUMIF(المنصرف!$D$2:$D$6000,E131,المنصرف!$E$2:$E$6000) -> 0 | M131: =SUMIF(المنصرف!$D$2:$D$6000,E131,المنصرف!$G$2:$G$6000) -> 0 | N131: =SUMIF(المنصرف!$D$2:$D$6000,E131,المنصرف!$H$2:$H$6000) -> 0 | O131: =SUMIF(المرتجع!$D$2:$D$6000,E131,المرتجع!$E$2:$E$6000) -> 0 | P131: =SUMIF(المرتجع!$D$2:$D$6000,E131,المرتجع!$G$2:$G$6000) -> 0 | Q131: =SUMIF(المرتجع!$D$2:$D$6000,E131,المرتجع!$H$2:$H$6000) -> 0 | R131: 0 | S131: 0 | T131: 0 | AG131: =IFERROR(VLOOKUP(ROWS($AG$2:AG131),$AI$2:$AJ$932,2,0),"") ->  | AI131: =IF(ISNUMBER(SEARCH($AL$2,AJ131)),MAX($AI$1:AI130)+1,0) -> 0
I132: =SUMIF(الوارد!$D$2:$D$6000,E132,الوارد!$E$2:$E$6000) -> 0 | J132: =SUMIF(الوارد!$D$2:$D$6000,E132,الوارد!$G$2:$G$6000) -> 0 | K132: =SUMIF(الوارد!$D$2:$D$6000,E132,الوارد!$H$2:$H$6000) -> 0 | L132: =SUMIF(المنصرف!$D$2:$D$6000,E132,المنصرف!$E$2:$E$6000) -> 0 | M132: =SUMIF(المنصرف!$D$2:$D$6000,E132,المنصرف!$G$2:$G$6000) -> 0 | N132: =SUMIF(المنصرف!$D$2:$D$6000,E132,المنصرف!$H$2:$H$6000) -> 0 | O132: =SUMIF(المرتجع!$D$2:$D$6000,E132,المرتجع!$E$2:$E$6000) -> 0 | P132: =SUMIF(المرتجع!$D$2:$D$6000,E132,المرتجع!$G$2:$G$6000) -> 0 | Q132: =SUMIF(المرتجع!$D$2:$D$6000,E132,المرتجع!$H$2:$H$6000) -> 0 | R132: 0 | S132: 0 | T132: 0 | AG132: =IFERROR(VLOOKUP(ROWS($AG$2:AG132),$AI$2:$AJ$932,2,0),"") ->  | AI132: =IF(ISNUMBER(SEARCH($AL$2,AJ132)),MAX($AI$1:AI131)+1,0) -> 0
I133: =SUMIF(الوارد!$D$2:$D$6000,E133,الوارد!$E$2:$E$6000) -> 0 | J133: =SUMIF(الوارد!$D$2:$D$6000,E133,الوارد!$G$2:$G$6000) -> 0 | K133: =SUMIF(الوارد!$D$2:$D$6000,E133,الوارد!$H$2:$H$6000) -> 0 | L133: =SUMIF(المنصرف!$D$2:$D$6000,E133,المنصرف!$E$2:$E$6000) -> 0 | M133: =SUMIF(المنصرف!$D$2:$D$6000,E133,المنصرف!$G$2:$G$6000) -> 0 | N133: =SUMIF(المنصرف!$D$2:$D$6000,E133,المنصرف!$H$2:$H$6000) -> 0 | O133: =SUMIF(المرتجع!$D$2:$D$6000,E133,المرتجع!$E$2:$E$6000) -> 0 | P133: =SUMIF(المرتجع!$D$2:$D$6000,E133,المرتجع!$G$2:$G$6000) -> 0 | Q133: =SUMIF(المرتجع!$D$2:$D$6000,E133,المرتجع!$H$2:$H$6000) -> 0 | R133: 0 | S133: 0 | T133: 0 | AG133: =IFERROR(VLOOKUP(ROWS($AG$2:AG133),$AI$2:$AJ$932,2,0),"") ->  | AI133: =IF(ISNUMBER(SEARCH($AL$2,AJ133)),MAX($AI$1:AI132)+1,0) -> 0
I134: =SUMIF(الوارد!$D$2:$D$6000,E134,الوارد!$E$2:$E$6000) -> 0 | J134: =SUMIF(الوارد!$D$2:$D$6000,E134,الوارد!$G$2:$G$6000) -> 0 | K134: =SUMIF(الوارد!$D$2:$D$6000,E134,الوارد!$H$2:$H$6000) -> 0 | L134: =SUMIF(المنصرف!$D$2:$D$6000,E134,المنصرف!$E$2:$E$6000) -> 0 | M134: =SUMIF(المنصرف!$D$2:$D$6000,E134,المنصرف!$G$2:$G$6000) -> 0 | N134: =SUMIF(المنصرف!$D$2:$D$6000,E134,المنصرف!$H$2:$H$6000) -> 0 | O134: =SUMIF(المرتجع!$D$2:$D$6000,E134,المرتجع!$E$2:$E$6000) -> 0 | P134: =SUMIF(المرتجع!$D$2:$D$6000,E134,المرتجع!$G$2:$G$6000) -> 0 | Q134: =SUMIF(المرتجع!$D$2:$D$6000,E134,المرتجع!$H$2:$H$6000) -> 0 | R134: 0 | S134: 0 | T134: 0 | AG134: =IFERROR(VLOOKUP(ROWS($AG$2:AG134),$AI$2:$AJ$932,2,0),"") ->  | AI134: =IF(ISNUMBER(SEARCH($AL$2,AJ134)),MAX($AI$1:AI133)+1,0) -> 0
I135: =SUMIF(الوارد!$D$2:$D$6000,E135,الوارد!$E$2:$E$6000) -> 0 | J135: =SUMIF(الوارد!$D$2:$D$6000,E135,الوارد!$G$2:$G$6000) -> 0 | K135: =SUMIF(الوارد!$D$2:$D$6000,E135,الوارد!$H$2:$H$6000) -> 0 | L135: =SUMIF(المنصرف!$D$2:$D$6000,E135,المنصرف!$E$2:$E$6000) -> 0 | M135: =SUMIF(المنصرف!$D$2:$D$6000,E135,المنصرف!$G$2:$G$6000) -> 0 | N135: =SUMIF(المنصرف!$D$2:$D$6000,E135,المنصرف!$H$2:$H$6000) -> 0 | O135: =SUMIF(المرتجع!$D$2:$D$6000,E135,المرتجع!$E$2:$E$6000) -> 0 | P135: =SUMIF(المرتجع!$D$2:$D$6000,E135,المرتجع!$G$2:$G$6000) -> 0 | Q135: =SUMIF(المرتجع!$D$2:$D$6000,E135,المرتجع!$H$2:$H$6000) -> 0 | R135: 0 | S135: 0 | T135: 0 | AG135: =IFERROR(VLOOKUP(ROWS($AG$2:AG135),$AI$2:$AJ$932,2,0),"") ->  | AI135: =IF(ISNUMBER(SEARCH($AL$2,AJ135)),MAX($AI$1:AI134)+1,0) -> 0
I136: =SUMIF(الوارد!$D$2:$D$6000,E136,الوارد!$E$2:$E$6000) -> 0 | J136: =SUMIF(الوارد!$D$2:$D$6000,E136,الوارد!$G$2:$G$6000) -> 0 | K136: =SUMIF(الوارد!$D$2:$D$6000,E136,الوارد!$H$2:$H$6000) -> 0 | L136: =SUMIF(المنصرف!$D$2:$D$6000,E136,المنصرف!$E$2:$E$6000) -> 0 | M136: =SUMIF(المنصرف!$D$2:$D$6000,E136,المنصرف!$G$2:$G$6000) -> 0 | N136: =SUMIF(المنصرف!$D$2:$D$6000,E136,المنصرف!$H$2:$H$6000) -> 0 | O136: =SUMIF(المرتجع!$D$2:$D$6000,E136,المرتجع!$E$2:$E$6000) -> 0 | P136: =SUMIF(المرتجع!$D$2:$D$6000,E136,المرتجع!$G$2:$G$6000) -> 0 | Q136: =SUMIF(المرتجع!$D$2:$D$6000,E136,المرتجع!$H$2:$H$6000) -> 0 | R136: 0 | S136: 0 | T136: 0 | AG136: =IFERROR(VLOOKUP(ROWS($AG$2:AG136),$AI$2:$AJ$932,2,0),"") ->  | AI136: =IF(ISNUMBER(SEARCH($AL$2,AJ136)),MAX($AI$1:AI135)+1,0) -> 0
I137: =SUMIF(الوارد!$D$2:$D$6000,E137,الوارد!$E$2:$E$6000) -> 0 | J137: =SUMIF(الوارد!$D$2:$D$6000,E137,الوارد!$G$2:$G$6000) -> 0 | K137: =SUMIF(الوارد!$D$2:$D$6000,E137,الوارد!$H$2:$H$6000) -> 0 | L137: =SUMIF(المنصرف!$D$2:$D$6000,E137,المنصرف!$E$2:$E$6000) -> 0 | M137: =SUMIF(المنصرف!$D$2:$D$6000,E137,المنصرف!$G$2:$G$6000) -> 0 | N137: =SUMIF(المنصرف!$D$2:$D$6000,E137,المنصرف!$H$2:$H$6000) -> 0 | O137: =SUMIF(المرتجع!$D$2:$D$6000,E137,المرتجع!$E$2:$E$6000) -> 0 | P137: =SUMIF(المرتجع!$D$2:$D$6000,E137,المرتجع!$G$2:$G$6000) -> 0 | Q137: =SUMIF(المرتجع!$D$2:$D$6000,E137,المرتجع!$H$2:$H$6000) -> 0 | R137: 0 | S137: 0 | T137: 0 | AG137: =IFERROR(VLOOKUP(ROWS($AG$2:AG137),$AI$2:$AJ$932,2,0),"") ->  | AI137: =IF(ISNUMBER(SEARCH($AL$2,AJ137)),MAX($AI$1:AI136)+1,0) -> 0
I138: =SUMIF(الوارد!$D$2:$D$6000,E138,الوارد!$E$2:$E$6000) -> 0 | J138: =SUMIF(الوارد!$D$2:$D$6000,E138,الوارد!$G$2:$G$6000) -> 0 | K138: =SUMIF(الوارد!$D$2:$D$6000,E138,الوارد!$H$2:$H$6000) -> 0 | L138: =SUMIF(المنصرف!$D$2:$D$6000,E138,المنصرف!$E$2:$E$6000) -> 0 | M138: =SUMIF(المنصرف!$D$2:$D$6000,E138,المنصرف!$G$2:$G$6000) -> 0 | N138: =SUMIF(المنصرف!$D$2:$D$6000,E138,المنصرف!$H$2:$H$6000) -> 0 | O138: =SUMIF(المرتجع!$D$2:$D$6000,E138,المرتجع!$E$2:$E$6000) -> 0 | P138: =SUMIF(المرتجع!$D$2:$D$6000,E138,المرتجع!$G$2:$G$6000) -> 0 | Q138: =SUMIF(المرتجع!$D$2:$D$6000,E138,المرتجع!$H$2:$H$6000) -> 0 | R138: 0 | S138: 0 | T138: 0 | AG138: =IFERROR(VLOOKUP(ROWS($AG$2:AG138),$AI$2:$AJ$932,2,0),"") ->  | AI138: =IF(ISNUMBER(SEARCH($AL$2,AJ138)),MAX($AI$1:AI137)+1,0) -> 0
I139: =SUMIF(الوارد!$D$2:$D$6000,E139,الوارد!$E$2:$E$6000) -> 0 | J139: =SUMIF(الوارد!$D$2:$D$6000,E139,الوارد!$G$2:$G$6000) -> 0 | K139: =SUMIF(الوارد!$D$2:$D$6000,E139,الوارد!$H$2:$H$6000) -> 0 | L139: =SUMIF(المنصرف!$D$2:$D$6000,E139,المنصرف!$E$2:$E$6000) -> 0 | M139: =SUMIF(المنصرف!$D$2:$D$6000,E139,المنصرف!$G$2:$G$6000) -> 0 | N139: =SUMIF(المنصرف!$D$2:$D$6000,E139,المنصرف!$H$2:$H$6000) -> 0 | O139: =SUMIF(المرتجع!$D$2:$D$6000,E139,المرتجع!$E$2:$E$6000) -> 0 | P139: =SUMIF(المرتجع!$D$2:$D$6000,E139,المرتجع!$G$2:$G$6000) -> 0 | Q139: =SUMIF(المرتجع!$D$2:$D$6000,E139,المرتجع!$H$2:$H$6000) -> 0 | R139: 0 | S139: 0 | T139: 0 | AG139: =IFERROR(VLOOKUP(ROWS($AG$2:AG139),$AI$2:$AJ$932,2,0),"") ->  | AI139: =IF(ISNUMBER(SEARCH($AL$2,AJ139)),MAX($AI$1:AI138)+1,0) -> 0
I140: =SUMIF(الوارد!$D$2:$D$6000,E140,الوارد!$E$2:$E$6000) -> 0 | J140: =SUMIF(الوارد!$D$2:$D$6000,E140,الوارد!$G$2:$G$6000) -> 0 | K140: =SUMIF(الوارد!$D$2:$D$6000,E140,الوارد!$H$2:$H$6000) -> 0 | L140: =SUMIF(المنصرف!$D$2:$D$6000,E140,المنصرف!$E$2:$E$6000) -> 0 | M140: =SUMIF(المنصرف!$D$2:$D$6000,E140,المنصرف!$G$2:$G$6000) -> 0 | N140: =SUMIF(المنصرف!$D$2:$D$6000,E140,المنصرف!$H$2:$H$6000) -> 0 | O140: =SUMIF(المرتجع!$D$2:$D$6000,E140,المرتجع!$E$2:$E$6000) -> 0 | P140: =SUMIF(المرتجع!$D$2:$D$6000,E140,المرتجع!$G$2:$G$6000) -> 0 | Q140: =SUMIF(المرتجع!$D$2:$D$6000,E140,المرتجع!$H$2:$H$6000) -> 0 | R140: 0 | S140: 0 | T140: 0 | AG140: =IFERROR(VLOOKUP(ROWS($AG$2:AG140),$AI$2:$AJ$932,2,0),"") ->  | AI140: =IF(ISNUMBER(SEARCH($AL$2,AJ140)),MAX($AI$1:AI139)+1,0) -> 0
I141: =SUMIF(الوارد!$D$2:$D$6000,E141,الوارد!$E$2:$E$6000) -> 0 | J141: =SUMIF(الوارد!$D$2:$D$6000,E141,الوارد!$G$2:$G$6000) -> 0 | K141: =SUMIF(الوارد!$D$2:$D$6000,E141,الوارد!$H$2:$H$6000) -> 0 | L141: =SUMIF(المنصرف!$D$2:$D$6000,E141,المنصرف!$E$2:$E$6000) -> 0 | M141: =SUMIF(المنصرف!$D$2:$D$6000,E141,المنصرف!$G$2:$G$6000) -> 0 | N141: =SUMIF(المنصرف!$D$2:$D$6000,E141,المنصرف!$H$2:$H$6000) -> 0 | O141: =SUMIF(المرتجع!$D$2:$D$6000,E141,المرتجع!$E$2:$E$6000) -> 0 | P141: =SUMIF(المرتجع!$D$2:$D$6000,E141,المرتجع!$G$2:$G$6000) -> 0 | Q141: =SUMIF(المرتجع!$D$2:$D$6000,E141,المرتجع!$H$2:$H$6000) -> 0 | R141: 0 | S141: 0 | T141: 0 | AG141: =IFERROR(VLOOKUP(ROWS($AG$2:AG141),$AI$2:$AJ$932,2,0),"") ->  | AI141: =IF(ISNUMBER(SEARCH($AL$2,AJ141)),MAX($AI$1:AI140)+1,0) -> 0
I142: =SUMIF(الوارد!$D$2:$D$6000,E142,الوارد!$E$2:$E$6000) -> 0 | J142: =SUMIF(الوارد!$D$2:$D$6000,E142,الوارد!$G$2:$G$6000) -> 0 | K142: =SUMIF(الوارد!$D$2:$D$6000,E142,الوارد!$H$2:$H$6000) -> 0 | L142: =SUMIF(المنصرف!$D$2:$D$6000,E142,المنصرف!$E$2:$E$6000) -> 0 | M142: =SUMIF(المنصرف!$D$2:$D$6000,E142,المنصرف!$G$2:$G$6000) -> 0 | N142: =SUMIF(المنصرف!$D$2:$D$6000,E142,المنصرف!$H$2:$H$6000) -> 0 | O142: =SUMIF(المرتجع!$D$2:$D$6000,E142,المرتجع!$E$2:$E$6000) -> 0 | P142: =SUMIF(المرتجع!$D$2:$D$6000,E142,المرتجع!$G$2:$G$6000) -> 0 | Q142: =SUMIF(المرتجع!$D$2:$D$6000,E142,المرتجع!$H$2:$H$6000) -> 0 | R142: 0 | S142: 0 | T142: 0 | AG142: =IFERROR(VLOOKUP(ROWS($AG$2:AG142),$AI$2:$AJ$932,2,0),"") ->  | AI142: =IF(ISNUMBER(SEARCH($AL$2,AJ142)),MAX($AI$1:AI141)+1,0) -> 0
I143: =SUMIF(الوارد!$D$2:$D$6000,E143,الوارد!$E$2:$E$6000) -> 0 | J143: =SUMIF(الوارد!$D$2:$D$6000,E143,الوارد!$G$2:$G$6000) -> 0 | K143: =SUMIF(الوارد!$D$2:$D$6000,E143,الوارد!$H$2:$H$6000) -> 0 | L143: =SUMIF(المنصرف!$D$2:$D$6000,E143,المنصرف!$E$2:$E$6000) -> 0 | M143: =SUMIF(المنصرف!$D$2:$D$6000,E143,المنصرف!$G$2:$G$6000) -> 0 | N143: =SUMIF(المنصرف!$D$2:$D$6000,E143,المنصرف!$H$2:$H$6000) -> 0 | O143: =SUMIF(المرتجع!$D$2:$D$6000,E143,المرتجع!$E$2:$E$6000) -> 0 | P143: =SUMIF(المرتجع!$D$2:$D$6000,E143,المرتجع!$G$2:$G$6000) -> 0 | Q143: =SUMIF(المرتجع!$D$2:$D$6000,E143,المرتجع!$H$2:$H$6000) -> 0 | R143: 0 | S143: 0 | T143: 0 | AG143: =IFERROR(VLOOKUP(ROWS($AG$2:AG143),$AI$2:$AJ$932,2,0),"") ->  | AI143: =IF(ISNUMBER(SEARCH($AL$2,AJ143)),MAX($AI$1:AI142)+1,0) -> 0
I144: =SUMIF(الوارد!$D$2:$D$6000,E144,الوارد!$E$2:$E$6000) -> 0 | J144: =SUMIF(الوارد!$D$2:$D$6000,E144,الوارد!$G$2:$G$6000) -> 0 | K144: =SUMIF(الوارد!$D$2:$D$6000,E144,الوارد!$H$2:$H$6000) -> 0 | L144: =SUMIF(المنصرف!$D$2:$D$6000,E144,المنصرف!$E$2:$E$6000) -> 0 | M144: =SUMIF(المنصرف!$D$2:$D$6000,E144,المنصرف!$G$2:$G$6000) -> 0 | N144: =SUMIF(المنصرف!$D$2:$D$6000,E144,المنصرف!$H$2:$H$6000) -> 0 | O144: =SUMIF(المرتجع!$D$2:$D$6000,E144,المرتجع!$E$2:$E$6000) -> 0 | P144: =SUMIF(المرتجع!$D$2:$D$6000,E144,المرتجع!$G$2:$G$6000) -> 0 | Q144: =SUMIF(المرتجع!$D$2:$D$6000,E144,المرتجع!$H$2:$H$6000) -> 0 | R144: 0 | S144: 0 | T144: 0 | AG144: =IFERROR(VLOOKUP(ROWS($AG$2:AG144),$AI$2:$AJ$932,2,0),"") ->  | AI144: =IF(ISNUMBER(SEARCH($AL$2,AJ144)),MAX($AI$1:AI143)+1,0) -> 0
I145: =SUMIF(الوارد!$D$2:$D$6000,E145,الوارد!$E$2:$E$6000) -> 0 | J145: =SUMIF(الوارد!$D$2:$D$6000,E145,الوارد!$G$2:$G$6000) -> 0 | K145: =SUMIF(الوارد!$D$2:$D$6000,E145,الوارد!$H$2:$H$6000) -> 0 | L145: =SUMIF(المنصرف!$D$2:$D$6000,E145,المنصرف!$E$2:$E$6000) -> 0 | M145: =SUMIF(المنصرف!$D$2:$D$6000,E145,المنصرف!$G$2:$G$6000) -> 0 | N145: =SUMIF(المنصرف!$D$2:$D$6000,E145,المنصرف!$H$2:$H$6000) -> 0 | O145: =SUMIF(المرتجع!$D$2:$D$6000,E145,المرتجع!$E$2:$E$6000) -> 0 | P145: =SUMIF(المرتجع!$D$2:$D$6000,E145,المرتجع!$G$2:$G$6000) -> 0 | Q145: =SUMIF(المرتجع!$D$2:$D$6000,E145,المرتجع!$H$2:$H$6000) -> 0 | R145: 0 | S145: 0 | T145: 0 | AG145: =IFERROR(VLOOKUP(ROWS($AG$2:AG145),$AI$2:$AJ$932,2,0),"") ->  | AI145: =IF(ISNUMBER(SEARCH($AL$2,AJ145)),MAX($AI$1:AI144)+1,0) -> 0
I146: =SUMIF(الوارد!$D$2:$D$6000,E146,الوارد!$E$2:$E$6000) -> 0 | J146: =SUMIF(الوارد!$D$2:$D$6000,E146,الوارد!$G$2:$G$6000) -> 0 | K146: =SUMIF(الوارد!$D$2:$D$6000,E146,الوارد!$H$2:$H$6000) -> 0 | L146: =SUMIF(المنصرف!$D$2:$D$6000,E146,المنصرف!$E$2:$E$6000) -> 0 | M146: =SUMIF(المنصرف!$D$2:$D$6000,E146,المنصرف!$G$2:$G$6000) -> 0 | N146: =SUMIF(المنصرف!$D$2:$D$6000,E146,المنصرف!$H$2:$H$6000) -> 0 | O146: =SUMIF(المرتجع!$D$2:$D$6000,E146,المرتجع!$E$2:$E$6000) -> 0 | P146: =SUMIF(المرتجع!$D$2:$D$6000,E146,المرتجع!$G$2:$G$6000) -> 0 | Q146: =SUMIF(المرتجع!$D$2:$D$6000,E146,المرتجع!$H$2:$H$6000) -> 0 | R146: 0 | S146: 0 | T146: 0 | AG146: =IFERROR(VLOOKUP(ROWS($AG$2:AG146),$AI$2:$AJ$932,2,0),"") ->  | AI146: =IF(ISNUMBER(SEARCH($AL$2,AJ146)),MAX($AI$1:AI145)+1,0) -> 0
I147: =SUMIF(الوارد!$D$2:$D$6000,E147,الوارد!$E$2:$E$6000) -> 0 | J147: =SUMIF(الوارد!$D$2:$D$6000,E147,الوارد!$G$2:$G$6000) -> 0 | K147: =SUMIF(الوارد!$D$2:$D$6000,E147,الوارد!$H$2:$H$6000) -> 0 | L147: =SUMIF(المنصرف!$D$2:$D$6000,E147,المنصرف!$E$2:$E$6000) -> 0 | M147: =SUMIF(المنصرف!$D$2:$D$6000,E147,المنصرف!$G$2:$G$6000) -> 0 | N147: =SUMIF(المنصرف!$D$2:$D$6000,E147,المنصرف!$H$2:$H$6000) -> 0 | O147: =SUMIF(المرتجع!$D$2:$D$6000,E147,المرتجع!$E$2:$E$6000) -> 0 | P147: =SUMIF(المرتجع!$D$2:$D$6000,E147,المرتجع!$G$2:$G$6000) -> 0 | Q147: =SUMIF(المرتجع!$D$2:$D$6000,E147,المرتجع!$H$2:$H$6000) -> 0 | R147: 0 | S147: 0 | T147: 0 | AG147: =IFERROR(VLOOKUP(ROWS($AG$2:AG147),$AI$2:$AJ$932,2,0),"") ->  | AI147: =IF(ISNUMBER(SEARCH($AL$2,AJ147)),MAX($AI$1:AI146)+1,0) -> 0
I148: =SUMIF(الوارد!$D$2:$D$6000,E148,الوارد!$E$2:$E$6000) -> 0 | J148: =SUMIF(الوارد!$D$2:$D$6000,E148,الوارد!$G$2:$G$6000) -> 0 | K148: =SUMIF(الوارد!$D$2:$D$6000,E148,الوارد!$H$2:$H$6000) -> 0 | L148: =SUMIF(المنصرف!$D$2:$D$6000,E148,المنصرف!$E$2:$E$6000) -> 0 | M148: =SUMIF(المنصرف!$D$2:$D$6000,E148,المنصرف!$G$2:$G$6000) -> 0 | N148: =SUMIF(المنصرف!$D$2:$D$6000,E148,المنصرف!$H$2:$H$6000) -> 0 | O148: =SUMIF(المرتجع!$D$2:$D$6000,E148,المرتجع!$E$2:$E$6000) -> 0 | P148: =SUMIF(المرتجع!$D$2:$D$6000,E148,المرتجع!$G$2:$G$6000) -> 0 | Q148: =SUMIF(المرتجع!$D$2:$D$6000,E148,المرتجع!$H$2:$H$6000) -> 0 | R148: 0 | S148: 0 | T148: 0 | AG148: =IFERROR(VLOOKUP(ROWS($AG$2:AG148),$AI$2:$AJ$932,2,0),"") ->  | AI148: =IF(ISNUMBER(SEARCH($AL$2,AJ148)),MAX($AI$1:AI147)+1,0) -> 0
E149: =B149&" "&C149&" "&D149 ->  | I149: =SUMIF(الوارد!$D$2:$D$6000,E149,الوارد!$E$2:$E$6000) -> 0 | J149: =SUMIF(الوارد!$D$2:$D$6000,E149,الوارد!$G$2:$G$6000) -> 0 | K149: =SUMIF(الوارد!$D$2:$D$6000,E149,الوارد!$H$2:$H$6000) -> 0 | L149: =SUMIF(المنصرف!$D$2:$D$6000,E149,المنصرف!$E$2:$E$6000) -> 0 | M149: =SUMIF(المنصرف!$D$2:$D$6000,E149,المنصرف!$G$2:$G$6000) -> 0 | N149: =SUMIF(المنصرف!$D$2:$D$6000,E149,المنصرف!$H$2:$H$6000) -> 0 | O149: =SUMIF(المرتجع!$D$2:$D$6000,E149,المرتجع!$E$2:$E$6000) -> 0 | P149: =SUMIF(المرتجع!$D$2:$D$6000,E149,المرتجع!$G$2:$G$6000) -> 0 | Q149: =SUMIF(المرتجع!$D$2:$D$6000,E149,المرتجع!$H$2:$H$6000) -> 0 | R149: =F149+I149+O149-L149 -> 0 | S149: =G149+J149+P149-M149 -> 0 | T149: =H149+K149+Q149-N149 -> 0 | AG149: =IFERROR(VLOOKUP(ROWS($AG$2:AG149),$AI$2:$AJ$932,2,0),"") ->  | AI149: =IF(ISNUMBER(SEARCH($AL$2,AJ149)),MAX($AI$1:AI148)+1,0) -> 0
I150: =SUMIF(الوارد!$D$2:$D$6000,E150,الوارد!$E$2:$E$6000) -> 0 | J150: =SUMIF(الوارد!$D$2:$D$6000,E150,الوارد!$G$2:$G$6000) -> 0 | K150: =SUMIF(الوارد!$D$2:$D$6000,E150,الوارد!$H$2:$H$6000) -> 0 | L150: =SUMIF(المنصرف!$D$2:$D$6000,E150,المنصرف!$E$2:$E$6000) -> 0 | M150: =SUMIF(المنصرف!$D$2:$D$6000,E150,المنصرف!$G$2:$G$6000) -> 0 | N150: =SUMIF(المنصرف!$D$2:$D$6000,E150,المنصرف!$H$2:$H$6000) -> 0 | O150: =SUMIF(المرتجع!$D$2:$D$6000,E150,المرتجع!$E$2:$E$6000) -> 0 | P150: =SUMIF(المرتجع!$D$2:$D$6000,E150,المرتجع!$G$2:$G$6000) -> 0 | Q150: =SUMIF(المرتجع!$D$2:$D$6000,E150,المرتجع!$H$2:$H$6000) -> 0 | R150: 0 | S150: 0 | T150: 0 | AG150: =IFERROR(VLOOKUP(ROWS($AG$2:AG150),$AI$2:$AJ$932,2,0),"") ->  | AI150: =IF(ISNUMBER(SEARCH($AL$2,AJ150)),MAX($AI$1:AI149)+1,0) -> 0
I151: =SUMIF(الوارد!$D$2:$D$6000,E151,الوارد!$E$2:$E$6000) -> 0 | J151: =SUMIF(الوارد!$D$2:$D$6000,E151,الوارد!$G$2:$G$6000) -> 0 | K151: =SUMIF(الوارد!$D$2:$D$6000,E151,الوارد!$H$2:$H$6000) -> 0 | L151: =SUMIF(المنصرف!$D$2:$D$6000,E151,المنصرف!$E$2:$E$6000) -> 0 | M151: =SUMIF(المنصرف!$D$2:$D$6000,E151,المنصرف!$G$2:$G$6000) -> 0 | N151: =SUMIF(المنصرف!$D$2:$D$6000,E151,المنصرف!$H$2:$H$6000) -> 0 | O151: =SUMIF(المرتجع!$D$2:$D$6000,E151,المرتجع!$E$2:$E$6000) -> 0 | P151: =SUMIF(المرتجع!$D$2:$D$6000,E151,المرتجع!$G$2:$G$6000) -> 0 | Q151: =SUMIF(المرتجع!$D$2:$D$6000,E151,المرتجع!$H$2:$H$6000) -> 0 | R151: 0 | S151: 0 | T151: 0 | AG151: =IFERROR(VLOOKUP(ROWS($AG$2:AG151),$AI$2:$AJ$932,2,0),"") ->  | AI151: =IF(ISNUMBER(SEARCH($AL$2,AJ151)),MAX($AI$1:AI150)+1,0) -> 0
I152: =SUMIF(الوارد!$D$2:$D$6000,E152,الوارد!$E$2:$E$6000) -> 0 | J152: =SUMIF(الوارد!$D$2:$D$6000,E152,الوارد!$G$2:$G$6000) -> 0 | K152: =SUMIF(الوارد!$D$2:$D$6000,E152,الوارد!$H$2:$H$6000) -> 0 | L152: =SUMIF(المنصرف!$D$2:$D$6000,E152,المنصرف!$E$2:$E$6000) -> 0 | M152: =SUMIF(المنصرف!$D$2:$D$6000,E152,المنصرف!$G$2:$G$6000) -> 0 | N152: =SUMIF(المنصرف!$D$2:$D$6000,E152,المنصرف!$H$2:$H$6000) -> 0 | O152: =SUMIF(المرتجع!$D$2:$D$6000,E152,المرتجع!$E$2:$E$6000) -> 0 | P152: =SUMIF(المرتجع!$D$2:$D$6000,E152,المرتجع!$G$2:$G$6000) -> 0 | Q152: =SUMIF(المرتجع!$D$2:$D$6000,E152,المرتجع!$H$2:$H$6000) -> 0 | R152: 0 | S152: 0 | T152: 0 | AG152: =IFERROR(VLOOKUP(ROWS($AG$2:AG152),$AI$2:$AJ$932,2,0),"") ->  | AI152: =IF(ISNUMBER(SEARCH($AL$2,AJ152)),MAX($AI$1:AI151)+1,0) -> 0
I153: =SUMIF(الوارد!$D$2:$D$6000,E153,الوارد!$E$2:$E$6000) -> 0 | J153: =SUMIF(الوارد!$D$2:$D$6000,E153,الوارد!$G$2:$G$6000) -> 0 | K153: =SUMIF(الوارد!$D$2:$D$6000,E153,الوارد!$H$2:$H$6000) -> 0 | L153: =SUMIF(المنصرف!$D$2:$D$6000,E153,المنصرف!$E$2:$E$6000) -> 0 | M153: =SUMIF(المنصرف!$D$2:$D$6000,E153,المنصرف!$G$2:$G$6000) -> 0 | N153: =SUMIF(المنصرف!$D$2:$D$6000,E153,المنصرف!$H$2:$H$6000) -> 0 | O153: =SUMIF(المرتجع!$D$2:$D$6000,E153,المرتجع!$E$2:$E$6000) -> 0 | P153: =SUMIF(المرتجع!$D$2:$D$6000,E153,المرتجع!$G$2:$G$6000) -> 0 | Q153: =SUMIF(المرتجع!$D$2:$D$6000,E153,المرتجع!$H$2:$H$6000) -> 0 | R153: 0 | S153: 0 | T153: 0 | AG153: =IFERROR(VLOOKUP(ROWS($AG$2:AG153),$AI$2:$AJ$932,2,0),"") ->  | AI153: =IF(ISNUMBER(SEARCH($AL$2,AJ153)),MAX($AI$1:AI152)+1,0) -> 0
I154: =SUMIF(الوارد!$D$2:$D$6000,E154,الوارد!$E$2:$E$6000) -> 0 | J154: =SUMIF(الوارد!$D$2:$D$6000,E154,الوارد!$G$2:$G$6000) -> 0 | K154: =SUMIF(الوارد!$D$2:$D$6000,E154,الوارد!$H$2:$H$6000) -> 0 | L154: =SUMIF(المنصرف!$D$2:$D$6000,E154,المنصرف!$E$2:$E$6000) -> 0 | M154: =SUMIF(المنصرف!$D$2:$D$6000,E154,المنصرف!$G$2:$G$6000) -> 0 | N154: =SUMIF(المنصرف!$D$2:$D$6000,E154,المنصرف!$H$2:$H$6000) -> 0 | O154: =SUMIF(المرتجع!$D$2:$D$6000,E154,المرتجع!$E$2:$E$6000) -> 0 | P154: =SUMIF(المرتجع!$D$2:$D$6000,E154,المرتجع!$G$2:$G$6000) -> 0 | Q154: =SUMIF(المرتجع!$D$2:$D$6000,E154,المرتجع!$H$2:$H$6000) -> 0 | R154: 0 | S154: 0 | T154: 0 | AG154: =IFERROR(VLOOKUP(ROWS($AG$2:AG154),$AI$2:$AJ$932,2,0),"") ->  | AI154: =IF(ISNUMBER(SEARCH($AL$2,AJ154)),MAX($AI$1:AI153)+1,0) -> 0
I155: =SUMIF(الوارد!$D$2:$D$6000,E155,الوارد!$E$2:$E$6000) -> 0 | J155: =SUMIF(الوارد!$D$2:$D$6000,E155,الوارد!$G$2:$G$6000) -> 0 | K155: =SUMIF(الوارد!$D$2:$D$6000,E155,الوارد!$H$2:$H$6000) -> 0 | L155: =SUMIF(المنصرف!$D$2:$D$6000,E155,المنصرف!$E$2:$E$6000) -> 0 | M155: =SUMIF(المنصرف!$D$2:$D$6000,E155,المنصرف!$G$2:$G$6000) -> 0 | N155: =SUMIF(المنصرف!$D$2:$D$6000,E155,المنصرف!$H$2:$H$6000) -> 0 | O155: =SUMIF(المرتجع!$D$2:$D$6000,E155,المرتجع!$E$2:$E$6000) -> 0 | P155: =SUMIF(المرتجع!$D$2:$D$6000,E155,المرتجع!$G$2:$G$6000) -> 0 | Q155: =SUMIF(المرتجع!$D$2:$D$6000,E155,المرتجع!$H$2:$H$6000) -> 0 | R155: 0 | S155: 0 | T155: 0 | AG155: =IFERROR(VLOOKUP(ROWS($AG$2:AG155),$AI$2:$AJ$932,2,0),"") ->  | AI155: =IF(ISNUMBER(SEARCH($AL$2,AJ155)),MAX($AI$1:AI154)+1,0) -> 0
I156: =SUMIF(الوارد!$D$2:$D$6000,E156,الوارد!$E$2:$E$6000) -> 0 | J156: =SUMIF(الوارد!$D$2:$D$6000,E156,الوارد!$G$2:$G$6000) -> 0 | K156: =SUMIF(الوارد!$D$2:$D$6000,E156,الوارد!$H$2:$H$6000) -> 0 | L156: =SUMIF(المنصرف!$D$2:$D$6000,E156,المنصرف!$E$2:$E$6000) -> 0 | M156: =SUMIF(المنصرف!$D$2:$D$6000,E156,المنصرف!$G$2:$G$6000) -> 0 | N156: =SUMIF(المنصرف!$D$2:$D$6000,E156,المنصرف!$H$2:$H$6000) -> 0 | O156: =SUMIF(المرتجع!$D$2:$D$6000,E156,المرتجع!$E$2:$E$6000) -> 0 | P156: =SUMIF(المرتجع!$D$2:$D$6000,E156,المرتجع!$G$2:$G$6000) -> 0 | Q156: =SUMIF(المرتجع!$D$2:$D$6000,E156,المرتجع!$H$2:$H$6000) -> 0 | R156: 0 | S156: 0 | T156: 0 | AG156: =IFERROR(VLOOKUP(ROWS($AG$2:AG156),$AI$2:$AJ$932,2,0),"") ->  | AI156: =IF(ISNUMBER(SEARCH($AL$2,AJ156)),MAX($AI$1:AI155)+1,0) -> 0
I157: =SUMIF(الوارد!$D$2:$D$6000,E157,الوارد!$E$2:$E$6000) -> 0 | J157: =SUMIF(الوارد!$D$2:$D$6000,E157,الوارد!$G$2:$G$6000) -> 0 | K157: =SUMIF(الوارد!$D$2:$D$6000,E157,الوارد!$H$2:$H$6000) -> 0 | L157: =SUMIF(المنصرف!$D$2:$D$6000,E157,المنصرف!$E$2:$E$6000) -> 0 | M157: =SUMIF(المنصرف!$D$2:$D$6000,E157,المنصرف!$G$2:$G$6000) -> 0 | N157: =SUMIF(المنصرف!$D$2:$D$6000,E157,المنصرف!$H$2:$H$6000) -> 0 | O157: =SUMIF(المرتجع!$D$2:$D$6000,E157,المرتجع!$E$2:$E$6000) -> 0 | P157: =SUMIF(المرتجع!$D$2:$D$6000,E157,المرتجع!$G$2:$G$6000) -> 0 | Q157: =SUMIF(المرتجع!$D$2:$D$6000,E157,المرتجع!$H$2:$H$6000) -> 0 | R157: 0 | S157: 0 | T157: 0 | AG157: =IFERROR(VLOOKUP(ROWS($AG$2:AG157),$AI$2:$AJ$932,2,0),"") ->  | AI157: =IF(ISNUMBER(SEARCH($AL$2,AJ157)),MAX($AI$1:AI156)+1,0) -> 0
I158: =SUMIF(الوارد!$D$2:$D$6000,E158,الوارد!$E$2:$E$6000) -> 0 | J158: =SUMIF(الوارد!$D$2:$D$6000,E158,الوارد!$G$2:$G$6000) -> 0 | K158: =SUMIF(الوارد!$D$2:$D$6000,E158,الوارد!$H$2:$H$6000) -> 0 | L158: =SUMIF(المنصرف!$D$2:$D$6000,E158,المنصرف!$E$2:$E$6000) -> 0 | M158: =SUMIF(المنصرف!$D$2:$D$6000,E158,المنصرف!$G$2:$G$6000) -> 0 | N158: =SUMIF(المنصرف!$D$2:$D$6000,E158,المنصرف!$H$2:$H$6000) -> 0 | O158: =SUMIF(المرتجع!$D$2:$D$6000,E158,المرتجع!$E$2:$E$6000) -> 0 | P158: =SUMIF(المرتجع!$D$2:$D$6000,E158,المرتجع!$G$2:$G$6000) -> 0 | Q158: =SUMIF(المرتجع!$D$2:$D$6000,E158,المرتجع!$H$2:$H$6000) -> 0 | R158: 0 | S158: 0 | T158: 0 | AG158: =IFERROR(VLOOKUP(ROWS($AG$2:AG158),$AI$2:$AJ$932,2,0),"") ->  | AI158: =IF(ISNUMBER(SEARCH($AL$2,AJ158)),MAX($AI$1:AI157)+1,0) -> 0
I159: =SUMIF(الوارد!$D$2:$D$6000,E159,الوارد!$E$2:$E$6000) -> 0 | J159: =SUMIF(الوارد!$D$2:$D$6000,E159,الوارد!$G$2:$G$6000) -> 0 | K159: =SUMIF(الوارد!$D$2:$D$6000,E159,الوارد!$H$2:$H$6000) -> 0 | L159: =SUMIF(المنصرف!$D$2:$D$6000,E159,المنصرف!$E$2:$E$6000) -> 0 | M159: =SUMIF(المنصرف!$D$2:$D$6000,E159,المنصرف!$G$2:$G$6000) -> 0 | N159: =SUMIF(المنصرف!$D$2:$D$6000,E159,المنصرف!$H$2:$H$6000) -> 0 | O159: =SUMIF(المرتجع!$D$2:$D$6000,E159,المرتجع!$E$2:$E$6000) -> 0 | P159: =SUMIF(المرتجع!$D$2:$D$6000,E159,المرتجع!$G$2:$G$6000) -> 0 | Q159: =SUMIF(المرتجع!$D$2:$D$6000,E159,المرتجع!$H$2:$H$6000) -> 0 | R159: 0 | S159: 0 | T159: 0 | AG159: =IFERROR(VLOOKUP(ROWS($AG$2:AG159),$AI$2:$AJ$932,2,0),"") ->  | AI159: =IF(ISNUMBER(SEARCH($AL$2,AJ159)),MAX($AI$1:AI158)+1,0) -> 0
I160: =SUMIF(الوارد!$D$2:$D$6000,E160,الوارد!$E$2:$E$6000) -> 0 | J160: =SUMIF(الوارد!$D$2:$D$6000,E160,الوارد!$G$2:$G$6000) -> 0 | K160: =SUMIF(الوارد!$D$2:$D$6000,E160,الوارد!$H$2:$H$6000) -> 0 | L160: =SUMIF(المنصرف!$D$2:$D$6000,E160,المنصرف!$E$2:$E$6000) -> 0 | M160: =SUMIF(المنصرف!$D$2:$D$6000,E160,المنصرف!$G$2:$G$6000) -> 0 | N160: =SUMIF(المنصرف!$D$2:$D$6000,E160,المنصرف!$H$2:$H$6000) -> 0 | O160: =SUMIF(المرتجع!$D$2:$D$6000,E160,المرتجع!$E$2:$E$6000) -> 0 | P160: =SUMIF(المرتجع!$D$2:$D$6000,E160,المرتجع!$G$2:$G$6000) -> 0 | Q160: =SUMIF(المرتجع!$D$2:$D$6000,E160,المرتجع!$H$2:$H$6000) -> 0 | R160: 0 | S160: 0 | T160: 0 | AG160: =IFERROR(VLOOKUP(ROWS($AG$2:AG160),$AI$2:$AJ$932,2,0),"") ->  | AI160: =IF(ISNUMBER(SEARCH($AL$2,AJ160)),MAX($AI$1:AI159)+1,0) -> 0
I161: =SUMIF(الوارد!$D$2:$D$6000,E161,الوارد!$E$2:$E$6000) -> 0 | J161: =SUMIF(الوارد!$D$2:$D$6000,E161,الوارد!$G$2:$G$6000) -> 0 | K161: =SUMIF(الوارد!$D$2:$D$6000,E161,الوارد!$H$2:$H$6000) -> 0 | L161: =SUMIF(المنصرف!$D$2:$D$6000,E161,المنصرف!$E$2:$E$6000) -> 0 | M161: =SUMIF(المنصرف!$D$2:$D$6000,E161,المنصرف!$G$2:$G$6000) -> 0 | N161: =SUMIF(المنصرف!$D$2:$D$6000,E161,المنصرف!$H$2:$H$6000) -> 0 | O161: =SUMIF(المرتجع!$D$2:$D$6000,E161,المرتجع!$E$2:$E$6000) -> 0 | P161: =SUMIF(المرتجع!$D$2:$D$6000,E161,المرتجع!$G$2:$G$6000) -> 0 | Q161: =SUMIF(المرتجع!$D$2:$D$6000,E161,المرتجع!$H$2:$H$6000) -> 0 | R161: 0 | S161: 0 | T161: 0 | AG161: =IFERROR(VLOOKUP(ROWS($AG$2:AG161),$AI$2:$AJ$932,2,0),"") ->  | AI161: =IF(ISNUMBER(SEARCH($AL$2,AJ161)),MAX($AI$1:AI160)+1,0) -> 0
I162: =SUMIF(الوارد!$D$2:$D$6000,E162,الوارد!$E$2:$E$6000) -> 0 | J162: =SUMIF(الوارد!$D$2:$D$6000,E162,الوارد!$G$2:$G$6000) -> 0 | K162: =SUMIF(الوارد!$D$2:$D$6000,E162,الوارد!$H$2:$H$6000) -> 0 | L162: =SUMIF(المنصرف!$D$2:$D$6000,E162,المنصرف!$E$2:$E$6000) -> 0 | M162: =SUMIF(المنصرف!$D$2:$D$6000,E162,المنصرف!$G$2:$G$6000) -> 0 | N162: =SUMIF(المنصرف!$D$2:$D$6000,E162,المنصرف!$H$2:$H$6000) -> 0 | O162: =SUMIF(المرتجع!$D$2:$D$6000,E162,المرتجع!$E$2:$E$6000) -> 0 | P162: =SUMIF(المرتجع!$D$2:$D$6000,E162,المرتجع!$G$2:$G$6000) -> 0 | Q162: =SUMIF(المرتجع!$D$2:$D$6000,E162,المرتجع!$H$2:$H$6000) -> 0 | R162: 0 | S162: 0 | T162: 0 | AG162: =IFERROR(VLOOKUP(ROWS($AG$2:AG162),$AI$2:$AJ$932,2,0),"") ->  | AI162: =IF(ISNUMBER(SEARCH($AL$2,AJ162)),MAX($AI$1:AI161)+1,0) -> 0
I163: =SUMIF(الوارد!$D$2:$D$6000,E163,الوارد!$E$2:$E$6000) -> 0 | J163: =SUMIF(الوارد!$D$2:$D$6000,E163,الوارد!$G$2:$G$6000) -> 0 | K163: =SUMIF(الوارد!$D$2:$D$6000,E163,الوارد!$H$2:$H$6000) -> 0 | L163: =SUMIF(المنصرف!$D$2:$D$6000,E163,المنصرف!$E$2:$E$6000) -> 0 | M163: =SUMIF(المنصرف!$D$2:$D$6000,E163,المنصرف!$G$2:$G$6000) -> 0 | N163: =SUMIF(المنصرف!$D$2:$D$6000,E163,المنصرف!$H$2:$H$6000) -> 0 | O163: =SUMIF(المرتجع!$D$2:$D$6000,E163,المرتجع!$E$2:$E$6000) -> 0 | P163: =SUMIF(المرتجع!$D$2:$D$6000,E163,المرتجع!$G$2:$G$6000) -> 0 | Q163: =SUMIF(المرتجع!$D$2:$D$6000,E163,المرتجع!$H$2:$H$6000) -> 0 | R163: 0 | S163: 0 | T163: 0 | AG163: =IFERROR(VLOOKUP(ROWS($AG$2:AG163),$AI$2:$AJ$932,2,0),"") ->  | AI163: =IF(ISNUMBER(SEARCH($AL$2,AJ163)),MAX($AI$1:AI162)+1,0) -> 0
I164: =SUMIF(الوارد!$D$2:$D$6000,E164,الوارد!$E$2:$E$6000) -> 0 | J164: =SUMIF(الوارد!$D$2:$D$6000,E164,الوارد!$G$2:$G$6000) -> 0 | K164: =SUMIF(الوارد!$D$2:$D$6000,E164,الوارد!$H$2:$H$6000) -> 0 | L164: =SUMIF(المنصرف!$D$2:$D$6000,E164,المنصرف!$E$2:$E$6000) -> 0 | M164: =SUMIF(المنصرف!$D$2:$D$6000,E164,المنصرف!$G$2:$G$6000) -> 0 | N164: =SUMIF(المنصرف!$D$2:$D$6000,E164,المنصرف!$H$2:$H$6000) -> 0 | O164: =SUMIF(المرتجع!$D$2:$D$6000,E164,المرتجع!$E$2:$E$6000) -> 0 | P164: =SUMIF(المرتجع!$D$2:$D$6000,E164,المرتجع!$G$2:$G$6000) -> 0 | Q164: =SUMIF(المرتجع!$D$2:$D$6000,E164,المرتجع!$H$2:$H$6000) -> 0 | R164: 0 | S164: 0 | T164: 0 | AG164: =IFERROR(VLOOKUP(ROWS($AG$2:AG164),$AI$2:$AJ$932,2,0),"") ->  | AI164: =IF(ISNUMBER(SEARCH($AL$2,AJ164)),MAX($AI$1:AI163)+1,0) -> 0
I165: =SUMIF(الوارد!$D$2:$D$6000,E165,الوارد!$E$2:$E$6000) -> 0 | J165: =SUMIF(الوارد!$D$2:$D$6000,E165,الوارد!$G$2:$G$6000) -> 0 | K165: =SUMIF(الوارد!$D$2:$D$6000,E165,الوارد!$H$2:$H$6000) -> 0 | L165: =SUMIF(المنصرف!$D$2:$D$6000,E165,المنصرف!$E$2:$E$6000) -> 0 | M165: =SUMIF(المنصرف!$D$2:$D$6000,E165,المنصرف!$G$2:$G$6000) -> 0 | N165: =SUMIF(المنصرف!$D$2:$D$6000,E165,المنصرف!$H$2:$H$6000) -> 0 | O165: =SUMIF(المرتجع!$D$2:$D$6000,E165,المرتجع!$E$2:$E$6000) -> 0 | P165: =SUMIF(المرتجع!$D$2:$D$6000,E165,المرتجع!$G$2:$G$6000) -> 0 | Q165: =SUMIF(المرتجع!$D$2:$D$6000,E165,المرتجع!$H$2:$H$6000) -> 0 | R165: 0 | S165: 0 | T165: 0 | AG165: =IFERROR(VLOOKUP(ROWS($AG$2:AG165),$AI$2:$AJ$932,2,0),"") ->  | AI165: =IF(ISNUMBER(SEARCH($AL$2,AJ165)),MAX($AI$1:AI164)+1,0) -> 0
I166: =SUMIF(الوارد!$D$2:$D$6000,E166,الوارد!$E$2:$E$6000) -> 0 | J166: =SUMIF(الوارد!$D$2:$D$6000,E166,الوارد!$G$2:$G$6000) -> 0 | K166: =SUMIF(الوارد!$D$2:$D$6000,E166,الوارد!$H$2:$H$6000) -> 0 | L166: =SUMIF(المنصرف!$D$2:$D$6000,E166,المنصرف!$E$2:$E$6000) -> 0 | M166: =SUMIF(المنصرف!$D$2:$D$6000,E166,المنصرف!$G$2:$G$6000) -> 0 | N166: =SUMIF(المنصرف!$D$2:$D$6000,E166,المنصرف!$H$2:$H$6000) -> 0 | O166: =SUMIF(المرتجع!$D$2:$D$6000,E166,المرتجع!$E$2:$E$6000) -> 0 | P166: =SUMIF(المرتجع!$D$2:$D$6000,E166,المرتجع!$G$2:$G$6000) -> 0 | Q166: =SUMIF(المرتجع!$D$2:$D$6000,E166,المرتجع!$H$2:$H$6000) -> 0 | R166: 0 | S166: 0 | T166: 0 | AG166: =IFERROR(VLOOKUP(ROWS($AG$2:AG166),$AI$2:$AJ$932,2,0),"") ->  | AI166: =IF(ISNUMBER(SEARCH($AL$2,AJ166)),MAX($AI$1:AI165)+1,0) -> 0
I167: =SUMIF(الوارد!$D$2:$D$6000,E167,الوارد!$E$2:$E$6000) -> 0 | J167: =SUMIF(الوارد!$D$2:$D$6000,E167,الوارد!$G$2:$G$6000) -> 0 | K167: =SUMIF(الوارد!$D$2:$D$6000,E167,الوارد!$H$2:$H$6000) -> 0 | L167: =SUMIF(المنصرف!$D$2:$D$6000,E167,المنصرف!$E$2:$E$6000) -> 0 | M167: =SUMIF(المنصرف!$D$2:$D$6000,E167,المنصرف!$G$2:$G$6000) -> 0 | N167: =SUMIF(المنصرف!$D$2:$D$6000,E167,المنصرف!$H$2:$H$6000) -> 0 | O167: =SUMIF(المرتجع!$D$2:$D$6000,E167,المرتجع!$E$2:$E$6000) -> 0 | P167: =SUMIF(المرتجع!$D$2:$D$6000,E167,المرتجع!$G$2:$G$6000) -> 0 | Q167: =SUMIF(المرتجع!$D$2:$D$6000,E167,المرتجع!$H$2:$H$6000) -> 0 | R167: 0 | S167: 0 | T167: 0 | AG167: =IFERROR(VLOOKUP(ROWS($AG$2:AG167),$AI$2:$AJ$932,2,0),"") ->  | AI167: =IF(ISNUMBER(SEARCH($AL$2,AJ167)),MAX($AI$1:AI166)+1,0) -> 0
I168: =SUMIF(الوارد!$D$2:$D$6000,E168,الوارد!$E$2:$E$6000) -> 0 | J168: =SUMIF(الوارد!$D$2:$D$6000,E168,الوارد!$G$2:$G$6000) -> 0 | K168: =SUMIF(الوارد!$D$2:$D$6000,E168,الوارد!$H$2:$H$6000) -> 0 | L168: =SUMIF(المنصرف!$D$2:$D$6000,E168,المنصرف!$E$2:$E$6000) -> 0 | M168: =SUMIF(المنصرف!$D$2:$D$6000,E168,المنصرف!$G$2:$G$6000) -> 0 | N168: =SUMIF(المنصرف!$D$2:$D$6000,E168,المنصرف!$H$2:$H$6000) -> 0 | O168: =SUMIF(المرتجع!$D$2:$D$6000,E168,المرتجع!$E$2:$E$6000) -> 0 | P168: =SUMIF(المرتجع!$D$2:$D$6000,E168,المرتجع!$G$2:$G$6000) -> 0 | Q168: =SUMIF(المرتجع!$D$2:$D$6000,E168,المرتجع!$H$2:$H$6000) -> 0 | R168: 0 | S168: 0 | T168: 0 | AG168: =IFERROR(VLOOKUP(ROWS($AG$2:AG168),$AI$2:$AJ$932,2,0),"") ->  | AI168: =IF(ISNUMBER(SEARCH($AL$2,AJ168)),MAX($AI$1:AI167)+1,0) -> 0
I169: =SUMIF(الوارد!$D$2:$D$6000,E169,الوارد!$E$2:$E$6000) -> 0 | J169: =SUMIF(الوارد!$D$2:$D$6000,E169,الوارد!$G$2:$G$6000) -> 0 | K169: =SUMIF(الوارد!$D$2:$D$6000,E169,الوارد!$H$2:$H$6000) -> 0 | L169: =SUMIF(المنصرف!$D$2:$D$6000,E169,المنصرف!$E$2:$E$6000) -> 0 | M169: =SUMIF(المنصرف!$D$2:$D$6000,E169,المنصرف!$G$2:$G$6000) -> 0 | N169: =SUMIF(المنصرف!$D$2:$D$6000,E169,المنصرف!$H$2:$H$6000) -> 0 | O169: =SUMIF(المرتجع!$D$2:$D$6000,E169,المرتجع!$E$2:$E$6000) -> 0 | P169: =SUMIF(المرتجع!$D$2:$D$6000,E169,المرتجع!$G$2:$G$6000) -> 0 | Q169: =SUMIF(المرتجع!$D$2:$D$6000,E169,المرتجع!$H$2:$H$6000) -> 0 | R169: 0 | S169: 0 | T169: 0 | AG169: =IFERROR(VLOOKUP(ROWS($AG$2:AG169),$AI$2:$AJ$932,2,0),"") ->  | AI169: =IF(ISNUMBER(SEARCH($AL$2,AJ169)),MAX($AI$1:AI168)+1,0) -> 0
I170: =SUMIF(الوارد!$D$2:$D$6000,E170,الوارد!$E$2:$E$6000) -> 0 | J170: =SUMIF(الوارد!$D$2:$D$6000,E170,الوارد!$G$2:$G$6000) -> 0 | K170: =SUMIF(الوارد!$D$2:$D$6000,E170,الوارد!$H$2:$H$6000) -> 0 | L170: =SUMIF(المنصرف!$D$2:$D$6000,E170,المنصرف!$E$2:$E$6000) -> 0 | M170: =SUMIF(المنصرف!$D$2:$D$6000,E170,المنصرف!$G$2:$G$6000) -> 0 | N170: =SUMIF(المنصرف!$D$2:$D$6000,E170,المنصرف!$H$2:$H$6000) -> 0 | O170: =SUMIF(المرتجع!$D$2:$D$6000,E170,المرتجع!$E$2:$E$6000) -> 0 | P170: =SUMIF(المرتجع!$D$2:$D$6000,E170,المرتجع!$G$2:$G$6000) -> 0 | Q170: =SUMIF(المرتجع!$D$2:$D$6000,E170,المرتجع!$H$2:$H$6000) -> 0 | R170: 0 | S170: 0 | T170: 0 | AG170: =IFERROR(VLOOKUP(ROWS($AG$2:AG170),$AI$2:$AJ$932,2,0),"") ->  | AI170: =IF(ISNUMBER(SEARCH($AL$2,AJ170)),MAX($AI$1:AI169)+1,0) -> 0
I171: =SUMIF(الوارد!$D$2:$D$6000,E171,الوارد!$E$2:$E$6000) -> 0 | J171: =SUMIF(الوارد!$D$2:$D$6000,E171,الوارد!$G$2:$G$6000) -> 0 | K171: =SUMIF(الوارد!$D$2:$D$6000,E171,الوارد!$H$2:$H$6000) -> 0 | L171: =SUMIF(المنصرف!$D$2:$D$6000,E171,المنصرف!$E$2:$E$6000) -> 0 | M171: =SUMIF(المنصرف!$D$2:$D$6000,E171,المنصرف!$G$2:$G$6000) -> 0 | N171: =SUMIF(المنصرف!$D$2:$D$6000,E171,المنصرف!$H$2:$H$6000) -> 0 | O171: =SUMIF(المرتجع!$D$2:$D$6000,E171,المرتجع!$E$2:$E$6000) -> 0 | P171: =SUMIF(المرتجع!$D$2:$D$6000,E171,المرتجع!$G$2:$G$6000) -> 0 | Q171: =SUMIF(المرتجع!$D$2:$D$6000,E171,المرتجع!$H$2:$H$6000) -> 0 | R171: 0 | S171: 0 | T171: 0 | AG171: =IFERROR(VLOOKUP(ROWS($AG$2:AG171),$AI$2:$AJ$932,2,0),"") ->  | AI171: =IF(ISNUMBER(SEARCH($AL$2,AJ171)),MAX($AI$1:AI170)+1,0) -> 0
I172: =SUMIF(الوارد!$D$2:$D$6000,E172,الوارد!$E$2:$E$6000) -> 0 | J172: =SUMIF(الوارد!$D$2:$D$6000,E172,الوارد!$G$2:$G$6000) -> 0 | K172: =SUMIF(الوارد!$D$2:$D$6000,E172,الوارد!$H$2:$H$6000) -> 0 | L172: =SUMIF(المنصرف!$D$2:$D$6000,E172,المنصرف!$E$2:$E$6000) -> 0 | M172: =SUMIF(المنصرف!$D$2:$D$6000,E172,المنصرف!$G$2:$G$6000) -> 0 | N172: =SUMIF(المنصرف!$D$2:$D$6000,E172,المنصرف!$H$2:$H$6000) -> 0 | O172: =SUMIF(المرتجع!$D$2:$D$6000,E172,المرتجع!$E$2:$E$6000) -> 0 | P172: =SUMIF(المرتجع!$D$2:$D$6000,E172,المرتجع!$G$2:$G$6000) -> 0 | Q172: =SUMIF(المرتجع!$D$2:$D$6000,E172,المرتجع!$H$2:$H$6000) -> 0 | R172: 0 | S172: 0 | T172: 0 | AG172: =IFERROR(VLOOKUP(ROWS($AG$2:AG172),$AI$2:$AJ$932,2,0),"") ->  | AI172: =IF(ISNUMBER(SEARCH($AL$2,AJ172)),MAX($AI$1:AI171)+1,0) -> 0
I173: =SUMIF(الوارد!$D$2:$D$6000,E173,الوارد!$E$2:$E$6000) -> 0 | J173: =SUMIF(الوارد!$D$2:$D$6000,E173,الوارد!$G$2:$G$6000) -> 0 | K173: =SUMIF(الوارد!$D$2:$D$6000,E173,الوارد!$H$2:$H$6000) -> 0 | L173: =SUMIF(المنصرف!$D$2:$D$6000,E173,المنصرف!$E$2:$E$6000) -> 0 | M173: =SUMIF(المنصرف!$D$2:$D$6000,E173,المنصرف!$G$2:$G$6000) -> 0 | N173: =SUMIF(المنصرف!$D$2:$D$6000,E173,المنصرف!$H$2:$H$6000) -> 0 | O173: =SUMIF(المرتجع!$D$2:$D$6000,E173,المرتجع!$E$2:$E$6000) -> 0 | P173: =SUMIF(المرتجع!$D$2:$D$6000,E173,المرتجع!$G$2:$G$6000) -> 0 | Q173: =SUMIF(المرتجع!$D$2:$D$6000,E173,المرتجع!$H$2:$H$6000) -> 0 | R173: 0 | S173: 0 | T173: 0 | AG173: =IFERROR(VLOOKUP(ROWS($AG$2:AG173),$AI$2:$AJ$932,2,0),"") ->  | AI173: =IF(ISNUMBER(SEARCH($AL$2,AJ173)),MAX($AI$1:AI172)+1,0) -> 0
I174: =SUMIF(الوارد!$D$2:$D$6000,E174,الوارد!$E$2:$E$6000) -> 0 | J174: =SUMIF(الوارد!$D$2:$D$6000,E174,الوارد!$G$2:$G$6000) -> 0 | K174: =SUMIF(الوارد!$D$2:$D$6000,E174,الوارد!$H$2:$H$6000) -> 0 | L174: =SUMIF(المنصرف!$D$2:$D$6000,E174,المنصرف!$E$2:$E$6000) -> 0 | M174: =SUMIF(المنصرف!$D$2:$D$6000,E174,المنصرف!$G$2:$G$6000) -> 0 | N174: =SUMIF(المنصرف!$D$2:$D$6000,E174,المنصرف!$H$2:$H$6000) -> 0 | O174: =SUMIF(المرتجع!$D$2:$D$6000,E174,المرتجع!$E$2:$E$6000) -> 0 | P174: =SUMIF(المرتجع!$D$2:$D$6000,E174,المرتجع!$G$2:$G$6000) -> 0 | Q174: =SUMIF(المرتجع!$D$2:$D$6000,E174,المرتجع!$H$2:$H$6000) -> 0 | R174: 0 | S174: 0 | T174: 0 | AG174: =IFERROR(VLOOKUP(ROWS($AG$2:AG174),$AI$2:$AJ$932,2,0),"") ->  | AI174: =IF(ISNUMBER(SEARCH($AL$2,AJ174)),MAX($AI$1:AI173)+1,0) -> 0
I175: =SUMIF(الوارد!$D$2:$D$6000,E175,الوارد!$E$2:$E$6000) -> 0 | J175: =SUMIF(الوارد!$D$2:$D$6000,E175,الوارد!$G$2:$G$6000) -> 0 | K175: =SUMIF(الوارد!$D$2:$D$6000,E175,الوارد!$H$2:$H$6000) -> 0 | L175: =SUMIF(المنصرف!$D$2:$D$6000,E175,المنصرف!$E$2:$E$6000) -> 0 | M175: =SUMIF(المنصرف!$D$2:$D$6000,E175,المنصرف!$G$2:$G$6000) -> 0 | N175: =SUMIF(المنصرف!$D$2:$D$6000,E175,المنصرف!$H$2:$H$6000) -> 0 | O175: =SUMIF(المرتجع!$D$2:$D$6000,E175,المرتجع!$E$2:$E$6000) -> 0 | P175: =SUMIF(المرتجع!$D$2:$D$6000,E175,المرتجع!$G$2:$G$6000) -> 0 | Q175: =SUMIF(المرتجع!$D$2:$D$6000,E175,المرتجع!$H$2:$H$6000) -> 0 | R175: 0 | S175: 0 | T175: 0 | AG175: =IFERROR(VLOOKUP(ROWS($AG$2:AG175),$AI$2:$AJ$932,2,0),"") ->  | AI175: =IF(ISNUMBER(SEARCH($AL$2,AJ175)),MAX($AI$1:AI174)+1,0) -> 0
I176: =SUMIF(الوارد!$D$2:$D$6000,E176,الوارد!$E$2:$E$6000) -> 0 | J176: =SUMIF(الوارد!$D$2:$D$6000,E176,الوارد!$G$2:$G$6000) -> 0 | K176: =SUMIF(الوارد!$D$2:$D$6000,E176,الوارد!$H$2:$H$6000) -> 0 | L176: =SUMIF(المنصرف!$D$2:$D$6000,E176,المنصرف!$E$2:$E$6000) -> 0 | M176: =SUMIF(المنصرف!$D$2:$D$6000,E176,المنصرف!$G$2:$G$6000) -> 0 | N176: =SUMIF(المنصرف!$D$2:$D$6000,E176,المنصرف!$H$2:$H$6000) -> 0 | O176: =SUMIF(المرتجع!$D$2:$D$6000,E176,المرتجع!$E$2:$E$6000) -> 0 | P176: =SUMIF(المرتجع!$D$2:$D$6000,E176,المرتجع!$G$2:$G$6000) -> 0 | Q176: =SUMIF(المرتجع!$D$2:$D$6000,E176,المرتجع!$H$2:$H$6000) -> 0 | R176: 0 | S176: 0 | T176: 0 | AG176: =IFERROR(VLOOKUP(ROWS($AG$2:AG176),$AI$2:$AJ$932,2,0),"") ->  | AI176: =IF(ISNUMBER(SEARCH($AL$2,AJ176)),MAX($AI$1:AI175)+1,0) -> 0
I177: =SUMIF(الوارد!$D$2:$D$6000,E177,الوارد!$E$2:$E$6000) -> 0 | J177: =SUMIF(الوارد!$D$2:$D$6000,E177,الوارد!$G$2:$G$6000) -> 0 | K177: =SUMIF(الوارد!$D$2:$D$6000,E177,الوارد!$H$2:$H$6000) -> 0 | L177: =SUMIF(المنصرف!$D$2:$D$6000,E177,المنصرف!$E$2:$E$6000) -> 0 | M177: =SUMIF(المنصرف!$D$2:$D$6000,E177,المنصرف!$G$2:$G$6000) -> 0 | N177: =SUMIF(المنصرف!$D$2:$D$6000,E177,المنصرف!$H$2:$H$6000) -> 0 | O177: =SUMIF(المرتجع!$D$2:$D$6000,E177,المرتجع!$E$2:$E$6000) -> 0 | P177: =SUMIF(المرتجع!$D$2:$D$6000,E177,المرتجع!$G$2:$G$6000) -> 0 | Q177: =SUMIF(المرتجع!$D$2:$D$6000,E177,المرتجع!$H$2:$H$6000) -> 0 | R177: 0 | S177: 0 | T177: 0 | AG177: =IFERROR(VLOOKUP(ROWS($AG$2:AG177),$AI$2:$AJ$932,2,0),"") ->  | AI177: =IF(ISNUMBER(SEARCH($AL$2,AJ177)),MAX($AI$1:AI176)+1,0) -> 0
I178: =SUMIF(الوارد!$D$2:$D$6000,E178,الوارد!$E$2:$E$6000) -> 0 | J178: =SUMIF(الوارد!$D$2:$D$6000,E178,الوارد!$G$2:$G$6000) -> 0 | K178: =SUMIF(الوارد!$D$2:$D$6000,E178,الوارد!$H$2:$H$6000) -> 0 | L178: =SUMIF(المنصرف!$D$2:$D$6000,E178,المنصرف!$E$2:$E$6000) -> 0 | M178: =SUMIF(المنصرف!$D$2:$D$6000,E178,المنصرف!$G$2:$G$6000) -> 0 | N178: =SUMIF(المنصرف!$D$2:$D$6000,E178,المنصرف!$H$2:$H$6000) -> 0 | O178: =SUMIF(المرتجع!$D$2:$D$6000,E178,المرتجع!$E$2:$E$6000) -> 0 | P178: =SUMIF(المرتجع!$D$2:$D$6000,E178,المرتجع!$G$2:$G$6000) -> 0 | Q178: =SUMIF(المرتجع!$D$2:$D$6000,E178,المرتجع!$H$2:$H$6000) -> 0 | R178: 0 | S178: 0 | T178: 0 | AG178: =IFERROR(VLOOKUP(ROWS($AG$2:AG178),$AI$2:$AJ$932,2,0),"") ->  | AI178: =IF(ISNUMBER(SEARCH($AL$2,AJ178)),MAX($AI$1:AI177)+1,0) -> 0
I179: =SUMIF(الوارد!$D$2:$D$6000,E179,الوارد!$E$2:$E$6000) -> 0 | J179: =SUMIF(الوارد!$D$2:$D$6000,E179,الوارد!$G$2:$G$6000) -> 0 | K179: =SUMIF(الوارد!$D$2:$D$6000,E179,الوارد!$H$2:$H$6000) -> 0 | L179: =SUMIF(المنصرف!$D$2:$D$6000,E179,المنصرف!$E$2:$E$6000) -> 0 | M179: =SUMIF(المنصرف!$D$2:$D$6000,E179,المنصرف!$G$2:$G$6000) -> 0 | N179: =SUMIF(المنصرف!$D$2:$D$6000,E179,المنصرف!$H$2:$H$6000) -> 0 | O179: =SUMIF(المرتجع!$D$2:$D$6000,E179,المرتجع!$E$2:$E$6000) -> 0 | P179: =SUMIF(المرتجع!$D$2:$D$6000,E179,المرتجع!$G$2:$G$6000) -> 0 | Q179: =SUMIF(المرتجع!$D$2:$D$6000,E179,المرتجع!$H$2:$H$6000) -> 0 | R179: 0 | S179: 0 | T179: 0 | AG179: =IFERROR(VLOOKUP(ROWS($AG$2:AG179),$AI$2:$AJ$932,2,0),"") ->  | AI179: =IF(ISNUMBER(SEARCH($AL$2,AJ179)),MAX($AI$1:AI178)+1,0) -> 0
I180: =SUMIF(الوارد!$D$2:$D$6000,E180,الوارد!$E$2:$E$6000) -> 0 | J180: =SUMIF(الوارد!$D$2:$D$6000,E180,الوارد!$G$2:$G$6000) -> 0 | K180: =SUMIF(الوارد!$D$2:$D$6000,E180,الوارد!$H$2:$H$6000) -> 0 | L180: =SUMIF(المنصرف!$D$2:$D$6000,E180,المنصرف!$E$2:$E$6000) -> 0 | M180: =SUMIF(المنصرف!$D$2:$D$6000,E180,المنصرف!$G$2:$G$6000) -> 0 | N180: =SUMIF(المنصرف!$D$2:$D$6000,E180,المنصرف!$H$2:$H$6000) -> 0 | O180: =SUMIF(المرتجع!$D$2:$D$6000,E180,المرتجع!$E$2:$E$6000) -> 0 | P180: =SUMIF(المرتجع!$D$2:$D$6000,E180,المرتجع!$G$2:$G$6000) -> 0 | Q180: =SUMIF(المرتجع!$D$2:$D$6000,E180,المرتجع!$H$2:$H$6000) -> 0 | R180: 0 | S180: 0 | T180: 0 | AG180: =IFERROR(VLOOKUP(ROWS($AG$2:AG180),$AI$2:$AJ$932,2,0),"") ->  | AI180: =IF(ISNUMBER(SEARCH($AL$2,AJ180)),MAX($AI$1:AI179)+1,0) -> 0
I181: =SUMIF(الوارد!$D$2:$D$6000,E181,الوارد!$E$2:$E$6000) -> 0 | J181: =SUMIF(الوارد!$D$2:$D$6000,E181,الوارد!$G$2:$G$6000) -> 0 | K181: =SUMIF(الوارد!$D$2:$D$6000,E181,الوارد!$H$2:$H$6000) -> 0 | L181: =SUMIF(المنصرف!$D$2:$D$6000,E181,المنصرف!$E$2:$E$6000) -> 0 | M181: =SUMIF(المنصرف!$D$2:$D$6000,E181,المنصرف!$G$2:$G$6000) -> 0 | N181: =SUMIF(المنصرف!$D$2:$D$6000,E181,المنصرف!$H$2:$H$6000) -> 0 | O181: =SUMIF(المرتجع!$D$2:$D$6000,E181,المرتجع!$E$2:$E$6000) -> 0 | P181: =SUMIF(المرتجع!$D$2:$D$6000,E181,المرتجع!$G$2:$G$6000) -> 0 | Q181: =SUMIF(المرتجع!$D$2:$D$6000,E181,المرتجع!$H$2:$H$6000) -> 0 | R181: 0 | S181: 0 | T181: 0 | AG181: =IFERROR(VLOOKUP(ROWS($AG$2:AG181),$AI$2:$AJ$932,2,0),"") ->  | AI181: =IF(ISNUMBER(SEARCH($AL$2,AJ181)),MAX($AI$1:AI180)+1,0) -> 0
I182: =SUMIF(الوارد!$D$2:$D$6000,E182,الوارد!$E$2:$E$6000) -> 0 | J182: =SUMIF(الوارد!$D$2:$D$6000,E182,الوارد!$G$2:$G$6000) -> 0 | K182: =SUMIF(الوارد!$D$2:$D$6000,E182,الوارد!$H$2:$H$6000) -> 0 | L182: =SUMIF(المنصرف!$D$2:$D$6000,E182,المنصرف!$E$2:$E$6000) -> 0 | M182: =SUMIF(المنصرف!$D$2:$D$6000,E182,المنصرف!$G$2:$G$6000) -> 0 | N182: =SUMIF(المنصرف!$D$2:$D$6000,E182,المنصرف!$H$2:$H$6000) -> 0 | O182: =SUMIF(المرتجع!$D$2:$D$6000,E182,المرتجع!$E$2:$E$6000) -> 0 | P182: =SUMIF(المرتجع!$D$2:$D$6000,E182,المرتجع!$G$2:$G$6000) -> 0 | Q182: =SUMIF(المرتجع!$D$2:$D$6000,E182,المرتجع!$H$2:$H$6000) -> 0 | R182: 0 | S182: 0 | T182: 0 | AG182: =IFERROR(VLOOKUP(ROWS($AG$2:AG182),$AI$2:$AJ$932,2,0),"") ->  | AI182: =IF(ISNUMBER(SEARCH($AL$2,AJ182)),MAX($AI$1:AI181)+1,0) -> 0
I183: =SUMIF(الوارد!$D$2:$D$6000,E183,الوارد!$E$2:$E$6000) -> 0 | J183: =SUMIF(الوارد!$D$2:$D$6000,E183,الوارد!$G$2:$G$6000) -> 0 | K183: =SUMIF(الوارد!$D$2:$D$6000,E183,الوارد!$H$2:$H$6000) -> 0 | L183: =SUMIF(المنصرف!$D$2:$D$6000,E183,المنصرف!$E$2:$E$6000) -> 0 | M183: =SUMIF(المنصرف!$D$2:$D$6000,E183,المنصرف!$G$2:$G$6000) -> 0 | N183: =SUMIF(المنصرف!$D$2:$D$6000,E183,المنصرف!$H$2:$H$6000) -> 0 | O183: =SUMIF(المرتجع!$D$2:$D$6000,E183,المرتجع!$E$2:$E$6000) -> 0 | P183: =SUMIF(المرتجع!$D$2:$D$6000,E183,المرتجع!$G$2:$G$6000) -> 0 | Q183: =SUMIF(المرتجع!$D$2:$D$6000,E183,المرتجع!$H$2:$H$6000) -> 0 | R183: 0 | S183: 0 | T183: 0 | AG183: =IFERROR(VLOOKUP(ROWS($AG$2:AG183),$AI$2:$AJ$932,2,0),"") ->  | AI183: =IF(ISNUMBER(SEARCH($AL$2,AJ183)),MAX($AI$1:AI182)+1,0) -> 0
I184: =SUMIF(الوارد!$D$2:$D$6000,E184,الوارد!$E$2:$E$6000) -> 0 | J184: =SUMIF(الوارد!$D$2:$D$6000,E184,الوارد!$G$2:$G$6000) -> 0 | K184: =SUMIF(الوارد!$D$2:$D$6000,E184,الوارد!$H$2:$H$6000) -> 0 | L184: =SUMIF(المنصرف!$D$2:$D$6000,E184,المنصرف!$E$2:$E$6000) -> 0 | M184: =SUMIF(المنصرف!$D$2:$D$6000,E184,المنصرف!$G$2:$G$6000) -> 0 | N184: =SUMIF(المنصرف!$D$2:$D$6000,E184,المنصرف!$H$2:$H$6000) -> 0 | O184: =SUMIF(المرتجع!$D$2:$D$6000,E184,المرتجع!$E$2:$E$6000) -> 0 | P184: =SUMIF(المرتجع!$D$2:$D$6000,E184,المرتجع!$G$2:$G$6000) -> 0 | Q184: =SUMIF(المرتجع!$D$2:$D$6000,E184,المرتجع!$H$2:$H$6000) -> 0 | R184: 0 | S184: 0 | T184: 0 | AG184: =IFERROR(VLOOKUP(ROWS($AG$2:AG184),$AI$2:$AJ$932,2,0),"") ->  | AI184: =IF(ISNUMBER(SEARCH($AL$2,AJ184)),MAX($AI$1:AI183)+1,0) -> 0
I185: =SUMIF(الوارد!$D$2:$D$6000,E185,الوارد!$E$2:$E$6000) -> 0 | J185: =SUMIF(الوارد!$D$2:$D$6000,E185,الوارد!$G$2:$G$6000) -> 0 | K185: =SUMIF(الوارد!$D$2:$D$6000,E185,الوارد!$H$2:$H$6000) -> 0 | L185: =SUMIF(المنصرف!$D$2:$D$6000,E185,المنصرف!$E$2:$E$6000) -> 0 | M185: =SUMIF(المنصرف!$D$2:$D$6000,E185,المنصرف!$G$2:$G$6000) -> 0 | N185: =SUMIF(المنصرف!$D$2:$D$6000,E185,المنصرف!$H$2:$H$6000) -> 0 | O185: =SUMIF(المرتجع!$D$2:$D$6000,E185,المرتجع!$E$2:$E$6000) -> 0 | P185: =SUMIF(المرتجع!$D$2:$D$6000,E185,المرتجع!$G$2:$G$6000) -> 0 | Q185: =SUMIF(المرتجع!$D$2:$D$6000,E185,المرتجع!$H$2:$H$6000) -> 0 | R185: 0 | S185: 0 | T185: 0 | AG185: =IFERROR(VLOOKUP(ROWS($AG$2:AG185),$AI$2:$AJ$932,2,0),"") ->  | AI185: =IF(ISNUMBER(SEARCH($AL$2,AJ185)),MAX($AI$1:AI184)+1,0) -> 0
I186: =SUMIF(الوارد!$D$2:$D$6000,E186,الوارد!$E$2:$E$6000) -> 0 | J186: =SUMIF(الوارد!$D$2:$D$6000,E186,الوارد!$G$2:$G$6000) -> 0 | K186: =SUMIF(الوارد!$D$2:$D$6000,E186,الوارد!$H$2:$H$6000) -> 0 | L186: =SUMIF(المنصرف!$D$2:$D$6000,E186,المنصرف!$E$2:$E$6000) -> 0 | M186: =SUMIF(المنصرف!$D$2:$D$6000,E186,المنصرف!$G$2:$G$6000) -> 0 | N186: =SUMIF(المنصرف!$D$2:$D$6000,E186,المنصرف!$H$2:$H$6000) -> 0 | O186: =SUMIF(المرتجع!$D$2:$D$6000,E186,المرتجع!$E$2:$E$6000) -> 0 | P186: =SUMIF(المرتجع!$D$2:$D$6000,E186,المرتجع!$G$2:$G$6000) -> 0 | Q186: =SUMIF(المرتجع!$D$2:$D$6000,E186,المرتجع!$H$2:$H$6000) -> 0 | R186: 0 | S186: 0 | T186: 0 | AG186: =IFERROR(VLOOKUP(ROWS($AG$2:AG186),$AI$2:$AJ$932,2,0),"") ->  | AI186: =IF(ISNUMBER(SEARCH($AL$2,AJ186)),MAX($AI$1:AI185)+1,0) -> 0
H187: 0 | I187: =SUMIF(الوارد!$D$2:$D$6000,E187,الوارد!$E$2:$E$6000) -> 0 | J187: =SUMIF(الوارد!$D$2:$D$6000,E187,الوارد!$G$2:$G$6000) -> 0 | K187: =SUMIF(الوارد!$D$2:$D$6000,E187,الوارد!$H$2:$H$6000) -> 0 | L187: =SUMIF(المنصرف!$D$2:$D$6000,E187,المنصرف!$E$2:$E$6000) -> 0 | M187: =SUMIF(المنصرف!$D$2:$D$6000,E187,المنصرف!$G$2:$G$6000) -> 0 | N187: =SUMIF(المنصرف!$D$2:$D$6000,E187,المنصرف!$H$2:$H$6000) -> 0 | O187: =SUMIF(المرتجع!$D$2:$D$6000,E187,المرتجع!$E$2:$E$6000) -> 0 | P187: =SUMIF(المرتجع!$D$2:$D$6000,E187,المرتجع!$G$2:$G$6000) -> 0 | Q187: =SUMIF(المرتجع!$D$2:$D$6000,E187,المرتجع!$H$2:$H$6000) -> 0 | R187: 0 | S187: 0 | T187: 0 | AG187: =IFERROR(VLOOKUP(ROWS($AG$2:AG187),$AI$2:$AJ$932,2,0),"") ->  | AI187: =IF(ISNUMBER(SEARCH($AL$2,AJ187)),MAX($AI$1:AI186)+1,0) -> 0
I188: =SUMIF(الوارد!$D$2:$D$6000,E188,الوارد!$E$2:$E$6000) -> 0 | J188: =SUMIF(الوارد!$D$2:$D$6000,E188,الوارد!$G$2:$G$6000) -> 0 | K188: =SUMIF(الوارد!$D$2:$D$6000,E188,الوارد!$H$2:$H$6000) -> 0 | L188: =SUMIF(المنصرف!$D$2:$D$6000,E188,المنصرف!$E$2:$E$6000) -> 0 | M188: =SUMIF(المنصرف!$D$2:$D$6000,E188,المنصرف!$G$2:$G$6000) -> 0 | N188: =SUMIF(المنصرف!$D$2:$D$6000,E188,المنصرف!$H$2:$H$6000) -> 0 | O188: =SUMIF(المرتجع!$D$2:$D$6000,E188,المرتجع!$E$2:$E$6000) -> 0 | P188: =SUMIF(المرتجع!$D$2:$D$6000,E188,المرتجع!$G$2:$G$6000) -> 0 | Q188: =SUMIF(المرتجع!$D$2:$D$6000,E188,المرتجع!$H$2:$H$6000) -> 0 | R188: 0 | S188: 0 | T188: 0 | AG188: =IFERROR(VLOOKUP(ROWS($AG$2:AG188),$AI$2:$AJ$932,2,0),"") ->  | AI188: =IF(ISNUMBER(SEARCH($AL$2,AJ188)),MAX($AI$1:AI187)+1,0) -> 0
I189: =SUMIF(الوارد!$D$2:$D$6000,E189,الوارد!$E$2:$E$6000) -> 0 | J189: =SUMIF(الوارد!$D$2:$D$6000,E189,الوارد!$G$2:$G$6000) -> 0 | K189: =SUMIF(الوارد!$D$2:$D$6000,E189,الوارد!$H$2:$H$6000) -> 0 | L189: =SUMIF(المنصرف!$D$2:$D$6000,E189,المنصرف!$E$2:$E$6000) -> 0 | M189: =SUMIF(المنصرف!$D$2:$D$6000,E189,المنصرف!$G$2:$G$6000) -> 0 | N189: =SUMIF(المنصرف!$D$2:$D$6000,E189,المنصرف!$H$2:$H$6000) -> 0 | O189: =SUMIF(المرتجع!$D$2:$D$6000,E189,المرتجع!$E$2:$E$6000) -> 0 | P189: =SUMIF(المرتجع!$D$2:$D$6000,E189,المرتجع!$G$2:$G$6000) -> 0 | Q189: =SUMIF(المرتجع!$D$2:$D$6000,E189,المرتجع!$H$2:$H$6000) -> 0 | R189: 0 | S189: 0 | T189: 0 | AG189: =IFERROR(VLOOKUP(ROWS($AG$2:AG189),$AI$2:$AJ$932,2,0),"") ->  | AI189: =IF(ISNUMBER(SEARCH($AL$2,AJ189)),MAX($AI$1:AI188)+1,0) -> 0
I190: =SUMIF(الوارد!$D$2:$D$6000,E190,الوارد!$E$2:$E$6000) -> 0 | J190: =SUMIF(الوارد!$D$2:$D$6000,E190,الوارد!$G$2:$G$6000) -> 0 | K190: =SUMIF(الوارد!$D$2:$D$6000,E190,الوارد!$H$2:$H$6000) -> 0 | L190: =SUMIF(المنصرف!$D$2:$D$6000,E190,المنصرف!$E$2:$E$6000) -> 0 | M190: =SUMIF(المنصرف!$D$2:$D$6000,E190,المنصرف!$G$2:$G$6000) -> 0 | N190: =SUMIF(المنصرف!$D$2:$D$6000,E190,المنصرف!$H$2:$H$6000) -> 0 | O190: =SUMIF(المرتجع!$D$2:$D$6000,E190,المرتجع!$E$2:$E$6000) -> 0 | P190: =SUMIF(المرتجع!$D$2:$D$6000,E190,المرتجع!$G$2:$G$6000) -> 0 | Q190: =SUMIF(المرتجع!$D$2:$D$6000,E190,المرتجع!$H$2:$H$6000) -> 0 | R190: 0 | S190: 0 | T190: 0 | AG190: =IFERROR(VLOOKUP(ROWS($AG$2:AG190),$AI$2:$AJ$932,2,0),"") ->  | AI190: =IF(ISNUMBER(SEARCH($AL$2,AJ190)),MAX($AI$1:AI189)+1,0) -> 0
I191: =SUMIF(الوارد!$D$2:$D$6000,E191,الوارد!$E$2:$E$6000) -> 0 | J191: =SUMIF(الوارد!$D$2:$D$6000,E191,الوارد!$G$2:$G$6000) -> 0 | K191: =SUMIF(الوارد!$D$2:$D$6000,E191,الوارد!$H$2:$H$6000) -> 0 | L191: =SUMIF(المنصرف!$D$2:$D$6000,E191,المنصرف!$E$2:$E$6000) -> 0 | M191: =SUMIF(المنصرف!$D$2:$D$6000,E191,المنصرف!$G$2:$G$6000) -> 0 | N191: =SUMIF(المنصرف!$D$2:$D$6000,E191,المنصرف!$H$2:$H$6000) -> 0 | O191: =SUMIF(المرتجع!$D$2:$D$6000,E191,المرتجع!$E$2:$E$6000) -> 0 | P191: =SUMIF(المرتجع!$D$2:$D$6000,E191,المرتجع!$G$2:$G$6000) -> 0 | Q191: =SUMIF(المرتجع!$D$2:$D$6000,E191,المرتجع!$H$2:$H$6000) -> 0 | R191: 0 | S191: 0 | T191: 0 | AG191: =IFERROR(VLOOKUP(ROWS($AG$2:AG191),$AI$2:$AJ$932,2,0),"") ->  | AI191: =IF(ISNUMBER(SEARCH($AL$2,AJ191)),MAX($AI$1:AI190)+1,0) -> 0
I192: =SUMIF(الوارد!$D$2:$D$6000,E192,الوارد!$E$2:$E$6000) -> 0 | J192: =SUMIF(الوارد!$D$2:$D$6000,E192,الوارد!$G$2:$G$6000) -> 0 | K192: =SUMIF(الوارد!$D$2:$D$6000,E192,الوارد!$H$2:$H$6000) -> 0 | L192: =SUMIF(المنصرف!$D$2:$D$6000,E192,المنصرف!$E$2:$E$6000) -> 0 | M192: =SUMIF(المنصرف!$D$2:$D$6000,E192,المنصرف!$G$2:$G$6000) -> 0 | N192: =SUMIF(المنصرف!$D$2:$D$6000,E192,المنصرف!$H$2:$H$6000) -> 0 | O192: =SUMIF(المرتجع!$D$2:$D$6000,E192,المرتجع!$E$2:$E$6000) -> 0 | P192: =SUMIF(المرتجع!$D$2:$D$6000,E192,المرتجع!$G$2:$G$6000) -> 0 | Q192: =SUMIF(المرتجع!$D$2:$D$6000,E192,المرتجع!$H$2:$H$6000) -> 0 | R192: 0 | S192: 0 | T192: 0 | AG192: =IFERROR(VLOOKUP(ROWS($AG$2:AG192),$AI$2:$AJ$932,2,0),"") ->  | AI192: =IF(ISNUMBER(SEARCH($AL$2,AJ192)),MAX($AI$1:AI191)+1,0) -> 0
I193: =SUMIF(الوارد!$D$2:$D$6000,E193,الوارد!$E$2:$E$6000) -> 0 | J193: =SUMIF(الوارد!$D$2:$D$6000,E193,الوارد!$G$2:$G$6000) -> 0 | K193: =SUMIF(الوارد!$D$2:$D$6000,E193,الوارد!$H$2:$H$6000) -> 0 | L193: =SUMIF(المنصرف!$D$2:$D$6000,E193,المنصرف!$E$2:$E$6000) -> 0 | M193: =SUMIF(المنصرف!$D$2:$D$6000,E193,المنصرف!$G$2:$G$6000) -> 0 | N193: =SUMIF(المنصرف!$D$2:$D$6000,E193,المنصرف!$H$2:$H$6000) -> 0 | O193: =SUMIF(المرتجع!$D$2:$D$6000,E193,المرتجع!$E$2:$E$6000) -> 0 | P193: =SUMIF(المرتجع!$D$2:$D$6000,E193,المرتجع!$G$2:$G$6000) -> 0 | Q193: =SUMIF(المرتجع!$D$2:$D$6000,E193,المرتجع!$H$2:$H$6000) -> 0 | R193: 0 | S193: 0 | T193: 0 | AG193: =IFERROR(VLOOKUP(ROWS($AG$2:AG193),$AI$2:$AJ$932,2,0),"") ->  | AI193: =IF(ISNUMBER(SEARCH($AL$2,AJ193)),MAX($AI$1:AI192)+1,0) -> 0
I194: =SUMIF(الوارد!$D$2:$D$6000,E194,الوارد!$E$2:$E$6000) -> 0 | J194: =SUMIF(الوارد!$D$2:$D$6000,E194,الوارد!$G$2:$G$6000) -> 0 | K194: =SUMIF(الوارد!$D$2:$D$6000,E194,الوارد!$H$2:$H$6000) -> 0 | L194: =SUMIF(المنصرف!$D$2:$D$6000,E194,المنصرف!$E$2:$E$6000) -> 0 | M194: =SUMIF(المنصرف!$D$2:$D$6000,E194,المنصرف!$G$2:$G$6000) -> 0 | N194: =SUMIF(المنصرف!$D$2:$D$6000,E194,المنصرف!$H$2:$H$6000) -> 0 | O194: =SUMIF(المرتجع!$D$2:$D$6000,E194,المرتجع!$E$2:$E$6000) -> 0 | P194: =SUMIF(المرتجع!$D$2:$D$6000,E194,المرتجع!$G$2:$G$6000) -> 0 | Q194: =SUMIF(المرتجع!$D$2:$D$6000,E194,المرتجع!$H$2:$H$6000) -> 0 | R194: 0 | S194: 0 | T194: 0 | AG194: =IFERROR(VLOOKUP(ROWS($AG$2:AG194),$AI$2:$AJ$932,2,0),"") ->  | AI194: =IF(ISNUMBER(SEARCH($AL$2,AJ194)),MAX($AI$1:AI193)+1,0) -> 0
I195: =SUMIF(الوارد!$D$2:$D$6000,E195,الوارد!$E$2:$E$6000) -> 0 | J195: =SUMIF(الوارد!$D$2:$D$6000,E195,الوارد!$G$2:$G$6000) -> 0 | K195: =SUMIF(الوارد!$D$2:$D$6000,E195,الوارد!$H$2:$H$6000) -> 0 | L195: =SUMIF(المنصرف!$D$2:$D$6000,E195,المنصرف!$E$2:$E$6000) -> 0 | M195: =SUMIF(المنصرف!$D$2:$D$6000,E195,المنصرف!$G$2:$G$6000) -> 0 | N195: =SUMIF(المنصرف!$D$2:$D$6000,E195,المنصرف!$H$2:$H$6000) -> 0 | O195: =SUMIF(المرتجع!$D$2:$D$6000,E195,المرتجع!$E$2:$E$6000) -> 0 | P195: =SUMIF(المرتجع!$D$2:$D$6000,E195,المرتجع!$G$2:$G$6000) -> 0 | Q195: =SUMIF(المرتجع!$D$2:$D$6000,E195,المرتجع!$H$2:$H$6000) -> 0 | R195: 0 | S195: 0 | T195: 0 | AG195: =IFERROR(VLOOKUP(ROWS($AG$2:AG195),$AI$2:$AJ$932,2,0),"") ->  | AI195: =IF(ISNUMBER(SEARCH($AL$2,AJ195)),MAX($AI$1:AI194)+1,0) -> 0
I196: =SUMIF(الوارد!$D$2:$D$6000,E196,الوارد!$E$2:$E$6000) -> 0 | J196: =SUMIF(الوارد!$D$2:$D$6000,E196,الوارد!$G$2:$G$6000) -> 0 | K196: =SUMIF(الوارد!$D$2:$D$6000,E196,الوارد!$H$2:$H$6000) -> 0 | L196: =SUMIF(المنصرف!$D$2:$D$6000,E196,المنصرف!$E$2:$E$6000) -> 0 | M196: =SUMIF(المنصرف!$D$2:$D$6000,E196,المنصرف!$G$2:$G$6000) -> 0 | N196: =SUMIF(المنصرف!$D$2:$D$6000,E196,المنصرف!$H$2:$H$6000) -> 0 | O196: =SUMIF(المرتجع!$D$2:$D$6000,E196,المرتجع!$E$2:$E$6000) -> 0 | P196: =SUMIF(المرتجع!$D$2:$D$6000,E196,المرتجع!$G$2:$G$6000) -> 0 | Q196: =SUMIF(المرتجع!$D$2:$D$6000,E196,المرتجع!$H$2:$H$6000) -> 0 | R196: 0 | S196: 0 | T196: 0 | AG196: =IFERROR(VLOOKUP(ROWS($AG$2:AG196),$AI$2:$AJ$932,2,0),"") ->  | AI196: =IF(ISNUMBER(SEARCH($AL$2,AJ196)),MAX($AI$1:AI195)+1,0) -> 0
I197: =SUMIF(الوارد!$D$2:$D$6000,E197,الوارد!$E$2:$E$6000) -> 0 | J197: =SUMIF(الوارد!$D$2:$D$6000,E197,الوارد!$G$2:$G$6000) -> 0 | K197: =SUMIF(الوارد!$D$2:$D$6000,E197,الوارد!$H$2:$H$6000) -> 0 | L197: =SUMIF(المنصرف!$D$2:$D$6000,E197,المنصرف!$E$2:$E$6000) -> 0 | M197: =SUMIF(المنصرف!$D$2:$D$6000,E197,المنصرف!$G$2:$G$6000) -> 0 | N197: =SUMIF(المنصرف!$D$2:$D$6000,E197,المنصرف!$H$2:$H$6000) -> 0 | O197: =SUMIF(المرتجع!$D$2:$D$6000,E197,المرتجع!$E$2:$E$6000) -> 0 | P197: =SUMIF(المرتجع!$D$2:$D$6000,E197,المرتجع!$G$2:$G$6000) -> 0 | Q197: =SUMIF(المرتجع!$D$2:$D$6000,E197,المرتجع!$H$2:$H$6000) -> 0 | R197: 0 | S197: 0 | T197: 0 | AG197: =IFERROR(VLOOKUP(ROWS($AG$2:AG197),$AI$2:$AJ$932,2,0),"") ->  | AI197: =IF(ISNUMBER(SEARCH($AL$2,AJ197)),MAX($AI$1:AI196)+1,0) -> 0
I198: =SUMIF(الوارد!$D$2:$D$6000,E198,الوارد!$E$2:$E$6000) -> 0 | J198: =SUMIF(الوارد!$D$2:$D$6000,E198,الوارد!$G$2:$G$6000) -> 0 | K198: =SUMIF(الوارد!$D$2:$D$6000,E198,الوارد!$H$2:$H$6000) -> 0 | L198: =SUMIF(المنصرف!$D$2:$D$6000,E198,المنصرف!$E$2:$E$6000) -> 0 | M198: =SUMIF(المنصرف!$D$2:$D$6000,E198,المنصرف!$G$2:$G$6000) -> 0 | N198: =SUMIF(المنصرف!$D$2:$D$6000,E198,المنصرف!$H$2:$H$6000) -> 0 | O198: =SUMIF(المرتجع!$D$2:$D$6000,E198,المرتجع!$E$2:$E$6000) -> 0 | P198: =SUMIF(المرتجع!$D$2:$D$6000,E198,المرتجع!$G$2:$G$6000) -> 0 | Q198: =SUMIF(المرتجع!$D$2:$D$6000,E198,المرتجع!$H$2:$H$6000) -> 0 | R198: 0 | S198: 0 | T198: 0 | AG198: =IFERROR(VLOOKUP(ROWS($AG$2:AG198),$AI$2:$AJ$932,2,0),"") ->  | AI198: =IF(ISNUMBER(SEARCH($AL$2,AJ198)),MAX($AI$1:AI197)+1,0) -> 0
I199: =SUMIF(الوارد!$D$2:$D$6000,E199,الوارد!$E$2:$E$6000) -> 0 | J199: =SUMIF(الوارد!$D$2:$D$6000,E199,الوارد!$G$2:$G$6000) -> 0 | K199: =SUMIF(الوارد!$D$2:$D$6000,E199,الوارد!$H$2:$H$6000) -> 0 | L199: =SUMIF(المنصرف!$D$2:$D$6000,E199,المنصرف!$E$2:$E$6000) -> 0 | M199: =SUMIF(المنصرف!$D$2:$D$6000,E199,المنصرف!$G$2:$G$6000) -> 0 | N199: =SUMIF(المنصرف!$D$2:$D$6000,E199,المنصرف!$H$2:$H$6000) -> 0 | O199: =SUMIF(المرتجع!$D$2:$D$6000,E199,المرتجع!$E$2:$E$6000) -> 0 | P199: =SUMIF(المرتجع!$D$2:$D$6000,E199,المرتجع!$G$2:$G$6000) -> 0 | Q199: =SUMIF(المرتجع!$D$2:$D$6000,E199,المرتجع!$H$2:$H$6000) -> 0 | R199: 0 | S199: 0 | T199: 0 | AG199: =IFERROR(VLOOKUP(ROWS($AG$2:AG199),$AI$2:$AJ$932,2,0),"") ->  | AI199: =IF(ISNUMBER(SEARCH($AL$2,AJ199)),MAX($AI$1:AI198)+1,0) -> 0
I200: =SUMIF(الوارد!$D$2:$D$6000,E200,الوارد!$E$2:$E$6000) -> 0 | J200: =SUMIF(الوارد!$D$2:$D$6000,E200,الوارد!$G$2:$G$6000) -> 0 | K200: =SUMIF(الوارد!$D$2:$D$6000,E200,الوارد!$H$2:$H$6000) -> 0 | L200: =SUMIF(المنصرف!$D$2:$D$6000,E200,المنصرف!$E$2:$E$6000) -> 0 | M200: =SUMIF(المنصرف!$D$2:$D$6000,E200,المنصرف!$G$2:$G$6000) -> 0 | N200: =SUMIF(المنصرف!$D$2:$D$6000,E200,المنصرف!$H$2:$H$6000) -> 0 | O200: =SUMIF(المرتجع!$D$2:$D$6000,E200,المرتجع!$E$2:$E$6000) -> 0 | P200: =SUMIF(المرتجع!$D$2:$D$6000,E200,المرتجع!$G$2:$G$6000) -> 0 | Q200: =SUMIF(المرتجع!$D$2:$D$6000,E200,المرتجع!$H$2:$H$6000) -> 0 | R200: 0 | S200: 0 | T200: 0 | AG200: =IFERROR(VLOOKUP(ROWS($AG$2:AG200),$AI$2:$AJ$932,2,0),"") ->  | AI200: =IF(ISNUMBER(SEARCH($AL$2,AJ200)),MAX($AI$1:AI199)+1,0) -> 0
... 1102 more rows

Sheet الوارد
A1: التاريخ | B1: أذن أضافة | C1: الكود | D1: اللون | E1: الكمية بالكيلو | F1: وزن المتر بالكيلو | G1: الكمية بالامتار | H1: الكمية بالقطع | I1: العميل | J1: b
A2: 2026-01-01 | B2: 15628 | C2: 41 | D2: =IFERROR(VLOOKUP(C2,التكويد!$A$2:$R$1501,5,0),"") -> الوان جاكار 3 سم | E2: 221 | F2: =IFERROR(SUM(E2/G2),"") ->  | AA2: 5
A3: 2026-01-01 | B3: 15629 | C3: 41 | D3: =IFERROR(VLOOKUP(C3,التكويد!$A$2:$R$1501,5,0),"") -> الوان جاكار 3 سم | E3: 15 | AA3: 10
A4: 2026-01-01 | B4: 15629 | C4: 41 | D4: =IFERROR(VLOOKUP(C4,التكويد!$A$2:$R$1501,5,0),"") -> الوان جاكار 3 سم | E4: 275.83 | AA4: 15
A5: 2026-01-01 | B5: 15630 | C5: 8 | D5: =IFERROR(VLOOKUP(C5,التكويد!$A$2:$R$1501,5,0),"") -> ابيض كروشيه 3.5 سم | E5: 101.42 | AA5: 20
A6: 2026-01-01 | B6: 15630 | C6: 7 | D6: =IFERROR(VLOOKUP(C6,التكويد!$A$2:$R$1501,5,0),"") -> ابيض كروشيه 4سم | E6: 156.74 | AA6: 25
A7: 2026-01-01 | B7: 15630 | C7: 25 | D7: =IFERROR(VLOOKUP(C7,التكويد!$A$2:$R$1501,5,0),"") -> اسود كروشيه 5سم | E7: 341.14 | AA7: 30
A8: 2026-01-01 | B8: 15630 | C8: 23 | D8: =IFERROR(VLOOKUP(C8,التكويد!$A$2:$R$1501,5,0),"") -> اسود كروشيه 2سم | E8: 7.64 | AA8: 35
A9: 2026-01-01 | B9: 15631 | C9: 37 | D9: =IFERROR(VLOOKUP(C9,التكويد!$A$2:$R$1501,5,0),"") -> ألوان ويفين مقاسات مختلفة | E9: 65.24 | AA9: 40
A10: 2026-01-01 | B10: 15632 | C10: 37 | D10: =IFERROR(VLOOKUP(C10,التكويد!$A$2:$R$1501,5,0),"") -> ألوان ويفين مقاسات مختلفة | E10: 21.72 | AA10: 45
A11: 2026-01-03 | B11: 15633 | C11: 41 | D11: =IFERROR(VLOOKUP(C11,التكويد!$A$2:$R$1501,5,0),"") -> الوان جاكار 3 سم | E11: 633.05 | AA11: 50
A12: 2026-01-03 | B12: 15634 | C12: 41 | D12: =IFERROR(VLOOKUP(C12,التكويد!$A$2:$R$1501,5,0),"") -> الوان جاكار 3 سم | E12: 835.8 | AA12: 55
A13: 2026-01-03 | B13: 15635 | C13: 41 | D13: =IFERROR(VLOOKUP(C13,التكويد!$A$2:$R$1501,5,0),"") -> الوان جاكار 3 سم | E13: 442.35 | AA13: 60
A14: 2026-01-03 | B14: 15636 | C14: 41 | D14: =IFERROR(VLOOKUP(C14,التكويد!$A$2:$R$1501,5,0),"") -> الوان جاكار 3 سم | E14: 23.25 | AA14: 65
A15: 2026-01-03 | B15: 15637 | C15: 25 | D15: =IFERROR(VLOOKUP(C15,التكويد!$A$2:$R$1501,5,0),"") -> اسود كروشيه 5سم | E15: 645.4 | AA15: 70
A16: 2026-01-03 | B16: 15637 | C16: 7 | D16: =IFERROR(VLOOKUP(C16,التكويد!$A$2:$R$1501,5,0),"") -> ابيض كروشيه 4سم | E16: 470.22 | AA16: 75
A17: 2026-01-03 | B17: 15637 | C17: 8 | D17: =IFERROR(VLOOKUP(C17,التكويد!$A$2:$R$1501,5,0),"") -> ابيض كروشيه 3.5 سم | E17: 184.4 | AA17: 80
A18: 2026-01-03 | B18: 15637 | C18: 30 | D18: =IFERROR(VLOOKUP(C18,التكويد!$A$2:$R$1501,5,0),"") -> اسود كروشيه 2.5 سم | E18: 9.22 | AA18: 85
A19: 2026-01-03 | B19: 15638 | C19: 37 | D19: =IFERROR(VLOOKUP(C19,التكويد!$A$2:$R$1501,5,0),"") -> ألوان ويفين مقاسات مختلفة | E19: 203.98 | AA19: 90
A20: 2026-01-03 | B20: 15639 | C20: 37 | D20: =IFERROR(VLOOKUP(C20,التكويد!$A$2:$R$1501,5,0),"") -> ألوان ويفين مقاسات مختلفة | E20: 29.62 | AA20: 95
A21: 2026-01-03 | B21: 15640 | C21: 39 | D21: =IFERROR(VLOOKUP(C21,التكويد!$A$2:$R$1501,5,0),"") -> الوان كردون بوليبستير مقاسات مختلفة | E21: 7.22 | AA21: 100
A22: 2026-01-03 | B22: 15642 | C22: 39 | D22: =IFERROR(VLOOKUP(C22,التكويد!$A$2:$R$1501,5,0),"") -> الوان كردون بوليبستير مقاسات مختلفة | E22: 143.86 | AA22: 105
A23: 2026-01-03 | B23: 15643 | C23: 37 | D23: =IFERROR(VLOOKUP(C23,التكويد!$A$2:$R$1501,5,0),"") -> ألوان ويفين مقاسات مختلفة | E23: 22.3 | AA23: 110
A24: 2026-01-03 | B24: 15644 | C24: 39 | D24: =IFERROR(VLOOKUP(C24,التكويد!$A$2:$R$1501,5,0),"") -> الوان كردون بوليبستير مقاسات مختلفة | E24: 172.75 | AA24: 115
A25: 2026-01-03 | B25: 15645 | C25: 37 | D25: =IFERROR(VLOOKUP(C25,التكويد!$A$2:$R$1501,5,0),"") -> ألوان ويفين مقاسات مختلفة | E25: 13.5 | AA25: 120
A26: 2026-01-03 | B26: 15646 | C26: 37 | D26: =IFERROR(VLOOKUP(C26,التكويد!$A$2:$R$1501,5,0),"") -> ألوان ويفين مقاسات مختلفة | E26: 35.3 | AA26: 125
A27: 2026-01-03 | B27: 15647 | C27: 37 | D27: =IFERROR(VLOOKUP(C27,التكويد!$A$2:$R$1501,5,0),"") -> ألوان ويفين مقاسات مختلفة | E27: 66.5 | AA27: 130
A28: 2026-01-04 | B28: 15648 | C28: 37 | D28: =IFERROR(VLOOKUP(C28,التكويد!$A$2:$R$1501,5,0),"") -> ألوان ويفين مقاسات مختلفة | E28: 57.95 | AA28: 135
A29: 2026-01-04 | B29: 15649 | C29: 37 | D29: =IFERROR(VLOOKUP(C29,التكويد!$A$2:$R$1501,5,0),"") -> ألوان ويفين مقاسات مختلفة | E29: 46.78 | AA29: 140
A30: 2026-01-04 | B30: 15650 | C30: 38 | D30: =IFERROR(VLOOKUP(C30,التكويد!$A$2:$R$1501,5,0),"") -> الوان كردون قطن مقاسات مختلفة | E30: 5.4 | AA30: 145
A31: 2026-01-04 | B31: 15651 | C31: 39 | D31: =IFERROR(VLOOKUP(C31,التكويد!$A$2:$R$1501,5,0),"") -> الوان كردون بوليبستير مقاسات مختلفة | E31: 262.7 | AA31: 150
A32: 2026-01-04 | B32: 15652 | C32: 39 | D32: =IFERROR(VLOOKUP(C32,التكويد!$A$2:$R$1501,5,0),"") -> الوان كردون بوليبستير مقاسات مختلفة | E32: 88.65 | AA32: 155
A33: 2026-01-04 | B33: 15654 | C33: 41 | D33: =IFERROR(VLOOKUP(C33,التكويد!$A$2:$R$1501,5,0),"") -> الوان جاكار 3 سم | E33: 438.3 | AA33: 160
A34: 2026-01-04 | B34: 15655 | C34: 41 | D34: =IFERROR(VLOOKUP(C34,التكويد!$A$2:$R$1501,5,0),"") -> الوان جاكار 3 سم | E34: 141.95 | AA34: 165
A35: 2026-01-04 | B35: 15656 | C35: 7 | D35: =IFERROR(VLOOKUP(C35,التكويد!$A$2:$R$1501,5,0),"") -> ابيض كروشيه 4سم | E35: 82.98 | AA35: 170
A36: 2026-01-04 | B36: 15656 | C36: 25 | D36: =IFERROR(VLOOKUP(C36,التكويد!$A$2:$R$1501,5,0),"") -> اسود كروشيه 5سم | E36: 101.42 | AA36: 175
A37: 2026-01-04 | B37: 15656 | C37: 8 | D37: =IFERROR(VLOOKUP(C37,التكويد!$A$2:$R$1501,5,0),"") -> ابيض كروشيه 3.5 سم | E37: 156.74 | AA37: 180
A38: 2026-01-04 | B38: 15656 | C38: 21 | D38: =IFERROR(VLOOKUP(C38,التكويد!$A$2:$R$1501,5,0),"") -> اسود كروشيه 6.4 سم | E38: 36.88 | AA38: 185
A39: 2026-01-04 | B39: 15656 | C39: 31 | D39: =IFERROR(VLOOKUP(C39,التكويد!$A$2:$R$1501,5,0),"") -> اسود كروشيه 5.8 سم | E39: 27.66 | AA39: 190
A40: 2026-01-04 | B40: 15656 | C40: 19 | D40: =IFERROR(VLOOKUP(C40,التكويد!$A$2:$R$1501,5,0),"") -> اسود كروشيه 4.5 سم | E40: 34.81 | AA40: 195
A41: 2026-01-04 | B41: 15657 | C41: 41 | D41: =IFERROR(VLOOKUP(C41,التكويد!$A$2:$R$1501,5,0),"") -> الوان جاكار 3 سم | E41: 28 | AA41: 200
A42: 2026-01-04 | B42: 15657 | C42: 42 | D42: =IFERROR(VLOOKUP(C42,التكويد!$A$2:$R$1501,5,0),"") -> الوان جاكار 4سم | E42: 12.81 | AA42: 205
A43: 2026-01-04 | B43: 15658 | C43: 37 | D43: =IFERROR(VLOOKUP(C43,التكويد!$A$2:$R$1501,5,0),"") -> ألوان ويفين مقاسات مختلفة | E43: 83.87 | AA43: 210
A44: 2026-01-05 | B44: 15661 | C44: 41 | D44: =IFERROR(VLOOKUP(C44,التكويد!$A$2:$R$1501,5,0),"") -> الوان جاكار 3 سم | E44: 522.55 | AA44: 215
A45: 2026-01-05 | B45: 15662 | C45: 41 | D45: =IFERROR(VLOOKUP(C45,التكويد!$A$2:$R$1501,5,0),"") -> الوان جاكار 3 سم | E45: 165.1 | AA45: 220
A46: 2026-01-05 | B46: 15663 | C46: 41 | D46: =IFERROR(VLOOKUP(C46,التكويد!$A$2:$R$1501,5,0),"") -> الوان جاكار 3 سم | E46: 88.15 | AA46: 225
A47: 2026-01-05 | B47: 15664 | C47: 8 | D47: =IFERROR(VLOOKUP(C47,التكويد!$A$2:$R$1501,5,0),"") -> ابيض كروشيه 3.5 سم | E47: 119 | AA47: 230
A48: 2026-01-05 | B48: 15664 | C48: 25 | D48: =IFERROR(VLOOKUP(C48,التكويد!$A$2:$R$1501,5,0),"") -> اسود كروشيه 5سم | E48: 55.32 | AA48: 235
A49: 2026-01-05 | B49: 15664 | C49: 7 | D49: =IFERROR(VLOOKUP(C49,التكويد!$A$2:$R$1501,5,0),"") -> ابيض كروشيه 4سم | E49: 92.2 | AA49: 240
A50: 2026-01-05 | B50: 15664 | C50: 43 | D50: =IFERROR(VLOOKUP(C50,التكويد!$A$2:$R$1501,5,0),"") -> اسود كروشيه 4سم | E50: 92.79 | AA50: 245
A51: 2026-01-05 | B51: 15664 | C51: 25 | D51: =IFERROR(VLOOKUP(C51,التكويد!$A$2:$R$1501,5,0),"") -> اسود كروشيه 5سم | E51: 46.1 | AA51: 250
A52: 2026-01-05 | B52: 15664 | C52: 6 | D52: =IFERROR(VLOOKUP(C52,التكويد!$A$2:$R$1501,5,0),"") -> ابيض كروشيه 2.5 سم | E52: 73.76 | AA52: 255
A53: 2026-01-05 | B53: 15665 | C53: 39 | D53: =IFERROR(VLOOKUP(C53,التكويد!$A$2:$R$1501,5,0),"") -> الوان كردون بوليبستير مقاسات مختلفة | E53: 179.22 | AA53: 260
A54: 2026-01-05 | B54: 15667 | C54: 37 | D54: =IFERROR(VLOOKUP(C54,التكويد!$A$2:$R$1501,5,0),"") -> ألوان ويفين مقاسات مختلفة | E54: 49.2 | AA54: 265
A55: 2026-01-05 | B55: 15668 | C55: 37 | D55: =IFERROR(VLOOKUP(C55,التكويد!$A$2:$R$1501,5,0),"") -> ألوان ويفين مقاسات مختلفة | E55: 52.76 | AA55: 270
A56: 2026-01-05 | B56: 15669 | C56: 38 | D56: =IFERROR(VLOOKUP(C56,التكويد!$A$2:$R$1501,5,0),"") -> الوان كردون قطن مقاسات مختلفة | E56: 19.2 | AA56: 275
A57: 2026-01-05 | B57: 15669 | C57: 39 | D57: =IFERROR(VLOOKUP(C57,التكويد!$A$2:$R$1501,5,0),"") -> الوان كردون بوليبستير مقاسات مختلفة | E57: 45.8 | AA57: 280
A58: 2026-01-05 | B58: 15670 | C58: 38 | D58: =IFERROR(VLOOKUP(C58,التكويد!$A$2:$R$1501,5,0),"") -> الوان كردون قطن مقاسات مختلفة | E58: 35.1 | AA58: 285
A59: 2026-01-05 | B59: 15671 | C59: 38 | D59: =IFERROR(VLOOKUP(C59,التكويد!$A$2:$R$1501,5,0),"") -> الوان كردون قطن مقاسات مختلفة | E59: 18.65 | AA59: 290
A60: 2026-01-06 | B60: 15672 | C60: 36 | D60: =IFERROR(VLOOKUP(C60,التكويد!$A$2:$R$1501,5,0),"") -> الوان ويفن خام | E60: 772 | AA60: 295
A61: 2026-01-06 | B61: 15675 | C61: 37 | D61: =IFERROR(VLOOKUP(C61,التكويد!$A$2:$R$1501,5,0),"") -> ألوان ويفين مقاسات مختلفة | E61: 18.22 | AA61: 300
A62: 2026-01-06 | B62: 15676 | C62: 41 | D62: =IFERROR(VLOOKUP(C62,التكويد!$A$2:$R$1501,5,0),"") -> الوان جاكار 3 سم | E62: 481.5 | AA62: 305
A63: 2026-01-06 | B63: 15677 | C63: 41 | D63: =IFERROR(VLOOKUP(C63,التكويد!$A$2:$R$1501,5,0),"") -> الوان جاكار 3 سم | E63: 167.51 | AA63: 310
A64: 2026-01-06 | B64: 15678 | C64: 41 | D64: =IFERROR(VLOOKUP(C64,التكويد!$A$2:$R$1501,5,0),"") -> الوان جاكار 3 سم | E64: 112.05 | AA64: 315
A65: 2026-01-06 | B65: 15679 | C65: 8 | D65: =IFERROR(VLOOKUP(C65,التكويد!$A$2:$R$1501,5,0),"") -> ابيض كروشيه 3.5 سم | E65: 147.52 | AA65: 320
A66: 2026-01-06 | B66: 15679 | C66: 30 | D66: =IFERROR(VLOOKUP(C66,التكويد!$A$2:$R$1501,5,0),"") -> اسود كروشيه 2.5 سم | E66: 42 | F66: =IFERROR(SUM(E66/G66),"") ->  | AA66: 325
A67: 2026-01-06 | B67: 15679 | C67: 8 | D67: =IFERROR(VLOOKUP(C67,التكويد!$A$2:$R$1501,5,0),"") -> ابيض كروشيه 3.5 سم | E67: 115.29 | AA67: 330
A68: 2026-01-06 | B68: 15679 | C68: 25 | D68: =IFERROR(VLOOKUP(C68,التكويد!$A$2:$R$1501,5,0),"") -> اسود كروشيه 5سم | E68: 55.32 | AA68: 335
A69: 2026-01-06 | B69: 15679 | C69: 43 | D69: =IFERROR(VLOOKUP(C69,التكويد!$A$2:$R$1501,5,0),"") -> اسود كروشيه 4سم | E69: 55.32 | AA69: 340
A70: 2026-01-06 | B70: 15679 | C70: 19 | D70: =IFERROR(VLOOKUP(C70,التكويد!$A$2:$R$1501,5,0),"") -> اسود كروشيه 4.5 سم | E70: 221.28 | AA70: 345
A71: 2026-01-06 | B71: 15679 | C71: 7 | D71: =IFERROR(VLOOKUP(C71,التكويد!$A$2:$R$1501,5,0),"") -> ابيض كروشيه 4سم | E71: 202.84 | AA71: 350
A72: 2026-01-06 | B72: 15679 | C72: 28 | D72: =IFERROR(VLOOKUP(C72,التكويد!$A$2:$R$1501,5,0),"") -> اسود كروشيه 3 سم | E72: 7 | AA72: 355
A73: 2026-01-06 | B73: 15680 | C73: 37 | D73: =IFERROR(VLOOKUP(C73,التكويد!$A$2:$R$1501,5,0),"") -> ألوان ويفين مقاسات مختلفة | E73: 15.89 | AA73: 360
A74: 2026-01-06 | B74: 15681 | C74: 39 | D74: =IFERROR(VLOOKUP(C74,التكويد!$A$2:$R$1501,5,0),"") -> الوان كردون بوليبستير مقاسات مختلفة | E74: 207.3 | AA74: 365
A75: 2026-01-07 | B75: 15682 | C75: 37 | D75: =IFERROR(VLOOKUP(C75,التكويد!$A$2:$R$1501,5,0),"") -> ألوان ويفين مقاسات مختلفة | E75: 25.51 | AA75: 370
A76: 2026-01-07 | B76: 15683 | C76: 20 | D76: =IFERROR(VLOOKUP(C76,التكويد!$A$2:$R$1501,5,0),"") -> اسود كروشيه 5.5 سم | E76: 4.81 | AA76: 375
A77: 2026-01-07 | B77: 15683 | C77: 8 | D77: =IFERROR(VLOOKUP(C77,التكويد!$A$2:$R$1501,5,0),"") -> ابيض كروشيه 3.5 سم | E77: 46.94 | AA77: 380
A78: 2026-01-07 | B78: 15683 | C78: 9 | D78: =IFERROR(VLOOKUP(C78,التكويد!$A$2:$R$1501,5,0),"") -> ابيض كروشيه 3 سم | E78: 28.24 | AA78: 385
A79: 2026-01-07 | B79: 15683 | C79: 6 | D79: =IFERROR(VLOOKUP(C79,التكويد!$A$2:$R$1501,5,0),"") -> ابيض كروشيه 2.5 سم | E79: 9.32 | AA79: 390
A80: 2026-01-07 | B80: 15683 | C80: 17 | D80: =IFERROR(VLOOKUP(C80,التكويد!$A$2:$R$1501,5,0),"") -> اسود كروشيه 1.5 سم | E80: 13.26 | AA80: 395
A81: 2026-01-07 | B81: 15683 | C81: 5 | D81: =IFERROR(VLOOKUP(C81,التكويد!$A$2:$R$1501,5,0),"") -> ابيض كروشيه 1.5 سم | E81: 3 | AA81: 400
A82: 2026-01-07 | B82: 15683 | C82: 23 | D82: =IFERROR(VLOOKUP(C82,التكويد!$A$2:$R$1501,5,0),"") -> اسود كروشيه 2سم | E82: 7.48 | AA82: 405
A83: 2026-01-07 | B83: 15683 | C83: 11 | D83: =IFERROR(VLOOKUP(C83,التكويد!$A$2:$R$1501,5,0),"") -> ابيض كروشيه 2سم | E83: 3.56 | AA83: 410
A84: 2026-01-07 | B84: 15683 | C84: 7 | D84: =IFERROR(VLOOKUP(C84,التكويد!$A$2:$R$1501,5,0),"") -> ابيض كروشيه 4سم | E84: 2.91 | AA84: 415
A85: 2026-01-07 | B85: 15684 | C85: 41 | D85: =IFERROR(VLOOKUP(C85,التكويد!$A$2:$R$1501,5,0),"") -> الوان جاكار 3 سم | E85: 394.22 | AA85: 420
A86: 2026-01-07 | B86: 15685 | C86: 41 | D86: =IFERROR(VLOOKUP(C86,التكويد!$A$2:$R$1501,5,0),"") -> الوان جاكار 3 سم | E86: 211.95 | AA86: 425
A87: 2026-01-07 | B87: 15686 | C87: 41 | D87: =IFERROR(VLOOKUP(C87,التكويد!$A$2:$R$1501,5,0),"") -> الوان جاكار 3 سم | E87: 17.6 | AA87: 430
A88: 2026-01-07 | B88: 15687 | C88: 19 | D88: =IFERROR(VLOOKUP(C88,التكويد!$A$2:$R$1501,5,0),"") -> اسود كروشيه 4.5 سم | E88: 150 | AA88: 435
A89: 2026-01-07 | B89: 15687 | C89: 43 | D89: =IFERROR(VLOOKUP(C89,التكويد!$A$2:$R$1501,5,0),"") -> اسود كروشيه 4سم | E89: 101.42 | AA89: 440
A90: 2026-01-07 | B90: 15687 | C90: 8 | D90: =IFERROR(VLOOKUP(C90,التكويد!$A$2:$R$1501,5,0),"") -> ابيض كروشيه 3.5 سم | E90: 92.2 | AA90: 445
A91: 2026-01-07 | B91: 15687 | C91: 7 | D91: =IFERROR(VLOOKUP(C91,التكويد!$A$2:$R$1501,5,0),"") -> ابيض كروشيه 4سم | E91: 184.4 | AA91: 450
A92: 2026-01-07 | B92: 15687 | C92: 8 | D92: =IFERROR(VLOOKUP(C92,التكويد!$A$2:$R$1501,5,0),"") -> ابيض كروشيه 3.5 سم | E92: 9.22 | AA92: 455
A93: 2026-01-07 | B93: 15687 | C93: 30 | D93: =IFERROR(VLOOKUP(C93,التكويد!$A$2:$R$1501,5,0),"") -> اسود كروشيه 2.5 سم | E93: 48 | AA93: 460
A94: 2026-01-07 | B94: 15687 | C94: 25 | D94: =IFERROR(VLOOKUP(C94,التكويد!$A$2:$R$1501,5,0),"") -> اسود كروشيه 5سم | E94: 46.1 | AA94: 465
A95: 2026-01-07 | B95: 15688 | C95: 21 | D95: =IFERROR(VLOOKUP(C95,التكويد!$A$2:$R$1501,5,0),"") -> اسود كروشيه 6.4 سم | E95: 52.46 | AA95: 470
A96: 2026-01-07 | B96: 15688 | C96: 31 | D96: =IFERROR(VLOOKUP(C96,التكويد!$A$2:$R$1501,5,0),"") -> اسود كروشيه 5.8 سم | E96: 42.34 | AA96: 475
A97: 2026-01-07 | B97: 15688 | C97: 7 | D97: =IFERROR(VLOOKUP(C97,التكويد!$A$2:$R$1501,5,0),"") -> ابيض كروشيه 4سم | E97: 9.22 | AA97: 480
A98: 2026-01-10 | B98: 15689 | C98: 41 | D98: =IFERROR(VLOOKUP(C98,التكويد!$A$2:$R$1501,5,0),"") -> الوان جاكار 3 سم | E98: 1210.25 | AA98: 485
A99: 2026-01-10 | B99: 15690 | C99: 41 | D99: =IFERROR(VLOOKUP(C99,التكويد!$A$2:$R$1501,5,0),"") -> الوان جاكار 3 سم | E99: 558 | AA99: 490
A100: 2026-01-10 | B100: 15691 | C100: 19 | D100: =IFERROR(VLOOKUP(C100,التكويد!$A$2:$R$1501,5,0),"") -> اسود كروشيه 4.5 سم | E100: 162 | AA100: 495
A101: 2026-01-10 | B101: 15691 | C101: 43 | D101: =IFERROR(VLOOKUP(C101,التكويد!$A$2:$R$1501,5,0),"") -> اسود كروشيه 4سم | E101: 368.8 | AA101: 500
A102: 2026-01-10 | B102: 15691 | C102: 7 | D102: =IFERROR(VLOOKUP(C102,التكويد!$A$2:$R$1501,5,0),"") -> ابيض كروشيه 4سم | E102: 73.76 | AA102: 505
A103: 2026-01-10 | B103: 15691 | C103: 25 | D103: =IFERROR(VLOOKUP(C103,التكويد!$A$2:$R$1501,5,0),"") -> اسود كروشيه 5سم | E103: 101.42 | AA103: 510
A104: 2026-01-10 | B104: 15691 | C104: 28 | D104: =IFERROR(VLOOKUP(C104,التكويد!$A$2:$R$1501,5,0),"") -> اسود كروشيه 3 سم | E104: 248.94 | AA104: 515
A105: 2026-01-10 | B105: 15691 | C105: 8 | D105: =IFERROR(VLOOKUP(C105,التكويد!$A$2:$R$1501,5,0),"") -> ابيض كروشيه 3.5 سم | E105: 101.42 | AA105: 520
A106: 2026-01-10 | B106: 15691 | C106: 7 | D106: =IFERROR(VLOOKUP(C106,التكويد!$A$2:$R$1501,5,0),"") -> ابيض كروشيه 4سم | E106: 110.64 | AA106: 525
A107: 2026-01-10 | B107: 15692 | C107: 30 | D107: =IFERROR(VLOOKUP(C107,التكويد!$A$2:$R$1501,5,0),"") -> اسود كروشيه 2.5 سم | E107: 132.96 | AA107: 530
A108: 2026-01-10 | B108: 15693 | C108: 41 | D108: =IFERROR(VLOOKUP(C108,التكويد!$A$2:$R$1501,5,0),"") -> الوان جاكار 3 سم | E108: 333.95 | AA108: 535
A109: 2026-01-10 | B109: 15694 | C109: 37 | D109: =IFERROR(VLOOKUP(C109,التكويد!$A$2:$R$1501,5,0),"") -> ألوان ويفين مقاسات مختلفة | E109: 80.37 | AA109: 540
A110: 2026-01-10 | B110: 15695 | C110: 37 | D110: =IFERROR(VLOOKUP(C110,التكويد!$A$2:$R$1501,5,0),"") -> ألوان ويفين مقاسات مختلفة | E110: 248.88 | AA110: 545
A111: 2026-01-10 | B111: 15696 | C111: 37 | D111: =IFERROR(VLOOKUP(C111,التكويد!$A$2:$R$1501,5,0),"") -> ألوان ويفين مقاسات مختلفة | E111: 112.47 | AA111: 550
A112: 2026-01-10 | B112: 15697 | C112: 38 | D112: =IFERROR(VLOOKUP(C112,التكويد!$A$2:$R$1501,5,0),"") -> الوان كردون قطن مقاسات مختلفة | E112: 71.05 | AA112: 555
A113: 2026-01-10 | B113: 15698 | C113: 39 | D113: =IFERROR(VLOOKUP(C113,التكويد!$A$2:$R$1501,5,0),"") -> الوان كردون بوليبستير مقاسات مختلفة | E113: 317.25 | AA113: 560
A114: 2026-01-10 | B114: 15699 | C114: 39 | D114: =IFERROR(VLOOKUP(C114,التكويد!$A$2:$R$1501,5,0),"") -> الوان كردون بوليبستير مقاسات مختلفة | E114: 9.82 | AA114: 565
A115: 2026-01-10 | B115: 15700 | C115: 38 | D115: =IFERROR(VLOOKUP(C115,التكويد!$A$2:$R$1501,5,0),"") -> الوان كردون قطن مقاسات مختلفة | E115: 27.45 | AA115: 570
A116: 2026-01-11 | B116: 15702 | C116: 37 | D116: =IFERROR(VLOOKUP(C116,التكويد!$A$2:$R$1501,5,0),"") -> ألوان ويفين مقاسات مختلفة | E116: 44.92 | AA116: 575
A117: 2026-01-11 | B117: 15703 | C117: 41 | D117: =IFERROR(VLOOKUP(C117,التكويد!$A$2:$R$1501,5,0),"") -> الوان جاكار 3 سم | E117: 449.51 | AA117: 580
A118: 2026-01-11 | B118: 15704 | C118: 41 | D118: =IFERROR(VLOOKUP(C118,التكويد!$A$2:$R$1501,5,0),"") -> الوان جاكار 3 سم | E118: 522.58 | AA118: 585
A119: 2026-01-11 | B119: 15705 | C119: 43 | D119: =IFERROR(VLOOKUP(C119,التكويد!$A$2:$R$1501,5,0),"") -> اسود كروشيه 4سم | E119: 138.3 | AA119: 590
A120: 2026-01-11 | B120: 15705 | C120: 7 | D120: =IFERROR(VLOOKUP(C120,التكويد!$A$2:$R$1501,5,0),"") -> ابيض كروشيه 4سم | E120: 184.4 | AA120: 595
A121: 2026-01-11 | B121: 15705 | C121: 30 | D121: =IFERROR(VLOOKUP(C121,التكويد!$A$2:$R$1501,5,0),"") -> اسود كروشيه 2.5 سم | E121: 162 | AA121: 600
A122: 2026-01-11 | B122: 15705 | C122: 7 | D122: =IFERROR(VLOOKUP(C122,التكويد!$A$2:$R$1501,5,0),"") -> ابيض كروشيه 4سم | E122: 147.52 | AA122: 605
A123: 2026-01-11 | B123: 15705 | C123: 25 | D123: =IFERROR(VLOOKUP(C123,التكويد!$A$2:$R$1501,5,0),"") -> اسود كروشيه 5سم | E123: 230.5 | AA123: 610
A124: 2026-01-11 | B124: 15705 | C124: 28 | D124: =IFERROR(VLOOKUP(C124,التكويد!$A$2:$R$1501,5,0),"") -> اسود كروشيه 3 سم | E124: 64.54 | AA124: 615
A125: 2026-01-11 | B125: 15705 | C125: 19 | D125: =IFERROR(VLOOKUP(C125,التكويد!$A$2:$R$1501,5,0),"") -> اسود كروشيه 4.5 سم | E125: 66 | AA125: 620
A126: 2026-01-11 | B126: 15705 | C126: 8 | D126: =IFERROR(VLOOKUP(C126,التكويد!$A$2:$R$1501,5,0),"") -> ابيض كروشيه 3.5 سم | E126: 110.64 | AA126: 625
A127: 2026-01-11 | B127: 15705 | C127: 8 | D127: =IFERROR(VLOOKUP(C127,التكويد!$A$2:$R$1501,5,0),"") -> ابيض كروشيه 3.5 سم | E127: 9.22 | AA127: 630
A128: 2026-01-11 | B128: 15708 | C128: 38 | D128: =IFERROR(VLOOKUP(C128,التكويد!$A$2:$R$1501,5,0),"") -> الوان كردون قطن مقاسات مختلفة | E128: 163.21 | AA128: 635
A129: 2026-01-11 | B129: 15709 | C129: 39 | D129: =IFERROR(VLOOKUP(C129,التكويد!$A$2:$R$1501,5,0),"") -> الوان كردون بوليبستير مقاسات مختلفة | E129: 202.16 | AA129: 640
A130: 2026-01-11 | B130: 15710 | C130: 37 | D130: =IFERROR(VLOOKUP(C130,التكويد!$A$2:$R$1501,5,0),"") -> ألوان ويفين مقاسات مختلفة | E130: 119.8 | F130: =IFERROR(SUM(E130/G130),"") ->  | AA130: 645
A131: 2026-01-11 | B131: 15711 | C131: 38 | D131: =IFERROR(VLOOKUP(C131,التكويد!$A$2:$R$1501,5,0),"") -> الوان كردون قطن مقاسات مختلفة | E131: 47.85 | AA131: 650
A132: 2026-01-12 | B132: 15714 | C132: 19 | D132: =IFERROR(VLOOKUP(C132,التكويد!$A$2:$R$1501,5,0),"") -> اسود كروشيه 4.5 سم | E132: 90 | AA132: 655
A133: 2026-01-12 | B133: 15714 | C133: 30 | D133: =IFERROR(VLOOKUP(C133,التكويد!$A$2:$R$1501,5,0),"") -> اسود كروشيه 2.5 سم | E133: 12 | AA133: 660
A134: 2026-01-12 | B134: 15714 | C134: 7 | D134: =IFERROR(VLOOKUP(C134,التكويد!$A$2:$R$1501,5,0),"") -> ابيض كروشيه 4سم | E134: 55.32 | AA134: 665
A135: 2026-01-12 | B135: 15714 | C135: 25 | D135: =IFERROR(VLOOKUP(C135,التكويد!$A$2:$R$1501,5,0),"") -> اسود كروشيه 5سم | E135: 82.98 | AA135: 670
A136: 2026-01-12 | B136: 15714 | C136: 8 | D136: =IFERROR(VLOOKUP(C136,التكويد!$A$2:$R$1501,5,0),"") -> ابيض كروشيه 3.5 سم | E136: 138.3 | AA136: 675
A137: 2026-01-12 | B137: 15714 | C137: 28 | D137: =IFERROR(VLOOKUP(C137,التكويد!$A$2:$R$1501,5,0),"") -> اسود كروشيه 3 سم | E137: 9.22 | AA137: 680
A138: 2026-01-12 | B138: 15714 | C138: 43 | D138: =IFERROR(VLOOKUP(C138,التكويد!$A$2:$R$1501,5,0),"") -> اسود كروشيه 4سم | E138: 119.86 | AA138: 685
A139: 2026-01-12 | B139: 15714 | C139: 7 | D139: =IFERROR(VLOOKUP(C139,التكويد!$A$2:$R$1501,5,0),"") -> ابيض كروشيه 4سم | E139: 110.64 | AA139: 690
A140: 2026-01-12 | B140: 15715 | C140: 18 | D140: =IFERROR(VLOOKUP(C140,التكويد!$A$2:$R$1501,5,0),"") -> اسود كروشيه 3.5 سم | E140: 18.44 | AA140: 695
A141: 2026-01-12 | B141: 15715 | C141: 11 | D141: =IFERROR(VLOOKUP(C141,التكويد!$A$2:$R$1501,5,0),"") -> ابيض كروشيه 2سم | E141: 53.48 | AA141: 700
A142: 2026-01-12 | B142: 15715 | C142: 21 | D142: =IFERROR(VLOOKUP(C142,التكويد!$A$2:$R$1501,5,0),"") -> اسود كروشيه 6.4 سم | E142: 9.22 | AA142: 705
A143: 2026-01-12 | B143: 15715 | C143: 31 | D143: =IFERROR(VLOOKUP(C143,التكويد!$A$2:$R$1501,5,0),"") -> اسود كروشيه 5.8 سم | E143: 55.32 | AA143: 710
A144: 2026-01-12 | B144: 15716 | C144: 41 | D144: =IFERROR(VLOOKUP(C144,التكويد!$A$2:$R$1501,5,0),"") -> الوان جاكار 3 سم | E144: 471
A145: 2026-01-12 | B145: 15717 | C145: 41 | D145: =IFERROR(VLOOKUP(C145,التكويد!$A$2:$R$1501,5,0),"") -> الوان جاكار 3 سم | E145: 142.7
A146: 2026-01-12 | B146: 15718 | C146: 41 | D146: =IFERROR(VLOOKUP(C146,التكويد!$A$2:$R$1501,5,0),"") -> الوان جاكار 3 سم | E146: 131.24
A147: 2026-01-12 | B147: 15719 | C147: 38 | D147: =IFERROR(VLOOKUP(C147,التكويد!$A$2:$R$1501,5,0),"") -> الوان كردون قطن مقاسات مختلفة | E147: 89.53
A148: 2026-01-12 | B148: 15720 | C148: 37 | D148: =IFERROR(VLOOKUP(C148,التكويد!$A$2:$R$1501,5,0),"") -> ألوان ويفين مقاسات مختلفة | E148: 89.62
A149: 2026-01-12 | B149: 15721 | C149: 37 | D149: =IFERROR(VLOOKUP(C149,التكويد!$A$2:$R$1501,5,0),"") -> ألوان ويفين مقاسات مختلفة | E149: 106.41
A150: 2026-01-12 | B150: 15722 | C150: 38 | D150: =IFERROR(VLOOKUP(C150,التكويد!$A$2:$R$1501,5,0),"") -> الوان كردون قطن مقاسات مختلفة | E150: 27.44
A151: 2026-01-12 | B151: 15722 | C151: 39 | D151: =IFERROR(VLOOKUP(C151,التكويد!$A$2:$R$1501,5,0),"") -> الوان كردون بوليبستير مقاسات مختلفة | E151: 61.85
A152: 2026-01-12 | B152: 15723 | C152: 39 | D152: =IFERROR(VLOOKUP(C152,التكويد!$A$2:$R$1501,5,0),"") -> الوان كردون بوليبستير مقاسات مختلفة | E152: 67.98
A153: 2026-01-13 | B153: 15724 | C153: 41 | D153: =IFERROR(VLOOKUP(C153,التكويد!$A$2:$R$1501,5,0),"") -> الوان جاكار 3 سم | E153: 448.85
A154: 2026-01-13 | B154: 15725 | C154: 41 | D154: =IFERROR(VLOOKUP(C154,التكويد!$A$2:$R$1501,5,0),"") -> الوان جاكار 3 سم | E154: 343.25
A155: 2026-01-13 | B155: 15726 | C155: 25 | D155: =IFERROR(VLOOKUP(C155,التكويد!$A$2:$R$1501,5,0),"") -> اسود كروشيه 5سم | E155: 27.66
A156: 2026-01-13 | B156: 15726 | C156: 43 | D156: =IFERROR(VLOOKUP(C156,التكويد!$A$2:$R$1501,5,0),"") -> اسود كروشيه 4سم | E156: 36.88
A157: 2026-01-13 | B157: 15726 | C157: 7 | D157: =IFERROR(VLOOKUP(C157,التكويد!$A$2:$R$1501,5,0),"") -> ابيض كروشيه 4سم | E157: 101.42
A158: 2026-01-13 | B158: 15726 | C158: 19 | D158: =IFERROR(VLOOKUP(C158,التكويد!$A$2:$R$1501,5,0),"") -> اسود كروشيه 4.5 سم | E158: 54
A159: 2026-01-13 | B159: 15726 | C159: 18 | D159: =IFERROR(VLOOKUP(C159,التكويد!$A$2:$R$1501,5,0),"") -> اسود كروشيه 3.5 سم | E159: 129.08
A160: 2026-01-13 | B160: 15726 | C160: 11 | D160: =IFERROR(VLOOKUP(C160,التكويد!$A$2:$R$1501,5,0),"") -> ابيض كروشيه 2سم | E160: 38.2
A161: 2026-01-13 | B161: 15727 | C161: 37 | D161: =IFERROR(VLOOKUP(C161,التكويد!$A$2:$R$1501,5,0),"") -> ألوان ويفين مقاسات مختلفة | E161: 31.81
A162: 2026-01-13 | B162: 15728 | C162: 37 | D162: =IFERROR(VLOOKUP(C162,التكويد!$A$2:$R$1501,5,0),"") -> ألوان ويفين مقاسات مختلفة | E162: 35.29
A163: 2026-01-13 | B163: 15729 | C163: 44 | D163: =IFERROR(VLOOKUP(C163,التكويد!$A$2:$R$1501,5,0),"") -> ألوان كروشيه مقاسات مختلفة | E163: 45.44
A164: 2026-01-13 | B164: 15730 | C164: 38 | D164: =IFERROR(VLOOKUP(C164,التكويد!$A$2:$R$1501,5,0),"") -> الوان كردون قطن مقاسات مختلفة | E164: 156.95
A165: 2026-01-13 | B165: 15730 | C165: 39 | D165: =IFERROR(VLOOKUP(C165,التكويد!$A$2:$R$1501,5,0),"") -> الوان كردون بوليبستير مقاسات مختلفة | E165: 131.01
A166: 2026-01-13 | B166: 15732 | C166: 37 | D166: =IFERROR(VLOOKUP(C166,التكويد!$A$2:$R$1501,5,0),"") -> ألوان ويفين مقاسات مختلفة | E166: 12.46
A167: 2026-01-13 | B167: 15733 | C167: 38 | D167: =IFERROR(VLOOKUP(C167,التكويد!$A$2:$R$1501,5,0),"") -> الوان كردون قطن مقاسات مختلفة | E167: 36.01
A168: 2026-01-13 | B168: 15734 | C168: 39 | D168: =IFERROR(VLOOKUP(C168,التكويد!$A$2:$R$1501,5,0),"") -> الوان كردون بوليبستير مقاسات مختلفة | E168: 58.3
A169: 2026-01-13 | B169: 15734 | C169: 38 | D169: =IFERROR(VLOOKUP(C169,التكويد!$A$2:$R$1501,5,0),"") -> الوان كردون قطن مقاسات مختلفة | E169: 21.82
A170: 2026-01-14 | B170: 15737 | C170: 41 | D170: =IFERROR(VLOOKUP(C170,التكويد!$A$2:$R$1501,5,0),"") -> الوان جاكار 3 سم | E170: 389.12
A171: 2026-01-14 | B171: 15738 | C171: 41 | D171: =IFERROR(VLOOKUP(C171,التكويد!$A$2:$R$1501,5,0),"") -> الوان جاكار 3 سم | E171: 326.96
A172: 2026-01-14 | B172: 15739 | C172: 41 | D172: =IFERROR(VLOOKUP(C172,التكويد!$A$2:$R$1501,5,0),"") -> الوان جاكار 3 سم | E172: 370.85
A173: 2026-01-14 | B173: 15740 | C173: 7 | D173: =IFERROR(VLOOKUP(C173,التكويد!$A$2:$R$1501,5,0),"") -> ابيض كروشيه 4سم | E173: 101.42
A174: 2026-01-14 | B174: 15740 | C174: 43 | D174: =IFERROR(VLOOKUP(C174,التكويد!$A$2:$R$1501,5,0),"") -> اسود كروشيه 4سم | E174: 46.1
A175: 2026-01-14 | B175: 15740 | C175: 18 | D175: =IFERROR(VLOOKUP(C175,التكويد!$A$2:$R$1501,5,0),"") -> اسود كروشيه 3.5 سم | E175: 27.66
A176: 2026-01-14 | B176: 15740 | C176: 19 | D176: =IFERROR(VLOOKUP(C176,التكويد!$A$2:$R$1501,5,0),"") -> اسود كروشيه 4.5 سم | E176: 78
A177: 2026-01-14 | B177: 15740 | C177: 11 | D177: =IFERROR(VLOOKUP(C177,التكويد!$A$2:$R$1501,5,0),"") -> ابيض كروشيه 2سم | E177: 45.84
A178: 2026-01-14 | B178: 15740 | C178: 19 | D178: =IFERROR(VLOOKUP(C178,التكويد!$A$2:$R$1501,5,0),"") -> اسود كروشيه 4.5 سم | E178: 92.2
A179: 2026-01-14 | B179: 15740 | C179: 1 | D179: =IFERROR(VLOOKUP(C179,التكويد!$A$2:$R$1501,5,0),"") -> ابيض كروشيه 5سم | E179: 46.1
A180: 2026-01-14 | B180: 15740 | C180: 28 | D180: =IFERROR(VLOOKUP(C180,التكويد!$A$2:$R$1501,5,0),"") -> اسود كروشيه 3 سم | E180: 9.22
A181: 2026-01-14 | B181: 15741 | C181: 9 | D181: =IFERROR(VLOOKUP(C181,التكويد!$A$2:$R$1501,5,0),"") -> ابيض كروشيه 3 سم | E181: 110.64
A182: 2026-01-14 | B182: 15741 | C182: 8 | D182: =IFERROR(VLOOKUP(C182,التكويد!$A$2:$R$1501,5,0),"") -> ابيض كروشيه 3.5 سم | E182: 73.76
A183: 2026-01-14 | B183: 15742 | C183: 37 | D183: =IFERROR(VLOOKUP(C183,التكويد!$A$2:$R$1501,5,0),"") -> ألوان ويفين مقاسات مختلفة | E183: 36.12
A184: 2026-01-14 | B184: 15743 | C184: 44 | D184: =IFERROR(VLOOKUP(C184,التكويد!$A$2:$R$1501,5,0),"") -> ألوان كروشيه مقاسات مختلفة | E184: 14.39
A185: 2026-01-14 | B185: 15744 | C185: 38 | D185: =IFERROR(VLOOKUP(C185,التكويد!$A$2:$R$1501,5,0),"") -> الوان كردون قطن مقاسات مختلفة | E185: 267
A186: 2026-01-14 | B186: 15745 | C186: 37 | D186: =IFERROR(VLOOKUP(C186,التكويد!$A$2:$R$1501,5,0),"") -> ألوان ويفين مقاسات مختلفة | E186: 9.17
A187: 2026-01-14 | B187: 15746 | C187: 38 | D187: =IFERROR(VLOOKUP(C187,التكويد!$A$2:$R$1501,5,0),"") -> الوان كردون قطن مقاسات مختلفة | E187: 13.62
A188: 2026-01-14 | B188: 15746 | C188: 39 | D188: =IFERROR(VLOOKUP(C188,التكويد!$A$2:$R$1501,5,0),"") -> الوان كردون بوليبستير مقاسات مختلفة | E188: 61.6
A189: 2026-01-15 | B189: 15747 | C189: 36 | D189: =IFERROR(VLOOKUP(C189,التكويد!$A$2:$R$1501,5,0),"") -> الوان ويفن خام | E189: 1470
A190: 2026-01-15 | B190: 15749 | C190: 37 | D190: =IFERROR(VLOOKUP(C190,التكويد!$A$2:$R$1501,5,0),"") -> ألوان ويفين مقاسات مختلفة | E190: 63.44
A191: 2026-01-15 | B191: 15750 | C191: 38 | D191: =IFERROR(VLOOKUP(C191,التكويد!$A$2:$R$1501,5,0),"") -> الوان كردون قطن مقاسات مختلفة | E191: 143.4
A192: 2026-01-15 | B192: 15751 | C192: 37 | D192: =IFERROR(VLOOKUP(C192,التكويد!$A$2:$R$1501,5,0),"") -> ألوان ويفين مقاسات مختلفة | E192: 11.16
A193: 2026-01-15 | B193: 15752 | C193: 9 | D193: =IFERROR(VLOOKUP(C193,التكويد!$A$2:$R$1501,5,0),"") -> ابيض كروشيه 3 سم | E193: 175.8
A194: 2026-01-15 | B194: 15752 | C194: 19 | D194: =IFERROR(VLOOKUP(C194,التكويد!$A$2:$R$1501,5,0),"") -> اسود كروشيه 4.5 سم | E194: 120 | F194: =IFERROR(SUM(E194/G194),"") -> 
A195: 2026-01-15 | B195: 15752 | C195: 19 | D195: =IFERROR(VLOOKUP(C195,التكويد!$A$2:$R$1501,5,0),"") -> اسود كروشيه 4.5 سم | E195: 156.74
A196: 2026-01-15 | B196: 15752 | C196: 8 | D196: =IFERROR(VLOOKUP(C196,التكويد!$A$2:$R$1501,5,0),"") -> ابيض كروشيه 3.5 سم | E196: 27.66
A197: 2026-01-15 | B197: 15752 | C197: 1 | D197: =IFERROR(VLOOKUP(C197,التكويد!$A$2:$R$1501,5,0),"") -> ابيض كروشيه 5سم | E197: 45.54
A198: 2026-01-15 | B198: 15752 | C198: 7 | D198: =IFERROR(VLOOKUP(C198,التكويد!$A$2:$R$1501,5,0),"") -> ابيض كروشيه 4سم | E198: 55.32
A199: 2026-01-15 | B199: 15752 | C199: 8 | D199: =IFERROR(VLOOKUP(C199,التكويد!$A$2:$R$1501,5,0),"") -> ابيض كروشيه 3.5 سم | E199: 46.1
A200: 2026-01-15 | B200: 15752 | C200: 18 | D200: =IFERROR(VLOOKUP(C200,التكويد!$A$2:$R$1501,5,0),"") -> اسود كروشيه 3.5 سم | E200: 138.3
... 5797 more rows

Sheet المنصرف
A1: التاريخ | B1: أذن الصرف | C1: الكود | D1: اللون | E1: الكمية بالكيلو | F1: وزن المتر بالكيلو | G1: الكمية بالامتار | H1: الكمية بالقطع | I1: العميل | J1: b
D2: =IFERROR(VLOOKUP(C2,التكويد!$A$2:$R$1501,5,0),"") ->  | F2: =IFERROR(SUM(E2/G2),"") -> 
D3: =IFERROR(VLOOKUP(C3,التكويد!$A$2:$R$1501,5,0),"") -> 
D4: =IFERROR(VLOOKUP(C4,التكويد!$A$2:$R$1501,5,0),"") -> 
D5: =IFERROR(VLOOKUP(C5,التكويد!$A$2:$R$1501,5,0),"") -> 
D6: =IFERROR(VLOOKUP(C6,التكويد!$A$2:$R$1501,5,0),"") -> 
D7: =IFERROR(VLOOKUP(C7,التكويد!$A$2:$R$1501,5,0),"") -> 
D8: =IFERROR(VLOOKUP(C8,التكويد!$A$2:$R$1501,5,0),"") -> 
D9: =IFERROR(VLOOKUP(C9,التكويد!$A$2:$R$1501,5,0),"") -> 
D10: =IFERROR(VLOOKUP(C10,التكويد!$A$2:$R$1501,5,0),"") -> 
D11: =IFERROR(VLOOKUP(C11,التكويد!$A$2:$R$1501,5,0),"") -> 
D12: =IFERROR(VLOOKUP(C12,التكويد!$A$2:$R$1501,5,0),"") -> 
D13: =IFERROR(VLOOKUP(C13,التكويد!$A$2:$R$1501,5,0),"") -> 
D14: =IFERROR(VLOOKUP(C14,التكويد!$A$2:$R$1501,5,0),"") -> 
D15: =IFERROR(VLOOKUP(C15,التكويد!$A$2:$R$1501,5,0),"") -> 
D16: =IFERROR(VLOOKUP(C16,التكويد!$A$2:$R$1501,5,0),"") -> 
D17: =IFERROR(VLOOKUP(C17,التكويد!$A$2:$R$1501,5,0),"") -> 
D18: =IFERROR(VLOOKUP(C18,التكويد!$A$2:$R$1501,5,0),"") -> 
D19: =IFERROR(VLOOKUP(C19,التكويد!$A$2:$R$1501,5,0),"") -> 
D20: =IFERROR(VLOOKUP(C20,التكويد!$A$2:$R$1501,5,0),"") -> 
D21: =IFERROR(VLOOKUP(C21,التكويد!$A$2:$R$1501,5,0),"") -> 
D22: =IFERROR(VLOOKUP(C22,التكويد!$A$2:$R$1501,5,0),"") -> 
D23: =IFERROR(VLOOKUP(C23,التكويد!$A$2:$R$1501,5,0),"") -> 
D24: =IFERROR(VLOOKUP(C24,التكويد!$A$2:$R$1501,5,0),"") -> 
D25: =IFERROR(VLOOKUP(C25,التكويد!$A$2:$R$1501,5,0),"") -> 
D26: =IFERROR(VLOOKUP(C26,التكويد!$A$2:$R$1501,5,0),"") -> 
D27: =IFERROR(VLOOKUP(C27,التكويد!$A$2:$R$1501,5,0),"") -> 
D28: =IFERROR(VLOOKUP(C28,التكويد!$A$2:$R$1501,5,0),"") -> 
D29: =IFERROR(VLOOKUP(C29,التكويد!$A$2:$R$1501,5,0),"") -> 
D30: =IFERROR(VLOOKUP(C30,التكويد!$A$2:$R$1501,5,0),"") -> 
D31: =IFERROR(VLOOKUP(C31,التكويد!$A$2:$R$1501,5,0),"") -> 
D32: =IFERROR(VLOOKUP(C32,التكويد!$A$2:$R$1501,5,0),"") -> 
D33: =IFERROR(VLOOKUP(C33,التكويد!$A$2:$R$1501,5,0),"") -> 
D34: =IFERROR(VLOOKUP(C34,التكويد!$A$2:$R$1501,5,0),"") -> 
D35: =IFERROR(VLOOKUP(C35,التكويد!$A$2:$R$1501,5,0),"") -> 
D36: =IFERROR(VLOOKUP(C36,التكويد!$A$2:$R$1501,5,0),"") -> 
D37: =IFERROR(VLOOKUP(C37,التكويد!$A$2:$R$1501,5,0),"") -> 
D38: =IFERROR(VLOOKUP(C38,التكويد!$A$2:$R$1501,5,0),"") -> 
D39: =IFERROR(VLOOKUP(C39,التكويد!$A$2:$R$1501,5,0),"") -> 
D40: =IFERROR(VLOOKUP(C40,التكويد!$A$2:$R$1501,5,0),"") -> 
D41: =IFERROR(VLOOKUP(C41,التكويد!$A$2:$R$1501,5,0),"") -> 
D42: =IFERROR(VLOOKUP(C42,التكويد!$A$2:$R$1501,5,0),"") -> 
D43: =IFERROR(VLOOKUP(C43,التكويد!$A$2:$R$1501,5,0),"") -> 
D44: =IFERROR(VLOOKUP(C44,التكويد!$A$2:$R$1501,5,0),"") -> 
D45: =IFERROR(VLOOKUP(C45,التكويد!$A$2:$R$1501,5,0),"") -> 
D46: =IFERROR(VLOOKUP(C46,التكويد!$A$2:$R$1501,5,0),"") -> 
D47: =IFERROR(VLOOKUP(C47,التكويد!$A$2:$R$1501,5,0),"") -> 
D48: =IFERROR(VLOOKUP(C48,التكويد!$A$2:$R$1501,5,0),"") -> 
D49: =IFERROR(VLOOKUP(C49,التكويد!$A$2:$R$1501,5,0),"") -> 
D50: =IFERROR(VLOOKUP(C50,التكويد!$A$2:$R$1501,5,0),"") -> 
D51: =IFERROR(VLOOKUP(C51,التكويد!$A$2:$R$1501,5,0),"") -> 
D52: =IFERROR(VLOOKUP(C52,التكويد!$A$2:$R$1501,5,0),"") -> 
D53: =IFERROR(VLOOKUP(C53,التكويد!$A$2:$R$1501,5,0),"") -> 
D54: =IFERROR(VLOOKUP(C54,التكويد!$A$2:$R$1501,5,0),"") -> 
D55: =IFERROR(VLOOKUP(C55,التكويد!$A$2:$R$1501,5,0),"") -> 
D56: =IFERROR(VLOOKUP(C56,التكويد!$A$2:$R$1501,5,0),"") -> 
D57: =IFERROR(VLOOKUP(C57,التكويد!$A$2:$R$1501,5,0),"") -> 
D58: =IFERROR(VLOOKUP(C58,التكويد!$A$2:$R$1501,5,0),"") -> 
D59: =IFERROR(VLOOKUP(C59,التكويد!$A$2:$R$1501,5,0),"") -> 
D60: =IFERROR(VLOOKUP(C60,التكويد!$A$2:$R$1501,5,0),"") -> 
D61: =IFERROR(VLOOKUP(C61,التكويد!$A$2:$R$1501,5,0),"") -> 
D62: =IFERROR(VLOOKUP(C62,التكويد!$A$2:$R$1501,5,0),"") -> 
D63: =IFERROR(VLOOKUP(C63,التكويد!$A$2:$R$1501,5,0),"") -> 
D64: =IFERROR(VLOOKUP(C64,التكويد!$A$2:$R$1501,5,0),"") -> 
D65: =IFERROR(VLOOKUP(C65,التكويد!$A$2:$R$1501,5,0),"") -> 
D66: =IFERROR(VLOOKUP(C66,التكويد!$A$2:$R$1501,5,0),"") ->  | F66: =IFERROR(SUM(E66/G66),"") -> 
D67: =IFERROR(VLOOKUP(C67,التكويد!$A$2:$R$1501,5,0),"") -> 
D68: =IFERROR(VLOOKUP(C68,التكويد!$A$2:$R$1501,5,0),"") -> 
D69: =IFERROR(VLOOKUP(C69,التكويد!$A$2:$R$1501,5,0),"") -> 
D70: =IFERROR(VLOOKUP(C70,التكويد!$A$2:$R$1501,5,0),"") -> 
D71: =IFERROR(VLOOKUP(C71,التكويد!$A$2:$R$1501,5,0),"") -> 
D72: =IFERROR(VLOOKUP(C72,التكويد!$A$2:$R$1501,5,0),"") -> 
D73: =IFERROR(VLOOKUP(C73,التكويد!$A$2:$R$1501,5,0),"") -> 
D74: =IFERROR(VLOOKUP(C74,التكويد!$A$2:$R$1501,5,0),"") -> 
D75: =IFERROR(VLOOKUP(C75,التكويد!$A$2:$R$1501,5,0),"") -> 
D76: =IFERROR(VLOOKUP(C76,التكويد!$A$2:$R$1501,5,0),"") -> 
D77: =IFERROR(VLOOKUP(C77,التكويد!$A$2:$R$1501,5,0),"") -> 
D78: =IFERROR(VLOOKUP(C78,التكويد!$A$2:$R$1501,5,0),"") -> 
D79: =IFERROR(VLOOKUP(C79,التكويد!$A$2:$R$1501,5,0),"") -> 
D80: =IFERROR(VLOOKUP(C80,التكويد!$A$2:$R$1501,5,0),"") -> 
D81: =IFERROR(VLOOKUP(C81,التكويد!$A$2:$R$1501,5,0),"") -> 
D82: =IFERROR(VLOOKUP(C82,التكويد!$A$2:$R$1501,5,0),"") -> 
D83: =IFERROR(VLOOKUP(C83,التكويد!$A$2:$R$1501,5,0),"") -> 
D84: =IFERROR(VLOOKUP(C84,التكويد!$A$2:$R$1501,5,0),"") -> 
D85: =IFERROR(VLOOKUP(C85,التكويد!$A$2:$R$1501,5,0),"") -> 
D86: =IFERROR(VLOOKUP(C86,التكويد!$A$2:$R$1501,5,0),"") -> 
D87: =IFERROR(VLOOKUP(C87,التكويد!$A$2:$R$1501,5,0),"") -> 
D88: =IFERROR(VLOOKUP(C88,التكويد!$A$2:$R$1501,5,0),"") -> 
D89: =IFERROR(VLOOKUP(C89,التكويد!$A$2:$R$1501,5,0),"") -> 
D90: =IFERROR(VLOOKUP(C90,التكويد!$A$2:$R$1501,5,0),"") -> 
D91: =IFERROR(VLOOKUP(C91,التكويد!$A$2:$R$1501,5,0),"") -> 
D92: =IFERROR(VLOOKUP(C92,التكويد!$A$2:$R$1501,5,0),"") -> 
D93: =IFERROR(VLOOKUP(C93,التكويد!$A$2:$R$1501,5,0),"") -> 
D94: =IFERROR(VLOOKUP(C94,التكويد!$A$2:$R$1501,5,0),"") -> 
D95: =IFERROR(VLOOKUP(C95,التكويد!$A$2:$R$1501,5,0),"") -> 
D96: =IFERROR(VLOOKUP(C96,التكويد!$A$2:$R$1501,5,0),"") -> 
D97: =IFERROR(VLOOKUP(C97,التكويد!$A$2:$R$1501,5,0),"") -> 
D98: =IFERROR(VLOOKUP(C98,التكويد!$A$2:$R$1501,5,0),"") -> 
D99: =IFERROR(VLOOKUP(C99,التكويد!$A$2:$R$1501,5,0),"") -> 
D100: =IFERROR(VLOOKUP(C100,التكويد!$A$2:$R$1501,5,0),"") -> 
D101: =IFERROR(VLOOKUP(C101,التكويد!$A$2:$R$1501,5,0),"") -> 
D102: =IFERROR(VLOOKUP(C102,التكويد!$A$2:$R$1501,5,0),"") -> 
D103: =IFERROR(VLOOKUP(C103,التكويد!$A$2:$R$1501,5,0),"") -> 
D104: =IFERROR(VLOOKUP(C104,التكويد!$A$2:$R$1501,5,0),"") -> 
D105: =IFERROR(VLOOKUP(C105,التكويد!$A$2:$R$1501,5,0),"") -> 
D106: =IFERROR(VLOOKUP(C106,التكويد!$A$2:$R$1501,5,0),"") -> 
D107: =IFERROR(VLOOKUP(C107,التكويد!$A$2:$R$1501,5,0),"") -> 
D108: =IFERROR(VLOOKUP(C108,التكويد!$A$2:$R$1501,5,0),"") -> 
D109: =IFERROR(VLOOKUP(C109,التكويد!$A$2:$R$1501,5,0),"") -> 
D110: =IFERROR(VLOOKUP(C110,التكويد!$A$2:$R$1501,5,0),"") -> 
D111: =IFERROR(VLOOKUP(C111,التكويد!$A$2:$R$1501,5,0),"") -> 
D112: =IFERROR(VLOOKUP(C112,التكويد!$A$2:$R$1501,5,0),"") -> 
D113: =IFERROR(VLOOKUP(C113,التكويد!$A$2:$R$1501,5,0),"") -> 
D114: =IFERROR(VLOOKUP(C114,التكويد!$A$2:$R$1501,5,0),"") -> 
D115: =IFERROR(VLOOKUP(C115,التكويد!$A$2:$R$1501,5,0),"") -> 
D116: =IFERROR(VLOOKUP(C116,التكويد!$A$2:$R$1501,5,0),"") -> 
D117: =IFERROR(VLOOKUP(C117,التكويد!$A$2:$R$1501,5,0),"") -> 
D118: =IFERROR(VLOOKUP(C118,التكويد!$A$2:$R$1501,5,0),"") -> 
D119: =IFERROR(VLOOKUP(C119,التكويد!$A$2:$R$1501,5,0),"") -> 
D120: =IFERROR(VLOOKUP(C120,التكويد!$A$2:$R$1501,5,0),"") -> 
D121: =IFERROR(VLOOKUP(C121,التكويد!$A$2:$R$1501,5,0),"") -> 
D122: =IFERROR(VLOOKUP(C122,التكويد!$A$2:$R$1501,5,0),"") -> 
D123: =IFERROR(VLOOKUP(C123,التكويد!$A$2:$R$1501,5,0),"") -> 
D124: =IFERROR(VLOOKUP(C124,التكويد!$A$2:$R$1501,5,0),"") -> 
D125: =IFERROR(VLOOKUP(C125,التكويد!$A$2:$R$1501,5,0),"") -> 
D126: =IFERROR(VLOOKUP(C126,التكويد!$A$2:$R$1501,5,0),"") -> 
D127: =IFERROR(VLOOKUP(C127,التكويد!$A$2:$R$1501,5,0),"") -> 
D128: =IFERROR(VLOOKUP(C128,التكويد!$A$2:$R$1501,5,0),"") -> 
D129: =IFERROR(VLOOKUP(C129,التكويد!$A$2:$R$1501,5,0),"") -> 
D130: =IFERROR(VLOOKUP(C130,التكويد!$A$2:$R$1501,5,0),"") ->  | F130: =IFERROR(SUM(E130/G130),"") -> 
D131: =IFERROR(VLOOKUP(C131,التكويد!$A$2:$R$1501,5,0),"") -> 
D132: =IFERROR(VLOOKUP(C132,التكويد!$A$2:$R$1501,5,0),"") -> 
D133: =IFERROR(VLOOKUP(C133,التكويد!$A$2:$R$1501,5,0),"") -> 
D134: =IFERROR(VLOOKUP(C134,التكويد!$A$2:$R$1501,5,0),"") -> 
D135: =IFERROR(VLOOKUP(C135,التكويد!$A$2:$R$1501,5,0),"") -> 
D136: =IFERROR(VLOOKUP(C136,التكويد!$A$2:$R$1501,5,0),"") -> 
D137: =IFERROR(VLOOKUP(C137,التكويد!$A$2:$R$1501,5,0),"") -> 
D138: =IFERROR(VLOOKUP(C138,التكويد!$A$2:$R$1501,5,0),"") -> 
D139: =IFERROR(VLOOKUP(C139,التكويد!$A$2:$R$1501,5,0),"") -> 
D140: =IFERROR(VLOOKUP(C140,التكويد!$A$2:$R$1501,5,0),"") -> 
D141: =IFERROR(VLOOKUP(C141,التكويد!$A$2:$R$1501,5,0),"") -> 
D142: =IFERROR(VLOOKUP(C142,التكويد!$A$2:$R$1501,5,0),"") -> 
D143: =IFERROR(VLOOKUP(C143,التكويد!$A$2:$R$1501,5,0),"") -> 
D144: =IFERROR(VLOOKUP(C144,التكويد!$A$2:$R$1501,5,0),"") -> 
D145: =IFERROR(VLOOKUP(C145,التكويد!$A$2:$R$1501,5,0),"") -> 
D146: =IFERROR(VLOOKUP(C146,التكويد!$A$2:$R$1501,5,0),"") -> 
D147: =IFERROR(VLOOKUP(C147,التكويد!$A$2:$R$1501,5,0),"") -> 
D148: =IFERROR(VLOOKUP(C148,التكويد!$A$2:$R$1501,5,0),"") -> 
D149: =IFERROR(VLOOKUP(C149,التكويد!$A$2:$R$1501,5,0),"") -> 
D150: =IFERROR(VLOOKUP(C150,التكويد!$A$2:$R$1501,5,0),"") -> 
D151: =IFERROR(VLOOKUP(C151,التكويد!$A$2:$R$1501,5,0),"") -> 
D152: =IFERROR(VLOOKUP(C152,التكويد!$A$2:$R$1501,5,0),"") -> 
D153: =IFERROR(VLOOKUP(C153,التكويد!$A$2:$R$1501,5,0),"") -> 
D154: =IFERROR(VLOOKUP(C154,التكويد!$A$2:$R$1501,5,0),"") -> 
D155: =IFERROR(VLOOKUP(C155,التكويد!$A$2:$R$1501,5,0),"") -> 
D156: =IFERROR(VLOOKUP(C156,التكويد!$A$2:$R$1501,5,0),"") -> 
D157: =IFERROR(VLOOKUP(C157,التكويد!$A$2:$R$1501,5,0),"") -> 
D158: =IFERROR(VLOOKUP(C158,التكويد!$A$2:$R$1501,5,0),"") -> 
D159: =IFERROR(VLOOKUP(C159,التكويد!$A$2:$R$1501,5,0),"") -> 
D160: =IFERROR(VLOOKUP(C160,التكويد!$A$2:$R$1501,5,0),"") -> 
D161: =IFERROR(VLOOKUP(C161,التكويد!$A$2:$R$1501,5,0),"") -> 
D162: =IFERROR(VLOOKUP(C162,التكويد!$A$2:$R$1501,5,0),"") -> 
D163: =IFERROR(VLOOKUP(C163,التكويد!$A$2:$R$1501,5,0),"") -> 
D164: =IFERROR(VLOOKUP(C164,التكويد!$A$2:$R$1501,5,0),"") -> 
D165: =IFERROR(VLOOKUP(C165,التكويد!$A$2:$R$1501,5,0),"") -> 
D166: =IFERROR(VLOOKUP(C166,التكويد!$A$2:$R$1501,5,0),"") -> 
D167: =IFERROR(VLOOKUP(C167,التكويد!$A$2:$R$1501,5,0),"") -> 
D168: =IFERROR(VLOOKUP(C168,التكويد!$A$2:$R$1501,5,0),"") -> 
D169: =IFERROR(VLOOKUP(C169,التكويد!$A$2:$R$1501,5,0),"") -> 
D170: =IFERROR(VLOOKUP(C170,التكويد!$A$2:$R$1501,5,0),"") -> 
D171: =IFERROR(VLOOKUP(C171,التكويد!$A$2:$R$1501,5,0),"") -> 
D172: =IFERROR(VLOOKUP(C172,التكويد!$A$2:$R$1501,5,0),"") -> 
D173: =IFERROR(VLOOKUP(C173,التكويد!$A$2:$R$1501,5,0),"") -> 
D174: =IFERROR(VLOOKUP(C174,التكويد!$A$2:$R$1501,5,0),"") -> 
D175: =IFERROR(VLOOKUP(C175,التكويد!$A$2:$R$1501,5,0),"") -> 
D176: =IFERROR(VLOOKUP(C176,التكويد!$A$2:$R$1501,5,0),"") -> 
D177: =IFERROR(VLOOKUP(C177,التكويد!$A$2:$R$1501,5,0),"") -> 
D178: =IFERROR(VLOOKUP(C178,التكويد!$A$2:$R$1501,5,0),"") -> 
D179: =IFERROR(VLOOKUP(C179,التكويد!$A$2:$R$1501,5,0),"") -> 
D180: =IFERROR(VLOOKUP(C180,التكويد!$A$2:$R$1501,5,0),"") -> 
D181: =IFERROR(VLOOKUP(C181,التكويد!$A$2:$R$1501,5,0),"") -> 
D182: =IFERROR(VLOOKUP(C182,التكويد!$A$2:$R$1501,5,0),"") -> 
D183: =IFERROR(VLOOKUP(C183,التكويد!$A$2:$R$1501,5,0),"") -> 
D184: =IFERROR(VLOOKUP(C184,التكويد!$A$2:$R$1501,5,0),"") -> 
D185: =IFERROR(VLOOKUP(C185,التكويد!$A$2:$R$1501,5,0),"") -> 
D186: =IFERROR(VLOOKUP(C186,التكويد!$A$2:$R$1501,5,0),"") -> 
D187: =IFERROR(VLOOKUP(C187,التكويد!$A$2:$R$1501,5,0),"") -> 
D188: =IFERROR(VLOOKUP(C188,التكويد!$A$2:$R$1501,5,0),"") -> 
D189: =IFERROR(VLOOKUP(C189,التكويد!$A$2:$R$1501,5,0),"") -> 
D190: =IFERROR(VLOOKUP(C190,التكويد!$A$2:$R$1501,5,0),"") -> 
D191: =IFERROR(VLOOKUP(C191,التكويد!$A$2:$R$1501,5,0),"") -> 
D192: =IFERROR(VLOOKUP(C192,التكويد!$A$2:$R$1501,5,0),"") -> 
D193: =IFERROR(VLOOKUP(C193,التكويد!$A$2:$R$1501,5,0),"") -> 
D194: =IFERROR(VLOOKUP(C194,التكويد!$A$2:$R$1501,5,0),"") ->  | F194: =IFERROR(SUM(E194/G194),"") -> 
D195: =IFERROR(VLOOKUP(C195,التكويد!$A$2:$R$1501,5,0),"") -> 
D196: =IFERROR(VLOOKUP(C196,التكويد!$A$2:$R$1501,5,0),"") -> 
D197: =IFERROR(VLOOKUP(C197,التكويد!$A$2:$R$1501,5,0),"") -> 
D198: =IFERROR(VLOOKUP(C198,التكويد!$A$2:$R$1501,5,0),"") -> 
D199: =IFERROR(VLOOKUP(C199,التكويد!$A$2:$R$1501,5,0),"") -> 
D200: =IFERROR(VLOOKUP(C200,التكويد!$A$2:$R$1501,5,0),"") -> 
... 5800 more rows

Sheet المرتجع
A1: التاريخ | B1: أذن المرتجع | C1: الكود | D1: اللون | E1: الكمية بالكيلو | F1: وزن المتر بالكيلو | G1: وزن المتر | H1: الكمية بالقطع | I1: العميل | J1: b
A2: 2026-01-03 | B2: 15641 | C2: 37 | D2: =IFERROR(VLOOKUP(C2,التكويد!$A$2:$R$1501,5,0),"") -> ألوان ويفين مقاسات مختلفة | E2: 136.75 | F2: =IFERROR(SUM(E2/G2),"") -> 
A3: 2026-01-04 | B3: 15653 | C3: 37 | D3: =IFERROR(VLOOKUP(C3,التكويد!$A$2:$R$1501,5,0),"") -> ألوان ويفين مقاسات مختلفة | E3: 30
A4: 2026-01-05 | B4: 15659 | C4: 37 | D4: =IFERROR(VLOOKUP(C4,التكويد!$A$2:$R$1501,5,0),"") -> ألوان ويفين مقاسات مختلفة | E4: 290
A5: 2026-01-05 | B5: 15660 | C5: 40 | D5: =IFERROR(VLOOKUP(C5,التكويد!$A$2:$R$1501,5,0),"") -> درجة جاكار | E5: 350
A6: 2026-01-05 | B6: 15666 | C6: 37 | D6: =IFERROR(VLOOKUP(C6,التكويد!$A$2:$R$1501,5,0),"") -> ألوان ويفين مقاسات مختلفة | E6: 64.8
A7: 2026-01-10 | B7: 15701 | C7: 37 | D7: =IFERROR(VLOOKUP(C7,التكويد!$A$2:$R$1501,5,0),"") -> ألوان ويفين مقاسات مختلفة | E7: 201.6
A8: 2026-01-11 | B8: 15706 | C8: 37 | D8: =IFERROR(VLOOKUP(C8,التكويد!$A$2:$R$1501,5,0),"") -> ألوان ويفين مقاسات مختلفة | E8: 209.06
A9: 2026-01-13 | B9: 15731 | C9: 37 | D9: =IFERROR(VLOOKUP(C9,التكويد!$A$2:$R$1501,5,0),"") -> ألوان ويفين مقاسات مختلفة | E9: 220.85
A10: 2026-01-14 | B10: 15735 | C10: 38 | D10: =IFERROR(VLOOKUP(C10,التكويد!$A$2:$R$1501,5,0),"") -> الوان كردون قطن مقاسات مختلفة | E10: 203.57
A11: 2026-01-14 | B11: 15736 | C11: 36 | D11: =IFERROR(VLOOKUP(C11,التكويد!$A$2:$R$1501,5,0),"") -> الوان ويفن خام | E11: 57.3
A12: 2026-01-15 | B12: 15748 | C12: 37 | D12: =IFERROR(VLOOKUP(C12,التكويد!$A$2:$R$1501,5,0),"") -> ألوان ويفين مقاسات مختلفة | E12: 75.2
A13: 2026-01-17 | B13: 15769 | C13: 37 | D13: =IFERROR(VLOOKUP(C13,التكويد!$A$2:$R$1501,5,0),"") -> ألوان ويفين مقاسات مختلفة | E13: 71.2
A14: 2026-01-17 | B14: 15778 | C14: 37 | D14: =IFERROR(VLOOKUP(C14,التكويد!$A$2:$R$1501,5,0),"") -> ألوان ويفين مقاسات مختلفة | E14: 40
A15: 2026-01-17 | B15: 15779 | C15: 37 | D15: =IFERROR(VLOOKUP(C15,التكويد!$A$2:$R$1501,5,0),"") -> ألوان ويفين مقاسات مختلفة | E15: 168
A16: 2026-01-18 | B16: 15789 | C16: 37 | D16: =IFERROR(VLOOKUP(C16,التكويد!$A$2:$R$1501,5,0),"") -> ألوان ويفين مقاسات مختلفة | E16: 91.25
A17: 2026-01-19 | B17: 15804 | C17: 37 | D17: =IFERROR(VLOOKUP(C17,التكويد!$A$2:$R$1501,5,0),"") -> ألوان ويفين مقاسات مختلفة | E17: 20
A18: 2026-01-20 | B18: 15825 | C18: 37 | D18: =IFERROR(VLOOKUP(C18,التكويد!$A$2:$R$1501,5,0),"") -> ألوان ويفين مقاسات مختلفة | E18: 747.16
A19: 2026-01-21 | B19: 15831 | C19: 37 | D19: =IFERROR(VLOOKUP(C19,التكويد!$A$2:$R$1501,5,0),"") -> ألوان ويفين مقاسات مختلفة | E19: 12
D20: =IFERROR(VLOOKUP(C20,التكويد!$A$2:$R$1501,5,0),"") -> 
D21: =IFERROR(VLOOKUP(C21,التكويد!$A$2:$R$1501,5,0),"") -> 
D22: =IFERROR(VLOOKUP(C22,التكويد!$A$2:$R$1501,5,0),"") -> 
D23: =IFERROR(VLOOKUP(C23,التكويد!$A$2:$R$1501,5,0),"") -> 
D24: =IFERROR(VLOOKUP(C24,التكويد!$A$2:$R$1501,5,0),"") -> 
D25: =IFERROR(VLOOKUP(C25,التكويد!$A$2:$R$1501,5,0),"") -> 
D26: =IFERROR(VLOOKUP(C26,التكويد!$A$2:$R$1501,5,0),"") -> 
D27: =IFERROR(VLOOKUP(C27,التكويد!$A$2:$R$1501,5,0),"") -> 
D28: =IFERROR(VLOOKUP(C28,التكويد!$A$2:$R$1501,5,0),"") -> 
D29: =IFERROR(VLOOKUP(C29,التكويد!$A$2:$R$1501,5,0),"") -> 
D30: =IFERROR(VLOOKUP(C30,التكويد!$A$2:$R$1501,5,0),"") -> 
D31: =IFERROR(VLOOKUP(C31,التكويد!$A$2:$R$1501,5,0),"") -> 
D32: =IFERROR(VLOOKUP(C32,التكويد!$A$2:$R$1501,5,0),"") -> 
D33: =IFERROR(VLOOKUP(C33,التكويد!$A$2:$R$1501,5,0),"") -> 
D34: =IFERROR(VLOOKUP(C34,التكويد!$A$2:$R$1501,5,0),"") -> 
D35: =IFERROR(VLOOKUP(C35,التكويد!$A$2:$R$1501,5,0),"") -> 
D36: =IFERROR(VLOOKUP(C36,التكويد!$A$2:$R$1501,5,0),"") -> 
D37: =IFERROR(VLOOKUP(C37,التكويد!$A$2:$R$1501,5,0),"") -> 
D38: =IFERROR(VLOOKUP(C38,التكويد!$A$2:$R$1501,5,0),"") -> 
D39: =IFERROR(VLOOKUP(C39,التكويد!$A$2:$R$1501,5,0),"") -> 
D40: =IFERROR(VLOOKUP(C40,التكويد!$A$2:$R$1501,5,0),"") -> 
D41: =IFERROR(VLOOKUP(C41,التكويد!$A$2:$R$1501,5,0),"") -> 
D42: =IFERROR(VLOOKUP(C42,التكويد!$A$2:$R$1501,5,0),"") -> 
D43: =IFERROR(VLOOKUP(C43,التكويد!$A$2:$R$1501,5,0),"") -> 
D44: =IFERROR(VLOOKUP(C44,التكويد!$A$2:$R$1501,5,0),"") -> 
D45: =IFERROR(VLOOKUP(C45,التكويد!$A$2:$R$1501,5,0),"") -> 
D46: =IFERROR(VLOOKUP(C46,التكويد!$A$2:$R$1501,5,0),"") -> 
D47: =IFERROR(VLOOKUP(C47,التكويد!$A$2:$R$1501,5,0),"") -> 
D48: =IFERROR(VLOOKUP(C48,التكويد!$A$2:$R$1501,5,0),"") -> 
D49: =IFERROR(VLOOKUP(C49,التكويد!$A$2:$R$1501,5,0),"") -> 
D50: =IFERROR(VLOOKUP(C50,التكويد!$A$2:$R$1501,5,0),"") -> 
D51: =IFERROR(VLOOKUP(C51,التكويد!$A$2:$R$1501,5,0),"") -> 
D52: =IFERROR(VLOOKUP(C52,التكويد!$A$2:$R$1501,5,0),"") -> 
D53: =IFERROR(VLOOKUP(C53,التكويد!$A$2:$R$1501,5,0),"") -> 
D54: =IFERROR(VLOOKUP(C54,التكويد!$A$2:$R$1501,5,0),"") -> 
D55: =IFERROR(VLOOKUP(C55,التكويد!$A$2:$R$1501,5,0),"") -> 
D56: =IFERROR(VLOOKUP(C56,التكويد!$A$2:$R$1501,5,0),"") -> 
D57: =IFERROR(VLOOKUP(C57,التكويد!$A$2:$R$1501,5,0),"") -> 
D58: =IFERROR(VLOOKUP(C58,التكويد!$A$2:$R$1501,5,0),"") -> 
D59: =IFERROR(VLOOKUP(C59,التكويد!$A$2:$R$1501,5,0),"") -> 
D60: =IFERROR(VLOOKUP(C60,التكويد!$A$2:$R$1501,5,0),"") -> 
D61: =IFERROR(VLOOKUP(C61,التكويد!$A$2:$R$1501,5,0),"") -> 
D62: =IFERROR(VLOOKUP(C62,التكويد!$A$2:$R$1501,5,0),"") -> 
D63: =IFERROR(VLOOKUP(C63,التكويد!$A$2:$R$1501,5,0),"") -> 
D64: =IFERROR(VLOOKUP(C64,التكويد!$A$2:$R$1501,5,0),"") -> 
D65: =IFERROR(VLOOKUP(C65,التكويد!$A$2:$R$1501,5,0),"") -> 
D66: =IFERROR(VLOOKUP(C66,التكويد!$A$2:$R$1501,5,0),"") ->  | F66: =IFERROR(SUM(E66/G66),"") -> 
D67: =IFERROR(VLOOKUP(C67,التكويد!$A$2:$R$1501,5,0),"") -> 
D68: =IFERROR(VLOOKUP(C68,التكويد!$A$2:$R$1501,5,0),"") -> 
D69: =IFERROR(VLOOKUP(C69,التكويد!$A$2:$R$1501,5,0),"") -> 
D70: =IFERROR(VLOOKUP(C70,التكويد!$A$2:$R$1501,5,0),"") -> 
D71: =IFERROR(VLOOKUP(C71,التكويد!$A$2:$R$1501,5,0),"") -> 
D72: =IFERROR(VLOOKUP(C72,التكويد!$A$2:$R$1501,5,0),"") -> 
D73: =IFERROR(VLOOKUP(C73,التكويد!$A$2:$R$1501,5,0),"") -> 
D74: =IFERROR(VLOOKUP(C74,التكويد!$A$2:$R$1501,5,0),"") -> 
D75: =IFERROR(VLOOKUP(C75,التكويد!$A$2:$R$1501,5,0),"") -> 
D76: =IFERROR(VLOOKUP(C76,التكويد!$A$2:$R$1501,5,0),"") -> 
D77: =IFERROR(VLOOKUP(C77,التكويد!$A$2:$R$1501,5,0),"") -> 
D78: =IFERROR(VLOOKUP(C78,التكويد!$A$2:$R$1501,5,0),"") -> 
D79: =IFERROR(VLOOKUP(C79,التكويد!$A$2:$R$1501,5,0),"") -> 
D80: =IFERROR(VLOOKUP(C80,التكويد!$A$2:$R$1501,5,0),"") -> 
D81: =IFERROR(VLOOKUP(C81,التكويد!$A$2:$R$1501,5,0),"") -> 
D82: =IFERROR(VLOOKUP(C82,التكويد!$A$2:$R$1501,5,0),"") -> 
D83: =IFERROR(VLOOKUP(C83,التكويد!$A$2:$R$1501,5,0),"") -> 
D84: =IFERROR(VLOOKUP(C84,التكويد!$A$2:$R$1501,5,0),"") -> 
D85: =IFERROR(VLOOKUP(C85,التكويد!$A$2:$R$1501,5,0),"") -> 
D86: =IFERROR(VLOOKUP(C86,التكويد!$A$2:$R$1501,5,0),"") -> 
D87: =IFERROR(VLOOKUP(C87,التكويد!$A$2:$R$1501,5,0),"") -> 
D88: =IFERROR(VLOOKUP(C88,التكويد!$A$2:$R$1501,5,0),"") -> 
D89: =IFERROR(VLOOKUP(C89,التكويد!$A$2:$R$1501,5,0),"") -> 
D90: =IFERROR(VLOOKUP(C90,التكويد!$A$2:$R$1501,5,0),"") -> 
D91: =IFERROR(VLOOKUP(C91,التكويد!$A$2:$R$1501,5,0),"") -> 
D92: =IFERROR(VLOOKUP(C92,التكويد!$A$2:$R$1501,5,0),"") -> 
D93: =IFERROR(VLOOKUP(C93,التكويد!$A$2:$R$1501,5,0),"") -> 
D94: =IFERROR(VLOOKUP(C94,التكويد!$A$2:$R$1501,5,0),"") -> 
D95: =IFERROR(VLOOKUP(C95,التكويد!$A$2:$R$1501,5,0),"") -> 
D96: =IFERROR(VLOOKUP(C96,التكويد!$A$2:$R$1501,5,0),"") -> 
D97: =IFERROR(VLOOKUP(C97,التكويد!$A$2:$R$1501,5,0),"") -> 
D98: =IFERROR(VLOOKUP(C98,التكويد!$A$2:$R$1501,5,0),"") -> 
D99: =IFERROR(VLOOKUP(C99,التكويد!$A$2:$R$1501,5,0),"") -> 
D100: =IFERROR(VLOOKUP(C100,التكويد!$A$2:$R$1501,5,0),"") -> 
D101: =IFERROR(VLOOKUP(C101,التكويد!$A$2:$R$1501,5,0),"") -> 
D102: =IFERROR(VLOOKUP(C102,التكويد!$A$2:$R$1501,5,0),"") -> 
D103: =IFERROR(VLOOKUP(C103,التكويد!$A$2:$R$1501,5,0),"") -> 
D104: =IFERROR(VLOOKUP(C104,التكويد!$A$2:$R$1501,5,0),"") -> 
D105: =IFERROR(VLOOKUP(C105,التكويد!$A$2:$R$1501,5,0),"") -> 
D106: =IFERROR(VLOOKUP(C106,التكويد!$A$2:$R$1501,5,0),"") -> 
D107: =IFERROR(VLOOKUP(C107,التكويد!$A$2:$R$1501,5,0),"") -> 
D108: =IFERROR(VLOOKUP(C108,التكويد!$A$2:$R$1501,5,0),"") -> 
D109: =IFERROR(VLOOKUP(C109,التكويد!$A$2:$R$1501,5,0),"") -> 
D110: =IFERROR(VLOOKUP(C110,التكويد!$A$2:$R$1501,5,0),"") -> 
D111: =IFERROR(VLOOKUP(C111,التكويد!$A$2:$R$1501,5,0),"") -> 
D112: =IFERROR(VLOOKUP(C112,التكويد!$A$2:$R$1501,5,0),"") -> 
D113: =IFERROR(VLOOKUP(C113,التكويد!$A$2:$R$1501,5,0),"") -> 
D114: =IFERROR(VLOOKUP(C114,التكويد!$A$2:$R$1501,5,0),"") -> 
D115: =IFERROR(VLOOKUP(C115,التكويد!$A$2:$R$1501,5,0),"") -> 
D116: =IFERROR(VLOOKUP(C116,التكويد!$A$2:$R$1501,5,0),"") -> 
D117: =IFERROR(VLOOKUP(C117,التكويد!$A$2:$R$1501,5,0),"") -> 
D118: =IFERROR(VLOOKUP(C118,التكويد!$A$2:$R$1501,5,0),"") -> 
D119: =IFERROR(VLOOKUP(C119,التكويد!$A$2:$R$1501,5,0),"") -> 
D120: =IFERROR(VLOOKUP(C120,التكويد!$A$2:$R$1501,5,0),"") -> 
D121: =IFERROR(VLOOKUP(C121,التكويد!$A$2:$R$1501,5,0),"") -> 
D122: =IFERROR(VLOOKUP(C122,التكويد!$A$2:$R$1501,5,0),"") -> 
D123: =IFERROR(VLOOKUP(C123,التكويد!$A$2:$R$1501,5,0),"") -> 
D124: =IFERROR(VLOOKUP(C124,التكويد!$A$2:$R$1501,5,0),"") -> 
D125: =IFERROR(VLOOKUP(C125,التكويد!$A$2:$R$1501,5,0),"") -> 
D126: =IFERROR(VLOOKUP(C126,التكويد!$A$2:$R$1501,5,0),"") -> 
D127: =IFERROR(VLOOKUP(C127,التكويد!$A$2:$R$1501,5,0),"") -> 
D128: =IFERROR(VLOOKUP(C128,التكويد!$A$2:$R$1501,5,0),"") -> 
D129: =IFERROR(VLOOKUP(C129,التكويد!$A$2:$R$1501,5,0),"") -> 
D130: =IFERROR(VLOOKUP(C130,التكويد!$A$2:$R$1501,5,0),"") ->  | F130: =IFERROR(SUM(E130/G130),"") -> 
D131: =IFERROR(VLOOKUP(C131,التكويد!$A$2:$R$1501,5,0),"") -> 
D132: =IFERROR(VLOOKUP(C132,التكويد!$A$2:$R$1501,5,0),"") -> 
D133: =IFERROR(VLOOKUP(C133,التكويد!$A$2:$R$1501,5,0),"") -> 
D134: =IFERROR(VLOOKUP(C134,التكويد!$A$2:$R$1501,5,0),"") -> 
D135: =IFERROR(VLOOKUP(C135,التكويد!$A$2:$R$1501,5,0),"") -> 
D136: =IFERROR(VLOOKUP(C136,التكويد!$A$2:$R$1501,5,0),"") -> 
D137: =IFERROR(VLOOKUP(C137,التكويد!$A$2:$R$1501,5,0),"") -> 
D138: =IFERROR(VLOOKUP(C138,التكويد!$A$2:$R$1501,5,0),"") -> 
D139: =IFERROR(VLOOKUP(C139,التكويد!$A$2:$R$1501,5,0),"") -> 
D140: =IFERROR(VLOOKUP(C140,التكويد!$A$2:$R$1501,5,0),"") -> 
D141: =IFERROR(VLOOKUP(C141,التكويد!$A$2:$R$1501,5,0),"") -> 
D142: =IFERROR(VLOOKUP(C142,التكويد!$A$2:$R$1501,5,0),"") -> 
D143: =IFERROR(VLOOKUP(C143,التكويد!$A$2:$R$1501,5,0),"") -> 
D144: =IFERROR(VLOOKUP(C144,التكويد!$A$2:$R$1501,5,0),"") -> 
D145: =IFERROR(VLOOKUP(C145,التكويد!$A$2:$R$1501,5,0),"") -> 
D146: =IFERROR(VLOOKUP(C146,التكويد!$A$2:$R$1501,5,0),"") -> 
D147: =IFERROR(VLOOKUP(C147,التكويد!$A$2:$R$1501,5,0),"") -> 
D148: =IFERROR(VLOOKUP(C148,التكويد!$A$2:$R$1501,5,0),"") -> 
D149: =IFERROR(VLOOKUP(C149,التكويد!$A$2:$R$1501,5,0),"") -> 
D150: =IFERROR(VLOOKUP(C150,التكويد!$A$2:$R$1501,5,0),"") -> 
D151: =IFERROR(VLOOKUP(C151,التكويد!$A$2:$R$1501,5,0),"") -> 
D152: =IFERROR(VLOOKUP(C152,التكويد!$A$2:$R$1501,5,0),"") -> 
D153: =IFERROR(VLOOKUP(C153,التكويد!$A$2:$R$1501,5,0),"") -> 
D154: =IFERROR(VLOOKUP(C154,التكويد!$A$2:$R$1501,5,0),"") -> 
D155: =IFERROR(VLOOKUP(C155,التكويد!$A$2:$R$1501,5,0),"") -> 
D156: =IFERROR(VLOOKUP(C156,التكويد!$A$2:$R$1501,5,0),"") -> 
D157: =IFERROR(VLOOKUP(C157,التكويد!$A$2:$R$1501,5,0),"") -> 
D158: =IFERROR(VLOOKUP(C158,التكويد!$A$2:$R$1501,5,0),"") -> 
D159: =IFERROR(VLOOKUP(C159,التكويد!$A$2:$R$1501,5,0),"") -> 
D160: =IFERROR(VLOOKUP(C160,التكويد!$A$2:$R$1501,5,0),"") -> 
D161: =IFERROR(VLOOKUP(C161,التكويد!$A$2:$R$1501,5,0),"") -> 
D162: =IFERROR(VLOOKUP(C162,التكويد!$A$2:$R$1501,5,0),"") -> 
D163: =IFERROR(VLOOKUP(C163,التكويد!$A$2:$R$1501,5,0),"") -> 
D164: =IFERROR(VLOOKUP(C164,التكويد!$A$2:$R$1501,5,0),"") -> 
D165: =IFERROR(VLOOKUP(C165,التكويد!$A$2:$R$1501,5,0),"") -> 
D166: =IFERROR(VLOOKUP(C166,التكويد!$A$2:$R$1501,5,0),"") -> 
D167: =IFERROR(VLOOKUP(C167,التكويد!$A$2:$R$1501,5,0),"") -> 
D168: =IFERROR(VLOOKUP(C168,التكويد!$A$2:$R$1501,5,0),"") -> 
D169: =IFERROR(VLOOKUP(C169,التكويد!$A$2:$R$1501,5,0),"") -> 
D170: =IFERROR(VLOOKUP(C170,التكويد!$A$2:$R$1501,5,0),"") -> 
D171: =IFERROR(VLOOKUP(C171,التكويد!$A$2:$R$1501,5,0),"") -> 
D172: =IFERROR(VLOOKUP(C172,التكويد!$A$2:$R$1501,5,0),"") -> 
D173: =IFERROR(VLOOKUP(C173,التكويد!$A$2:$R$1501,5,0),"") -> 
D174: =IFERROR(VLOOKUP(C174,التكويد!$A$2:$R$1501,5,0),"") -> 
D175: =IFERROR(VLOOKUP(C175,التكويد!$A$2:$R$1501,5,0),"") -> 
D176: =IFERROR(VLOOKUP(C176,التكويد!$A$2:$R$1501,5,0),"") -> 
D177: =IFERROR(VLOOKUP(C177,التكويد!$A$2:$R$1501,5,0),"") -> 
D178: =IFERROR(VLOOKUP(C178,التكويد!$A$2:$R$1501,5,0),"") -> 
D179: =IFERROR(VLOOKUP(C179,التكويد!$A$2:$R$1501,5,0),"") -> 
D180: =IFERROR(VLOOKUP(C180,التكويد!$A$2:$R$1501,5,0),"") -> 
D181: =IFERROR(VLOOKUP(C181,التكويد!$A$2:$R$1501,5,0),"") -> 
D182: =IFERROR(VLOOKUP(C182,التكويد!$A$2:$R$1501,5,0),"") -> 
D183: =IFERROR(VLOOKUP(C183,التكويد!$A$2:$R$1501,5,0),"") -> 
D184: =IFERROR(VLOOKUP(C184,التكويد!$A$2:$R$1501,5,0),"") -> 
D185: =IFERROR(VLOOKUP(C185,التكويد!$A$2:$R$1501,5,0),"") -> 
D186: =IFERROR(VLOOKUP(C186,التكويد!$A$2:$R$1501,5,0),"") -> 
D187: =IFERROR(VLOOKUP(C187,التكويد!$A$2:$R$1501,5,0),"") -> 
D188: =IFERROR(VLOOKUP(C188,التكويد!$A$2:$R$1501,5,0),"") -> 
D189: =IFERROR(VLOOKUP(C189,التكويد!$A$2:$R$1501,5,0),"") -> 
D190: =IFERROR(VLOOKUP(C190,التكويد!$A$2:$R$1501,5,0),"") -> 
D191: =IFERROR(VLOOKUP(C191,التكويد!$A$2:$R$1501,5,0),"") -> 
D192: =IFERROR(VLOOKUP(C192,التكويد!$A$2:$R$1501,5,0),"") -> 
D193: =IFERROR(VLOOKUP(C193,التكويد!$A$2:$R$1501,5,0),"") -> 
D194: =IFERROR(VLOOKUP(C194,التكويد!$A$2:$R$1501,5,0),"") ->  | F194: =IFERROR(SUM(E194/G194),"") -> 
D195: =IFERROR(VLOOKUP(C195,التكويد!$A$2:$R$1501,5,0),"") -> 
D196: =IFERROR(VLOOKUP(C196,التكويد!$A$2:$R$1501,5,0),"") -> 
D197: =IFERROR(VLOOKUP(C197,التكويد!$A$2:$R$1501,5,0),"") -> 
D198: =IFERROR(VLOOKUP(C198,التكويد!$A$2:$R$1501,5,0),"") -> 
D199: =IFERROR(VLOOKUP(C199,التكويد!$A$2:$R$1501,5,0),"") -> 
D200: =IFERROR(VLOOKUP(C200,التكويد!$A$2:$R$1501,5,0),"") -> 
... 5800 more rows
